Workbook

Sheet ÖZET
A1: GELİR TÜR'Ü | B1: OCAK | C1: ŞUBAT | D1: MART | E1: NİSAN | F1: MAYIS | G1: HAZİRAN | H1: TEMMUZ | I1: AĞUSTOS | J1: EYLÜL | K1: EKİM | L1: KASIM | M1: ARALIK | N1: DEMİRBAŞ | O1: =IF(X6<>0,VLOOKUP(X6,ÜYE!A:B,2,FALSE),"YOK") -> YOK | V1: =+W6 -> 2016 | W1: =X6 -> 0 | X1: =COUNTIF(PLAN!P:P,Y1) -> 0 | Y1: ="D"&$W$1&"-"&$V$1&"-"&$N$1 -> D0-2016-DEMİRBAŞ | Z1: KİRA | AA1: =TODAY() -> 2016-04-25 | AB1: 2016-07-31 | AC1: =+AB1-AA1 -> 97 | AD1: 7 | AH1: =+W6 -> 2016 | AI1: =+X6 -> 0 | AJ1: =COUNTIF(PLAN!P:P,AK1) -> 0 | AK1: ="D"&$W$1&"-"&$V$1&"-"&$Z$1 -> D0-2016-KİRA | AL1: DİĞER | AT1: =+W6 -> 2016 | AU1: =+X6 -> 0 | AV1: =COUNTIF(PLAN!P:P,AW1) -> 0 | AW1: ="D"&$W$1&"-"&$V$1&"-"&$AL$1 -> D0-2016-DİĞER | AX1: YAKIT | BF1: =+W6 -> 2016 | BG1: =+X6 -> 0 | BH1: =COUNTIF(PLAN!P:P,BI1) -> 0 | BI1: ="D"&$W$1&"-"&$V$1&"-"&$AX$1 -> D0-2016-YAKIT | BU1: 24.04.2016 | BV1: Şubat2016 | BW1: =+BU1-BV1-30 -> 53 | BX1: 7.5 | BY1: 40 | BZ1: =(BY1*BX1*BW1)/36000 -> 0.4416666667 | DA1: Aidat | DI1: 2016 | DP1: YAKIT | EF1: =ÜYE!AA1+2 -> 9
A2: AİDAT | B2: =+O8 -> 100 | C2: 20 | D2: 45 | E2: =+R8 -> 0 | F2: 0 | G2: =+T8 -> 0 | H2: 0 | I2: 0 | J2: 0 | K2: 0 | L2: 0 | M2: 0 | N2: OCAK | O2: ŞUBAT | P2: MART | Q2: NİSAN | R2: MAYIS | S2: HAZİRAN | T2: TEMMUZ | U2: AĞUSTOS | V2: EYLÜL | W2: EKİM | X2: KASIM | Y2: ARALIK | Z2: OCAK | AA2: ŞUBAT | AB2: MART | AC2: NİSAN | AD2: MAYIS | AE2: HAZİRAN | AF2: TEMMUZ | AG2: AĞUSTOS | AH2: EYLÜL | AI2: EKİM | AJ2: KASIM | AK2: ARALIK | AL2: OCAK | AM2: ŞUBAT | AN2: MART | AO2: NİSAN | AP2: MAYIS | AQ2: HAZİRAN | AR2: TEMMUZ | AS2: AĞUSTOS | AT2: EYLÜL | AU2: EKİM | AV2: KASIM | AW2: ARALIK | AX2: OCAK | AY2: ŞUBAT | AZ2: MART | BA2: NİSAN | BB2: MAYIS | BC2: HAZİRAN | BD2: TEMMUZ | BE2: AĞUSTOS | BF2: EYLÜL | BG2: EKİM | BH2: KASIM | BI2: ARALIK | BU2: İŞL TARİHİ | BV2: AY/YIL | BW2: gün | BX2: oran | BY2: ana para | BZ2: faiz | CZ2: NO - ADI SOYADI | DA2: OCAK | DB2: ŞUBAT | DC2: MART | DD2: NİSAN | DE2: MAYIS | DF2: HAZİRAN | DG2: TEMMUZ | DH2: AĞUSTOS | DI2: EYLÜL | DJ2: EKİM | DK2: KASIM | DL2: ARALIK | DP2: OCAK | DQ2: ŞUBAT | DR2: MART | DS2: NİSAN | DT2: MAYIS | DU2: HAZİRAN | DV2: TEMMUZ | DW2: AĞUSTOS | DX2: EYLÜL | DY2: EKİM | DZ2: KASIM | EA2: ARALIK
A3: TAHSİLAT | B3: =+O9 -> 0 | C3: =+P9 -> 0 | D3: 0 | E3: 0 | F3: =+S9 -> 0 | G3: 0 | H3: 0 | I3: 0 | J3: 0 | K3: 0 | L3: 0 | M3: 0 | N3: =IF($X$1>0,SUMIF(PLAN!$P:$P,"D"&$W$1&"-"&$V$1&"-"&$N$1,PLAN!D:D),SUMIF(PLAN!$P:$P,"D"&"-"&$V$1&"-"&$N$1,PLAN!D:D)) -> 0 | O3: =IF($X$1>0,SUMIF(PLAN!$P:$P,"D"&$W$1&"-"&$V$1&"-"&$N$1,PLAN!E:E),SUMIF(PLAN!$P:$P,"D"&"-"&$V$1&"-"&$N$1,PLAN!E:E)) -> 0 | P3: =IF($X$1>0,SUMIF(PLAN!$P:$P,"D"&$W$1&"-"&$V$1&"-"&$N$1,PLAN!F:F),SUMIF(PLAN!$P:$P,"D"&"-"&$V$1&"-"&$N$1,PLAN!F:F)) -> 0 | Q3: =IF($X$1>0,SUMIF(PLAN!$P:$P,"D"&$W$1&"-"&$V$1&"-"&$N$1,PLAN!G:G),SUMIF(PLAN!$P:$P,"D"&"-"&$V$1&"-"&$N$1,PLAN!G:G)) -> 0 | R3: =IF($X$1>0,SUMIF(PLAN!$P:$P,"D"&$W$1&"-"&$V$1&"-"&$N$1,PLAN!H:H),SUMIF(PLAN!$P:$P,"D"&"-"&$V$1&"-"&$N$1,PLAN!H:H)) -> 0 | S3: =IF($X$1>0,SUMIF(PLAN!$P:$P,"D"&$W$1&"-"&$V$1&"-"&$N$1,PLAN!I:I),SUMIF(PLAN!$P:$P,"D"&"-"&$V$1&"-"&$N$1,PLAN!I:I)) -> 0 | T3: =IF($X$1>0,SUMIF(PLAN!$P:$P,"D"&$W$1&"-"&$V$1&"-"&$N$1,PLAN!J:J),SUMIF(PLAN!$P:$P,"D"&"-"&$V$1&"-"&$N$1,PLAN!J:J)) -> 0 | U3: =IF($X$1>0,SUMIF(PLAN!$P:$P,"D"&$W$1&"-"&$V$1&"-"&$N$1,PLAN!K:K),SUMIF(PLAN!$P:$P,"D"&"-"&$V$1&"-"&$N$1,PLAN!K:K)) -> 0 | V3: =IF($X$1>0,SUMIF(PLAN!$P:$P,"D"&$W$1&"-"&$V$1&"-"&$N$1,PLAN!L:L),SUMIF(PLAN!$P:$P,"D"&"-"&$V$1&"-"&$N$1,PLAN!L:L)) -> 0 | W3: =IF($X$1>0,SUMIF(PLAN!$P:$P,"D"&$W$1&"-"&$V$1&"-"&$N$1,PLAN!M:M),SUMIF(PLAN!$P:$P,"D"&"-"&$V$1&"-"&$N$1,PLAN!M:M)) -> 0 | X3: =IF($X$1>0,SUMIF(PLAN!$P:$P,"D"&$W$1&"-"&$V$1&"-"&$N$1,PLAN!N:N),SUMIF(PLAN!$P:$P,"D"&"-"&$V$1&"-"&$N$1,PLAN!N:N)) -> 0 | Y3: =IF($X$1>0,SUMIF(PLAN!$P:$P,"D"&$W$1&"-"&$V$1&"-"&$N$1,PLAN!O:O),SUMIF(PLAN!$P:$P,"D"&"-"&$V$1&"-"&$N$1,PLAN!O:O)) -> 0 | Z3: =IF($AJ$1>0,SUMIF(PLAN!$P:$P,"D"&$AI$1&"-"&$AH$1&"-"&$Z$1,PLAN!D:D),SUMIF(PLAN!$P:$P,"D"&"-"&$AH$1&"-"&$Z$1,PLAN!D:D)) -> 0 | AA3: =IF($AJ$1>0,SUMIF(PLAN!$P:$P,"D"&$AI$1&"-"&$AH$1&"-"&$Z$1,PLAN!E:E),SUMIF(PLAN!$P:$P,"D"&"-"&$AH$1&"-"&$Z$1,PLAN!E:E)) -> 0 | AB3: =IF($AJ$1>0,SUMIF(PLAN!$P:$P,"D"&$AI$1&"-"&$AH$1&"-"&$Z$1,PLAN!F:F),SUMIF(PLAN!$P:$P,"D"&"-"&$AH$1&"-"&$Z$1,PLAN!F:F)) -> 0 | AC3: =IF($AJ$1>0,SUMIF(PLAN!$P:$P,"D"&$AI$1&"-"&$AH$1&"-"&$Z$1,PLAN!G:G),SUMIF(PLAN!$P:$P,"D"&"-"&$AH$1&"-"&$Z$1,PLAN!G:G)) -> 0 | AD3: =IF($AJ$1>0,SUMIF(PLAN!$P:$P,"D"&$AI$1&"-"&$AH$1&"-"&$Z$1,PLAN!H:H),SUMIF(PLAN!$P:$P,"D"&"-"&$AH$1&"-"&$Z$1,PLAN!H:H)) -> 0 | AE3: =IF($AJ$1>0,SUMIF(PLAN!$P:$P,"D"&$AI$1&"-"&$AH$1&"-"&$Z$1,PLAN!I:I),SUMIF(PLAN!$P:$P,"D"&"-"&$AH$1&"-"&$Z$1,PLAN!I:I)) -> 0 | AF3: =IF($AJ$1>0,SUMIF(PLAN!$P:$P,"D"&$AI$1&"-"&$AH$1&"-"&$Z$1,PLAN!J:J),SUMIF(PLAN!$P:$P,"D"&"-"&$AH$1&"-"&$Z$1,PLAN!J:J)) -> 0 | AG3: =IF($AJ$1>0,SUMIF(PLAN!$P:$P,"D"&$AI$1&"-"&$AH$1&"-"&$Z$1,PLAN!K:K),SUMIF(PLAN!$P:$P,"D"&"-"&$AH$1&"-"&$Z$1,PLAN!K:K)) -> 0 | AH3: =IF($AJ$1>0,SUMIF(PLAN!$P:$P,"D"&$AI$1&"-"&$AH$1&"-"&$Z$1,PLAN!L:L),SUMIF(PLAN!$P:$P,"D"&"-"&$AH$1&"-"&$Z$1,PLAN!L:L)) -> 0 | AI3: =IF($AJ$1>0,SUMIF(PLAN!$P:$P,"D"&$AI$1&"-"&$AH$1&"-"&$Z$1,PLAN!M:M),SUMIF(PLAN!$P:$P,"D"&"-"&$AH$1&"-"&$Z$1,PLAN!M:M)) -> 0 | AJ3: =IF($AJ$1>0,SUMIF(PLAN!$P:$P,"D"&$AI$1&"-"&$AH$1&"-"&$Z$1,PLAN!N:N),SUMIF(PLAN!$P:$P,"D"&"-"&$AH$1&"-"&$Z$1,PLAN!N:N)) -> 0 | AK3: =IF($AJ$1>0,SUMIF(PLAN!$P:$P,"D"&$AI$1&"-"&$AH$1&"-"&$Z$1,PLAN!O:O),SUMIF(PLAN!$P:$P,"D"&"-"&$AH$1&"-"&$Z$1,PLAN!O:O)) -> 0 | AL3: =IF($AV$1>0,SUMIF(PLAN!$P:$P,"D"&$AU$1&"-"&$AT$1&"-"&$AL$1,PLAN!D:D),SUMIF(PLAN!$P:$P,"D"&"-"&$AT$1&"-"&$AL$1,PLAN!D:D)) -> 0 | AM3: =IF($AV$1>0,SUMIF(PLAN!$P:$P,"D"&$AU$1&"-"&$AT$1&"-"&$AL$1,PLAN!E:E),SUMIF(PLAN!$P:$P,"D"&"-"&$AT$1&"-"&$AL$1,PLAN!E:E)) -> 0 | AN3: =IF($AV$1>0,SUMIF(PLAN!$P:$P,"D"&$AU$1&"-"&$AT$1&"-"&$AL$1,PLAN!F:F),SUMIF(PLAN!$P:$P,"D"&"-"&$AT$1&"-"&$AL$1,PLAN!F:F)) -> 0 | AO3: =IF($AV$1>0,SUMIF(PLAN!$P:$P,"D"&$AU$1&"-"&$AT$1&"-"&$AL$1,PLAN!G:G),SUMIF(PLAN!$P:$P,"D"&"-"&$AT$1&"-"&$AL$1,PLAN!G:G)) -> 0 | AP3: =IF($AV$1>0,SUMIF(PLAN!$P:$P,"D"&$AU$1&"-"&$AT$1&"-"&$AL$1,PLAN!H:H),SUMIF(PLAN!$P:$P,"D"&"-"&$AT$1&"-"&$AL$1,PLAN!H:H)) -> 0 | AQ3: =IF($AV$1>0,SUMIF(PLAN!$P:$P,"D"&$AU$1&"-"&$AT$1&"-"&$AL$1,PLAN!I:I),SUMIF(PLAN!$P:$P,"D"&"-"&$AT$1&"-"&$AL$1,PLAN!I:I)) -> 0 | AR3: =IF($AV$1>0,SUMIF(PLAN!$P:$P,"D"&$AU$1&"-"&$AT$1&"-"&$AL$1,PLAN!J:J),SUMIF(PLAN!$P:$P,"D"&"-"&$AT$1&"-"&$AL$1,PLAN!J:J)) -> 0 | AS3: =IF($AV$1>0,SUMIF(PLAN!$P:$P,"D"&$AU$1&"-"&$AT$1&"-"&$AL$1,PLAN!K:K),SUMIF(PLAN!$P:$P,"D"&"-"&$AT$1&"-"&$AL$1,PLAN!K:K)) -> 0 | AT3: =IF($AV$1>0,SUMIF(PLAN!$P:$P,"D"&$AU$1&"-"&$AT$1&"-"&$AL$1,PLAN!L:L),SUMIF(PLAN!$P:$P,"D"&"-"&$AT$1&"-"&$AL$1,PLAN!L:L)) -> 0 | AU3: =IF($AV$1>0,SUMIF(PLAN!$P:$P,"D"&$AU$1&"-"&$AT$1&"-"&$AL$1,PLAN!M:M),SUMIF(PLAN!$P:$P,"D"&"-"&$AT$1&"-"&$AL$1,PLAN!M:M)) -> 0 | AV3: =IF($AV$1>0,SUMIF(PLAN!$P:$P,"D"&$AU$1&"-"&$AT$1&"-"&$AL$1,PLAN!N:N),SUMIF(PLAN!$P:$P,"D"&"-"&$AT$1&"-"&$AL$1,PLAN!N:N)) -> 0 | AW3: =IF($AV$1>0,SUMIF(PLAN!$P:$P,"D"&$AU$1&"-"&$AT$1&"-"&$AL$1,PLAN!O:O),SUMIF(PLAN!$P:$P,"D"&"-"&$AT$1&"-"&$AL$1,PLAN!O:O)) -> 0 | AX3: =SUMIF(YAKIT!$J:$J,"D"&$BG$1&"-"&AX2&"-"&$BF$1&"-"&$AX$1,YAKIT!$I:$I)+IF($BH$1>0,SUMIF(PLAN!$P:$P,"D"&$BG$1&"-"&$BF$1&"-"&$AX$1,PLAN!D:D),SUMIF(PLAN!$P:$P,"D"&"-"&$BF$1&"-"&$AX$1,PLAN!D:D)) -> 0 | AY3: =SUMIF(YAKIT!$J:$J,"D"&$BG$1&"-"&AY2&"-"&$BF$1&"-"&$AX$1,YAKIT!$I:$I)+IF($BH$1>0,SUMIF(PLAN!$P:$P,"D"&$BG$1&"-"&$BF$1&"-"&$AX$1,PLAN!E:E),SUMIF(PLAN!$P:$P,"D"&"-"&$BF$1&"-"&$AX$1,PLAN!E:E)) -> 0 | AZ3: =SUMIF(YAKIT!$J:$J,"D"&$BG$1&"-"&AZ2&"-"&$BF$1&"-"&$AX$1,YAKIT!$I:$I)+IF($BH$1>0,SUMIF(PLAN!$P:$P,"D"&$BG$1&"-"&$BF$1&"-"&$AX$1,PLAN!F:F),SUMIF(PLAN!$P:$P,"D"&"-"&$BF$1&"-"&$AX$1,PLAN!F:F)) -> 0 | BA3: =SUMIF(YAKIT!$J:$J,"D"&$BG$1&"-"&BA2&"-"&$BF$1&"-"&$AX$1,YAKIT!$I:$I)+IF($BH$1>0,SUMIF(PLAN!$P:$P,"D"&$BG$1&"-"&$BF$1&"-"&$AX$1,PLAN!G:G),SUMIF(PLAN!$P:$P,"D"&"-"&$BF$1&"-"&$AX$1,PLAN!G:G)) -> 0 | BB3: =SUMIF(YAKIT!$J:$J,"D"&$BG$1&"-"&BB2&"-"&$BF$1&"-"&$AX$1,YAKIT!$I:$I)+IF($BH$1>0,SUMIF(PLAN!$P:$P,"D"&$BG$1&"-"&$BF$1&"-"&$AX$1,PLAN!H:H),SUMIF(PLAN!$P:$P,"D"&"-"&$BF$1&"-"&$AX$1,PLAN!H:H)) -> 0 | BC3: =SUMIF(YAKIT!$J:$J,"D"&$BG$1&"-"&BC2&"-"&$BF$1&"-"&$AX$1,YAKIT!$I:$I)+IF($BH$1>0,SUMIF(PLAN!$P:$P,"D"&$BG$1&"-"&$BF$1&"-"&$AX$1,PLAN!I:I),SUMIF(PLAN!$P:$P,"D"&"-"&$BF$1&"-"&$AX$1,PLAN!I:I)) -> 0 | BD3: =SUMIF(YAKIT!$J:$J,"D"&$BG$1&"-"&BD2&"-"&$BF$1&"-"&$AX$1,YAKIT!$I:$I)+IF($BH$1>0,SUMIF(PLAN!$P:$P,"D"&$BG$1&"-"&$BF$1&"-"&$AX$1,PLAN!J:J),SUMIF(PLAN!$P:$P,"D"&"-"&$BF$1&"-"&$AX$1,PLAN!J:J)) -> 0 | BE3: =SUMIF(YAKIT!$J:$J,"D"&$BG$1&"-"&BE2&"-"&$BF$1&"-"&$AX$1,YAKIT!$I:$I)+IF($BH$1>0,SUMIF(PLAN!$P:$P,"D"&$BG$1&"-"&$BF$1&"-"&$AX$1,PLAN!K:K),SUMIF(PLAN!$P:$P,"D"&"-"&$BF$1&"-"&$AX$1,PLAN!K:K)) -> 0 | BF3: =SUMIF(YAKIT!$J:$J,"D"&$BG$1&"-"&BF2&"-"&$BF$1&"-"&$AX$1,YAKIT!$I:$I)+IF($BH$1>0,SUMIF(PLAN!$P:$P,"D"&$BG$1&"-"&$BF$1&"-"&$AX$1,PLAN!L:L),SUMIF(PLAN!$P:$P,"D"&"-"&$BF$1&"-"&$AX$1,PLAN!L:L)) -> 0 | BG3: =SUMIF(YAKIT!$J:$J,"D"&$BG$1&"-"&BG2&"-"&$BF$1&"-"&$AX$1,YAKIT!$I:$I)+IF($BH$1>0,SUMIF(PLAN!$P:$P,"D"&$BG$1&"-"&$BF$1&"-"&$AX$1,PLAN!M:M),SUMIF(PLAN!$P:$P,"D"&"-"&$BF$1&"-"&$AX$1,PLAN!M:M)) -> 0 | BH3: =SUMIF(YAKIT!$J:$J,"D"&$BG$1&"-"&BH2&"-"&$BF$1&"-"&$AX$1,YAKIT!$I:$I)+IF($BH$1>0,SUMIF(PLAN!$P:$P,"D"&$BG$1&"-"&$BF$1&"-"&$AX$1,PLAN!N:N),SUMIF(PLAN!$P:$P,"D"&"-"&$BF$1&"-"&$AX$1,PLAN!N:N)) -> 0 | BI3: =SUMIF(YAKIT!$J:$J,"D"&$BG$1&"-"&BI2&"-"&$BF$1&"-"&$AX$1,YAKIT!$I:$I)+IF($BH$1>0,SUMIF(PLAN!$P:$P,"D"&$BG$1&"-"&$BF$1&"-"&$AX$1,PLAN!O:O),SUMIF(PLAN!$P:$P,"D"&"-"&$BF$1&"-"&$AX$1,PLAN!O:O)) -> 0 | CY3: =IF(ÜYE!B2>"",ÜYE!A2,"") -> 1 | CZ3: =IF(ÜYE!B2>"",ÜYE!A2&"-"&ÜYE!B2,"") -> 1-Tahir | DA3: =IF(DN3>0,SUMIF(PLAN!$P:$P,"D"&CY3&"-"&$DI$1&"-"&$DA$1,PLAN!D:D),SUMIF(PLAN!$P:$P,"D"&"-"&$DI$1&"-"&$DA$1,PLAN!D:D))-SUMIF(GELİRLER!$H:$H,"D"&CY3&"-"&$DA$2&"-"&$DI$1&"-"&$DA$1,GELİRLER!$G:$G) -> 0 | DB3: =IF(DN3>0,SUMIF(PLAN!$P:$P,"D"&CY3&"-"&$DI$1&"-"&$DA$1,PLAN!E:E),SUMIF(PLAN!$P:$P,"D"&"-"&$DI$1&"-"&$DA$1,PLAN!E:E))-SUMIF(GELİRLER!$H:$H,"D"&CY3&"-"&$DB$2&"-"&$DI$1&"-"&$DA$1,GELİRLER!$G:$G) -> 0 | DC3: =IF(DN3>0,SUMIF(PLAN!$P:$P,"D"&CY3&"-"&$DI$1&"-"&$DA$1,PLAN!F:F),SUMIF(PLAN!$P:$P,"D"&"-"&$DI$1&"-"&$DA$1,PLAN!F:F))-SUMIF(GELİRLER!$H:$H,"D"&CY3&"-"&$DC$2&"-"&$DI$1&"-"&$DA$1,GELİRLER!$G:$G) -> 0 | DD3: =IF(DN3>0,SUMIF(PLAN!$P:$P,"D"&CY3&"-"&$DI$1&"-"&$DA$1,PLAN!G:G),SUMIF(PLAN!$P:$P,"D"&"-"&$DI$1&"-"&$DA$1,PLAN!G:G))-SUMIF(GELİRLER!$H:$H,"D"&CY3&"-"&$DD$2&"-"&$DI$1&"-"&$DA$1,GELİRLER!$G:$G) -> 0 | DE3: =IF(DN3>0,SUMIF(PLAN!$P:$P,"D"&CY3&"-"&$DI$1&"-"&$DA$1,PLAN!H:H),SUMIF(PLAN!$P:$P,"D"&"-"&$DI$1&"-"&$DA$1,PLAN!H:H))-SUMIF(GELİRLER!$H:$H,"D"&CY3&"-"&$DE$2&"-"&$DI$1&"-"&$DA$1,GELİRLER!$G:$G) -> 0 | DF3: =IF(DN3>0,SUMIF(PLAN!$P:$P,"D"&CY3&"-"&$DI$1&"-"&$DA$1,PLAN!I:I),SUMIF(PLAN!$P:$P,"D"&"-"&$DI$1&"-"&$DA$1,PLAN!I:I))-SUMIF(GELİRLER!$H:$H,"D"&CY3&"-"&$DF$2&"-"&$DI$1&"-"&$DA$1,GELİRLER!$G:$G) -> 0 | DG3: =IF(DN3>0,SUMIF(PLAN!$P:$P,"D"&CY3&"-"&$DI$1&"-"&$DA$1,PLAN!J:J),SUMIF(PLAN!$P:$P,"D"&"-"&$DI$1&"-"&$DA$1,PLAN!J:J))-SUMIF(GELİRLER!$H:$H,"D"&CY3&"-"&$DG$2&"-"&$DI$1&"-"&$DA$1,GELİRLER!$G:$G) -> 0 | DH3: =IF(DN3>0,SUMIF(PLAN!$P:$P,"D"&CY3&"-"&$DI$1&"-"&$DA$1,PLAN!K:K),SUMIF(PLAN!$P:$P,"D"&"-"&$DI$1&"-"&$DA$1,PLAN!K:K))-SUMIF(GELİRLER!$H:$H,"D"&CY3&"-"&$DH$2&"-"&$DI$1&"-"&$DA$1,GELİRLER!$G:$G) -> 0 | DI3: =IF(DN3>0,SUMIF(PLAN!$P:$P,"D"&CY3&"-"&$DI$1&"-"&$DA$1,PLAN!L:L),SUMIF(PLAN!$P:$P,"D"&"-"&$DI$1&"-"&$DA$1,PLAN!L:L))-SUMIF(GELİRLER!$H:$H,"D"&CY3&"-"&$DI$2&"-"&$DI$1&"-"&$DA$1,GELİRLER!$G:$G) -> 0 | DJ3: =IF(DN3>0,SUMIF(PLAN!$P:$P,"D"&CY3&"-"&$DI$1&"-"&$DA$1,PLAN!M:M),SUMIF(PLAN!$P:$P,"D"&"-"&$DI$1&"-"&$DA$1,PLAN!M:M))-SUMIF(GELİRLER!$H:$H,"D"&CY3&"-"&$DJ$2&"-"&$DI$1&"-"&$DA$1,GELİRLER!$G:$G) -> 0 | DK3: =IF(DN3>0,SUMIF(PLAN!$P:$P,"D"&CY3&"-"&$DI$1&"-"&$DA$1,PLAN!N:N),SUMIF(PLAN!$P:$P,"D"&"-"&$DI$1&"-"&$DA$1,PLAN!N:N))-SUMIF(GELİRLER!$H:$H,"D"&CY3&"-"&$DK$2&"-"&$DI$1&"-"&$DA$1,GELİRLER!$G:$G) -> 0 | DL3: =IF(DN3>0,SUMIF(PLAN!$P:$P,"D"&CY3&"-"&$DI$1&"-"&$DA$1,PLAN!O:O),SUMIF(PLAN!$P:$P,"D"&"-"&$DI$1&"-"&$DA$1,PLAN!O:O))-SUMIF(GELİRLER!$H:$H,"D"&CY3&"-"&$DL$2&"-"&$DI$1&"-"&$DA$1,GELİRLER!$G:$G) -> 0 | DM3: ="D"&CY3&"-"&$DI$1&"-"&$DA$1 -> D1-2016-Aidat | DN3: =COUNTIF(PLAN!P:P,DM3) -> 2 | DO3: =COUNTIF(PLAN!P:P,"D"&CY3&"-"&$DI$1&"-YAKIT") -> 0 | DP3: =ROUND(SUMIF(YAKIT!$J:$J,"D"&CY3&"-"&$DA$2&"-"&$DI$1&"-"&"YAKIT",YAKIT!$I:$I)+IF(DO3>0,SUMIF(PLAN!$P:$P,"D"&CY3&"-"&$DI$1&"-"&"YAKIT",PLAN!D:D),SUMIF(PLAN!$P:$P,"D"&"-"&$DI$1&"-"&"YAKIT",PLAN!D:D))-SUMIF(GELİRLER!$H:$H,"D"&CY3&"-"&$DA$2&"-"&$DI$1&"-"&"YAKIT",GELİRLER!$G:$G),2) -> 0 | DQ3: =ROUND(SUMIF(YAKIT!$J:$J,"D"&CY3&"-"&$DB$2&"-"&$DI$1&"-"&"YAKIT",YAKIT!$I:$I)+IF(DO3>0,SUMIF(PLAN!$P:$P,"D"&CY3&"-"&$DI$1&"-"&"YAKIT",PLAN!E:E),SUMIF(PLAN!$P:$P,"D"&"-"&$DI$1&"-"&"YAKIT",PLAN!E:E))-SUMIF(GELİRLER!$H:$H,"D"&CY3&"-"&$DB$2&"-"&$DI$1&"-"&"YAKIT",GELİRLER!$G:$G),2) -> 0 | DR3: =ROUND(SUMIF(YAKIT!$J:$J,"D"&CY3&"-"&$DC$2&"-"&$DI$1&"-"&"YAKIT",YAKIT!$I:$I)+IF(DO3>0,SUMIF(PLAN!$P:$P,"D"&CY3&"-"&$DI$1&"-"&"YAKIT",PLAN!F:F),SUMIF(PLAN!$P:$P,"D"&"-"&$DI$1&"-"&"YAKIT",PLAN!F:F))-SUMIF(GELİRLER!$H:$H,"D"&CY3&"-"&$DC$2&"-"&$DI$1&"-"&"YAKIT",GELİRLER!$G:$G),2) -> 0 | DS3: =ROUND(SUMIF(YAKIT!$J:$J,"D"&CY3&"-"&$DD$2&"-"&$DI$1&"-"&"YAKIT",YAKIT!$I:$I)+IF(DO3>0,SUMIF(PLAN!$P:$P,"D"&CY3&"-"&$DI$1&"-"&"YAKIT",PLAN!G:G),SUMIF(PLAN!$P:$P,"D"&"-"&$DI$1&"-"&"YAKIT",PLAN!G:G))-SUMIF(GELİRLER!$H:$H,"D"&CY3&"-"&$DD$2&"-"&$DI$1&"-"&"YAKIT",GELİRLER!$G:$G),2) -> 0 | DT3: =ROUND(SUMIF(YAKIT!$J:$J,"D"&CY3&"-"&$DE$2&"-"&$DI$1&"-"&"YAKIT",YAKIT!$I:$I)+IF(DO3>0,SUMIF(PLAN!$P:$P,"D"&CY3&"-"&$DI$1&"-"&"YAKIT",PLAN!H:H),SUMIF(PLAN!$P:$P,"D"&"-"&$DI$1&"-"&"YAKIT",PLAN!H:H))-SUMIF(GELİRLER!$H:$H,"D"&CY3&"-"&$DE$2&"-"&$DI$1&"-"&"YAKIT",GELİRLER!$G:$G),2) -> 0 | DU3: =ROUND(SUMIF(YAKIT!$J:$J,"D"&CY3&"-"&$DF$2&"-"&$DI$1&"-"&"YAKIT",YAKIT!$I:$I)+IF(DO3>0,SUMIF(PLAN!$P:$P,"D"&CY3&"-"&$DI$1&"-"&"YAKIT",PLAN!I:I),SUMIF(PLAN!$P:$P,"D"&"-"&$DI$1&"-"&"YAKIT",PLAN!I:I))-SUMIF(GELİRLER!$H:$H,"D"&CY3&"-"&$DF$2&"-"&$DI$1&"-"&"YAKIT",GELİRLER!$G:$G),2) -> 0 | DV3: =ROUND(SUMIF(YAKIT!$J:$J,"D"&CY3&"-"&$DG$2&"-"&$DI$1&"-"&"YAKIT",YAKIT!$I:$I)+IF(DO3>0,SUMIF(PLAN!$P:$P,"D"&CY3&"-"&$DI$1&"-"&"YAKIT",PLAN!J:J),SUMIF(PLAN!$P:$P,"D"&"-"&$DI$1&"-"&"YAKIT",PLAN!J:J))-SUMIF(GELİRLER!$H:$H,"D"&CY3&"-"&$DG$2&"-"&$DI$1&"-"&"YAKIT",GELİRLER!$G:$G),2) -> 0 | DW3: =ROUND(SUMIF(YAKIT!$J:$J,"D"&CY3&"-"&$DH$2&"-"&$DI$1&"-"&"YAKIT",YAKIT!$I:$I)+IF(DO3>0,SUMIF(PLAN!$P:$P,"D"&CY3&"-"&$DI$1&"-"&"YAKIT",PLAN!K:K),SUMIF(PLAN!$P:$P,"D"&"-"&$DI$1&"-"&"YAKIT",PLAN!K:K))-SUMIF(GELİRLER!$H:$H,"D"&CY3&"-"&$DH$2&"-"&$DI$1&"-"&"YAKIT",GELİRLER!$G:$G),2) -> 0 | DX3: =ROUND(SUMIF(YAKIT!$J:$J,"D"&CY3&"-"&$DI$2&"-"&$DI$1&"-"&"YAKIT",YAKIT!$I:$I)+IF(DO3>0,SUMIF(PLAN!$P:$P,"D"&CY3&"-"&$DI$1&"-"&"YAKIT",PLAN!L:L),SUMIF(PLAN!$P:$P,"D"&"-"&$DI$1&"-"&"YAKIT",PLAN!L:L))-SUMIF(GELİRLER!$H:$H,"D"&CY3&"-"&$DI$2&"-"&$DI$1&"-"&"YAKIT",GELİRLER!$G:$G),2) -> 0 | DY3: =ROUND(SUMIF(YAKIT!$J:$J,"D"&CY3&"-"&$DJ$2&"-"&$DI$1&"-"&"YAKIT",YAKIT!$I:$I)+IF(DO3>0,SUMIF(PLAN!$P:$P,"D"&CY3&"-"&$DI$1&"-"&"YAKIT",PLAN!M:M),SUMIF(PLAN!$P:$P,"D"&"-"&$DI$1&"-"&"YAKIT",PLAN!M:M))-SUMIF(GELİRLER!$H:$H,"D"&CY3&"-"&$DJ$2&"-"&$DI$1&"-"&"YAKIT",GELİRLER!$G:$G),2) -> 0 | DZ3: =ROUND(SUMIF(YAKIT!$J:$J,"D"&CY3&"-"&$DK$2&"-"&$DI$1&"-"&"YAKIT",YAKIT!$I:$I)+IF(DO3>0,SUMIF(PLAN!$P:$P,"D"&CY3&"-"&$DI$1&"-"&"YAKIT",PLAN!N:N),SUMIF(PLAN!$P:$P,"D"&"-"&$DI$1&"-"&"YAKIT",PLAN!N:N))-SUMIF(GELİRLER!$H:$H,"D"&CY3&"-"&$DK$2&"-"&$DI$1&"-"&"YAKIT",GELİRLER!$G:$G),2) -> 0 | EA3: =ROUND(SUMIF(YAKIT!$J:$J,"D"&CY3&"-"&$DL$2&"-"&$DI$1&"-"&"YAKIT",YAKIT!$I:$I)+IF(DO3>0,SUMIF(PLAN!$P:$P,"D"&CY3&"-"&$DI$1&"-"&"YAKIT",PLAN!O:O),SUMIF(PLAN!$P:$P,"D"&"-"&$DI$1&"-"&"YAKIT",PLAN!O:O))-SUMIF(GELİRLER!$H:$H,"D"&CY3&"-"&$DL$2&"-"&$DI$1&"-"&"YAKIT",GELİRLER!$G:$G),2) -> 0
A4: KALAN | B4: 100 | C4: 20 | D4: 45 | E4: 0 | F4: 0 | G4: 0 | H4: 0 | I4: 0 | J4: 0 | K4: 0 | L4: 0 | M4: 0 | N4: =SUMIF(GELİRLER!$H:$H,"D"&$W$1&"-"&N2&"-"&$V$1&"-"&$N$1,GELİRLER!$G:$G) -> 0 | O4: =SUMIF(GELİRLER!$H:$H,"D"&$W$1&"-"&O2&"-"&$V$1&"-"&$N$1,GELİRLER!$G:$G) -> 0 | P4: =SUMIF(GELİRLER!$H:$H,"D"&$W$1&"-"&P2&"-"&$V$1&"-"&$N$1,GELİRLER!$G:$G) -> 0 | Q4: =SUMIF(GELİRLER!$H:$H,"D"&$W$1&"-"&Q2&"-"&$V$1&"-"&$N$1,GELİRLER!$G:$G) -> 0 | R4: =SUMIF(GELİRLER!$H:$H,"D"&$W$1&"-"&R2&"-"&$V$1&"-"&$N$1,GELİRLER!$G:$G) -> 0 | S4: =SUMIF(GELİRLER!$H:$H,"D"&$W$1&"-"&S2&"-"&$V$1&"-"&$N$1,GELİRLER!$G:$G) -> 0 | T4: =SUMIF(GELİRLER!$H:$H,"D"&$W$1&"-"&T2&"-"&$V$1&"-"&$N$1,GELİRLER!$G:$G) -> 0 | U4: =SUMIF(GELİRLER!$H:$H,"D"&$W$1&"-"&U2&"-"&$V$1&"-"&$N$1,GELİRLER!$G:$G) -> 0 | V4: =SUMIF(GELİRLER!$H:$H,"D"&$W$1&"-"&V2&"-"&$V$1&"-"&$N$1,GELİRLER!$G:$G) -> 0 | W4: =SUMIF(GELİRLER!$H:$H,"D"&$W$1&"-"&W2&"-"&$V$1&"-"&$N$1,GELİRLER!$G:$G) -> 0 | X4: =SUMIF(GELİRLER!$H:$H,"D"&$W$1&"-"&X2&"-"&$V$1&"-"&$N$1,GELİRLER!$G:$G) -> 0 | Y4: =SUMIF(GELİRLER!$H:$H,"D"&$W$1&"-"&Y2&"-"&$V$1&"-"&$N$1,GELİRLER!$G:$G) -> 0 | Z4: =SUMIF(GELİRLER!$H:$H,"D"&$AI$1&"-"&Z2&"-"&$AH$1&"-"&$Z$1,GELİRLER!$G:$G) -> 0 | AA4: =SUMIF(GELİRLER!$H:$H,"D"&$AI$1&"-"&AA2&"-"&$AH$1&"-"&$Z$1,GELİRLER!$G:$G) -> 0 | AB4: =SUMIF(GELİRLER!$H:$H,"D"&$AI$1&"-"&AB2&"-"&$AH$1&"-"&$Z$1,GELİRLER!$G:$G) -> 0 | AC4: =SUMIF(GELİRLER!$H:$H,"D"&$AI$1&"-"&AC2&"-"&$AH$1&"-"&$Z$1,GELİRLER!$G:$G) -> 0 | AD4: =SUMIF(GELİRLER!$H:$H,"D"&$AI$1&"-"&AD2&"-"&$AH$1&"-"&$Z$1,GELİRLER!$G:$G) -> 0 | AE4: =SUMIF(GELİRLER!$H:$H,"D"&$AI$1&"-"&AE2&"-"&$AH$1&"-"&$Z$1,GELİRLER!$G:$G) -> 0 | AF4: =SUMIF(GELİRLER!$H:$H,"D"&$AI$1&"-"&AF2&"-"&$AH$1&"-"&$Z$1,GELİRLER!$G:$G) -> 0 | AG4: =SUMIF(GELİRLER!$H:$H,"D"&$AI$1&"-"&AG2&"-"&$AH$1&"-"&$Z$1,GELİRLER!$G:$G) -> 0 | AH4: =SUMIF(GELİRLER!$H:$H,"D"&$AI$1&"-"&AH2&"-"&$AH$1&"-"&$Z$1,GELİRLER!$G:$G) -> 0 | AI4: =SUMIF(GELİRLER!$H:$H,"D"&$AI$1&"-"&AI2&"-"&$AH$1&"-"&$Z$1,GELİRLER!$G:$G) -> 0 | AJ4: =SUMIF(GELİRLER!$H:$H,"D"&$AI$1&"-"&AJ2&"-"&$AH$1&"-"&$Z$1,GELİRLER!$G:$G) -> 0 | AK4: =SUMIF(GELİRLER!$H:$H,"D"&$AI$1&"-"&AK2&"-"&$AH$1&"-"&$Z$1,GELİRLER!$G:$G) -> 0 | AL4: =SUMIF(GELİRLER!$H:$H,"D"&$AU$1&"-"&AL2&"-"&$AT$1&"-"&$AL$1,GELİRLER!$G:$G) -> 0 | AM4: =SUMIF(GELİRLER!$H:$H,"D"&$AU$1&"-"&AM2&"-"&$AT$1&"-"&$AL$1,GELİRLER!$G:$G) -> 0 | AN4: =SUMIF(GELİRLER!$H:$H,"D"&$AU$1&"-"&AN2&"-"&$AT$1&"-"&$AL$1,GELİRLER!$G:$G) -> 0 | AO4: =SUMIF(GELİRLER!$H:$H,"D"&$AU$1&"-"&AO2&"-"&$AT$1&"-"&$AL$1,GELİRLER!$G:$G) -> 0 | AP4: =SUMIF(GELİRLER!$H:$H,"D"&$AU$1&"-"&AP2&"-"&$AT$1&"-"&$AL$1,GELİRLER!$G:$G) -> 0 | AQ4: =SUMIF(GELİRLER!$H:$H,"D"&$AU$1&"-"&AQ2&"-"&$AT$1&"-"&$AL$1,GELİRLER!$G:$G) -> 0 | AR4: =SUMIF(GELİRLER!$H:$H,"D"&$AU$1&"-"&AR2&"-"&$AT$1&"-"&$AL$1,GELİRLER!$G:$G) -> 0 | AS4: =SUMIF(GELİRLER!$H:$H,"D"&$AU$1&"-"&AS2&"-"&$AT$1&"-"&$AL$1,GELİRLER!$G:$G) -> 0 | AT4: =SUMIF(GELİRLER!$H:$H,"D"&$AU$1&"-"&AT2&"-"&$AT$1&"-"&$AL$1,GELİRLER!$G:$G) -> 0 | AU4: =SUMIF(GELİRLER!$H:$H,"D"&$AU$1&"-"&AU2&"-"&$AT$1&"-"&$AL$1,GELİRLER!$G:$G) -> 0 | AV4: =SUMIF(GELİRLER!$H:$H,"D"&$AU$1&"-"&AV2&"-"&$AT$1&"-"&$AL$1,GELİRLER!$G:$G) -> 0 | AW4: =SUMIF(GELİRLER!$H:$H,"D"&$AU$1&"-"&AW2&"-"&$AT$1&"-"&$AL$1,GELİRLER!$G:$G) -> 0 | AX4: =SUMIF(GELİRLER!$H:$H,"D"&$BG$1&"-"&AX2&"-"&$BF$1&"-"&$AX$1,GELİRLER!$G:$G) -> 0 | AY4: =SUMIF(GELİRLER!$H:$H,"D"&$BG$1&"-"&AY2&"-"&$BF$1&"-"&$AX$1,GELİRLER!$G:$G) -> 0 | AZ4: =SUMIF(GELİRLER!$H:$H,"D"&$BG$1&"-"&AZ2&"-"&$BF$1&"-"&$AX$1,GELİRLER!$G:$G) -> 0 | BA4: =SUMIF(GELİRLER!$H:$H,"D"&$BG$1&"-"&BA2&"-"&$BF$1&"-"&$AX$1,GELİRLER!$G:$G) -> 0 | BB4: =SUMIF(GELİRLER!$H:$H,"D"&$BG$1&"-"&BB2&"-"&$BF$1&"-"&$AX$1,GELİRLER!$G:$G) -> 0 | BC4: =SUMIF(GELİRLER!$H:$H,"D"&$BG$1&"-"&BC2&"-"&$BF$1&"-"&$AX$1,GELİRLER!$G:$G) -> 0 | BD4: =SUMIF(GELİRLER!$H:$H,"D"&$BG$1&"-"&BD2&"-"&$BF$1&"-"&$AX$1,GELİRLER!$G:$G) -> 0 | BE4: =SUMIF(GELİRLER!$H:$H,"D"&$BG$1&"-"&BE2&"-"&$BF$1&"-"&$AX$1,GELİRLER!$G:$G) -> 0 | BF4: =SUMIF(GELİRLER!$H:$H,"D"&$BG$1&"-"&BF2&"-"&$BF$1&"-"&$AX$1,GELİRLER!$G:$G) -> 0 | BG4: =SUMIF(GELİRLER!$H:$H,"D"&$BG$1&"-"&BG2&"-"&$BF$1&"-"&$AX$1,GELİRLER!$G:$G) -> 0 | BH4: =SUMIF(GELİRLER!$H:$H,"D"&$BG$1&"-"&BH2&"-"&$BF$1&"-"&$AX$1,GELİRLER!$G:$G) -> 0 | BI4: =SUMIF(GELİRLER!$H:$H,"D"&$BG$1&"-"&BI2&"-"&$BF$1&"-"&$AX$1,GELİRLER!$G:$G) -> 0 | CY4: =IF(ÜYE!B3>"",ÜYE!A3,"") -> 2 | CZ4: =IF(ÜYE!B3>"",ÜYE!A3&"-"&ÜYE!B3,"") -> 2-Arslan | DA4: =IF(DN4>0,SUMIF(PLAN!$P:$P,"D"&CY4&"-"&$DI$1&"-"&$DA$1,PLAN!D:D),SUMIF(PLAN!$P:$P,"D"&"-"&$DI$1&"-"&$DA$1,PLAN!D:D))-SUMIF(GELİRLER!$H:$H,"D"&CY4&"-"&$DA$2&"-"&$DI$1&"-"&$DA$1,GELİRLER!$G:$G) -> 100 | DB4: =IF(DN4>0,SUMIF(PLAN!$P:$P,"D"&CY4&"-"&$DI$1&"-"&$DA$1,PLAN!E:E),SUMIF(PLAN!$P:$P,"D"&"-"&$DI$1&"-"&$DA$1,PLAN!E:E))-SUMIF(GELİRLER!$H:$H,"D"&CY4&"-"&$DB$2&"-"&$DI$1&"-"&$DA$1,GELİRLER!$G:$G) -> 20 | DC4: =IF(DN4>0,SUMIF(PLAN!$P:$P,"D"&CY4&"-"&$DI$1&"-"&$DA$1,PLAN!F:F),SUMIF(PLAN!$P:$P,"D"&"-"&$DI$1&"-"&$DA$1,PLAN!F:F))-SUMIF(GELİRLER!$H:$H,"D"&CY4&"-"&$DC$2&"-"&$DI$1&"-"&$DA$1,GELİRLER!$G:$G) -> 45 | DD4: =IF(DN4>0,SUMIF(PLAN!$P:$P,"D"&CY4&"-"&$DI$1&"-"&$DA$1,PLAN!G:G),SUMIF(PLAN!$P:$P,"D"&"-"&$DI$1&"-"&$DA$1,PLAN!G:G))-SUMIF(GELİRLER!$H:$H,"D"&CY4&"-"&$DD$2&"-"&$DI$1&"-"&$DA$1,GELİRLER!$G:$G) -> 0 | DE4: =IF(DN4>0,SUMIF(PLAN!$P:$P,"D"&CY4&"-"&$DI$1&"-"&$DA$1,PLAN!H:H),SUMIF(PLAN!$P:$P,"D"&"-"&$DI$1&"-"&$DA$1,PLAN!H:H))-SUMIF(GELİRLER!$H:$H,"D"&CY4&"-"&$DE$2&"-"&$DI$1&"-"&$DA$1,GELİRLER!$G:$G) -> 0 | DF4: =IF(DN4>0,SUMIF(PLAN!$P:$P,"D"&CY4&"-"&$DI$1&"-"&$DA$1,PLAN!I:I),SUMIF(PLAN!$P:$P,"D"&"-"&$DI$1&"-"&$DA$1,PLAN!I:I))-SUMIF(GELİRLER!$H:$H,"D"&CY4&"-"&$DF$2&"-"&$DI$1&"-"&$DA$1,GELİRLER!$G:$G) -> 0 | DG4: =IF(DN4>0,SUMIF(PLAN!$P:$P,"D"&CY4&"-"&$DI$1&"-"&$DA$1,PLAN!J:J),SUMIF(PLAN!$P:$P,"D"&"-"&$DI$1&"-"&$DA$1,PLAN!J:J))-SUMIF(GELİRLER!$H:$H,"D"&CY4&"-"&$DG$2&"-"&$DI$1&"-"&$DA$1,GELİRLER!$G:$G) -> 0 | DH4: =IF(DN4>0,SUMIF(PLAN!$P:$P,"D"&CY4&"-"&$DI$1&"-"&$DA$1,PLAN!K:K),SUMIF(PLAN!$P:$P,"D"&"-"&$DI$1&"-"&$DA$1,PLAN!K:K))-SUMIF(GELİRLER!$H:$H,"D"&CY4&"-"&$DH$2&"-"&$DI$1&"-"&$DA$1,GELİRLER!$G:$G) -> 0 | DI4: =IF(DN4>0,SUMIF(PLAN!$P:$P,"D"&CY4&"-"&$DI$1&"-"&$DA$1,PLAN!L:L),SUMIF(PLAN!$P:$P,"D"&"-"&$DI$1&"-"&$DA$1,PLAN!L:L))-SUMIF(GELİRLER!$H:$H,"D"&CY4&"-"&$DI$2&"-"&$DI$1&"-"&$DA$1,GELİRLER!$G:$G) -> 0 | DJ4: =IF(DN4>0,SUMIF(PLAN!$P:$P,"D"&CY4&"-"&$DI$1&"-"&$DA$1,PLAN!M:M),SUMIF(PLAN!$P:$P,"D"&"-"&$DI$1&"-"&$DA$1,PLAN!M:M))-SUMIF(GELİRLER!$H:$H,"D"&CY4&"-"&$DJ$2&"-"&$DI$1&"-"&$DA$1,GELİRLER!$G:$G) -> 0 | DK4: =IF(DN4>0,SUMIF(PLAN!$P:$P,"D"&CY4&"-"&$DI$1&"-"&$DA$1,PLAN!N:N),SUMIF(PLAN!$P:$P,"D"&"-"&$DI$1&"-"&$DA$1,PLAN!N:N))-SUMIF(GELİRLER!$H:$H,"D"&CY4&"-"&$DK$2&"-"&$DI$1&"-"&$DA$1,GELİRLER!$G:$G) -> 0 | DL4: =IF(DN4>0,SUMIF(PLAN!$P:$P,"D"&CY4&"-"&$DI$1&"-"&$DA$1,PLAN!O:O),SUMIF(PLAN!$P:$P,"D"&"-"&$DI$1&"-"&$DA$1,PLAN!O:O))-SUMIF(GELİRLER!$H:$H,"D"&CY4&"-"&$DL$2&"-"&$DI$1&"-"&$DA$1,GELİRLER!$G:$G) -> 0 | DM4: D2-2016-Aidat | DN4: =COUNTIF(PLAN!P:P,DM4) -> 0 | DO4: =COUNTIF(PLAN!P:P,"D"&CY4&"-"&$DI$1&"-YAKIT") -> 0 | DP4: =ROUND(SUMIF(YAKIT!$J:$J,"D"&CY4&"-"&$DA$2&"-"&$DI$1&"-"&"YAKIT",YAKIT!$I:$I)+IF(DO4>0,SUMIF(PLAN!$P:$P,"D"&CY4&"-"&$DI$1&"-"&"YAKIT",PLAN!D:D),SUMIF(PLAN!$P:$P,"D"&"-"&$DI$1&"-"&"YAKIT",PLAN!D:D))-SUMIF(GELİRLER!$H:$H,"D"&CY4&"-"&$DA$2&"-"&$DI$1&"-"&"YAKIT",GELİRLER!$G:$G),2) -> 0 | DQ4: =ROUND(SUMIF(YAKIT!$J:$J,"D"&CY4&"-"&$DB$2&"-"&$DI$1&"-"&"YAKIT",YAKIT!$I:$I)+IF(DO4>0,SUMIF(PLAN!$P:$P,"D"&CY4&"-"&$DI$1&"-"&"YAKIT",PLAN!E:E),SUMIF(PLAN!$P:$P,"D"&"-"&$DI$1&"-"&"YAKIT",PLAN!E:E))-SUMIF(GELİRLER!$H:$H,"D"&CY4&"-"&$DB$2&"-"&$DI$1&"-"&"YAKIT",GELİRLER!$G:$G),2) -> 0 | DR4: =ROUND(SUMIF(YAKIT!$J:$J,"D"&CY4&"-"&$DC$2&"-"&$DI$1&"-"&"YAKIT",YAKIT!$I:$I)+IF(DO4>0,SUMIF(PLAN!$P:$P,"D"&CY4&"-"&$DI$1&"-"&"YAKIT",PLAN!F:F),SUMIF(PLAN!$P:$P,"D"&"-"&$DI$1&"-"&"YAKIT",PLAN!F:F))-SUMIF(GELİRLER!$H:$H,"D"&CY4&"-"&$DC$2&"-"&$DI$1&"-"&"YAKIT",GELİRLER!$G:$G),2) -> 0 | DS4: =ROUND(SUMIF(YAKIT!$J:$J,"D"&CY4&"-"&$DD$2&"-"&$DI$1&"-"&"YAKIT",YAKIT!$I:$I)+IF(DO4>0,SUMIF(PLAN!$P:$P,"D"&CY4&"-"&$DI$1&"-"&"YAKIT",PLAN!G:G),SUMIF(PLAN!$P:$P,"D"&"-"&$DI$1&"-"&"YAKIT",PLAN!G:G))-SUMIF(GELİRLER!$H:$H,"D"&CY4&"-"&$DD$2&"-"&$DI$1&"-"&"YAKIT",GELİRLER!$G:$G),2) -> 0 | DT4: =ROUND(SUMIF(YAKIT!$J:$J,"D"&CY4&"-"&$DE$2&"-"&$DI$1&"-"&"YAKIT",YAKIT!$I:$I)+IF(DO4>0,SUMIF(PLAN!$P:$P,"D"&CY4&"-"&$DI$1&"-"&"YAKIT",PLAN!H:H),SUMIF(PLAN!$P:$P,"D"&"-"&$DI$1&"-"&"YAKIT",PLAN!H:H))-SUMIF(GELİRLER!$H:$H,"D"&CY4&"-"&$DE$2&"-"&$DI$1&"-"&"YAKIT",GELİRLER!$G:$G),2) -> 0 | DU4: =ROUND(SUMIF(YAKIT!$J:$J,"D"&CY4&"-"&$DF$2&"-"&$DI$1&"-"&"YAKIT",YAKIT!$I:$I)+IF(DO4>0,SUMIF(PLAN!$P:$P,"D"&CY4&"-"&$DI$1&"-"&"YAKIT",PLAN!I:I),SUMIF(PLAN!$P:$P,"D"&"-"&$DI$1&"-"&"YAKIT",PLAN!I:I))-SUMIF(GELİRLER!$H:$H,"D"&CY4&"-"&$DF$2&"-"&$DI$1&"-"&"YAKIT",GELİRLER!$G:$G),2) -> 0 | DV4: =ROUND(SUMIF(YAKIT!$J:$J,"D"&CY4&"-"&$DG$2&"-"&$DI$1&"-"&"YAKIT",YAKIT!$I:$I)+IF(DO4>0,SUMIF(PLAN!$P:$P,"D"&CY4&"-"&$DI$1&"-"&"YAKIT",PLAN!J:J),SUMIF(PLAN!$P:$P,"D"&"-"&$DI$1&"-"&"YAKIT",PLAN!J:J))-SUMIF(GELİRLER!$H:$H,"D"&CY4&"-"&$DG$2&"-"&$DI$1&"-"&"YAKIT",GELİRLER!$G:$G),2) -> 0 | DW4: =ROUND(SUMIF(YAKIT!$J:$J,"D"&CY4&"-"&$DH$2&"-"&$DI$1&"-"&"YAKIT",YAKIT!$I:$I)+IF(DO4>0,SUMIF(PLAN!$P:$P,"D"&CY4&"-"&$DI$1&"-"&"YAKIT",PLAN!K:K),SUMIF(PLAN!$P:$P,"D"&"-"&$DI$1&"-"&"YAKIT",PLAN!K:K))-SUMIF(GELİRLER!$H:$H,"D"&CY4&"-"&$DH$2&"-"&$DI$1&"-"&"YAKIT",GELİRLER!$G:$G),2) -> 0 | DX4: =ROUND(SUMIF(YAKIT!$J:$J,"D"&CY4&"-"&$DI$2&"-"&$DI$1&"-"&"YAKIT",YAKIT!$I:$I)+IF(DO4>0,SUMIF(PLAN!$P:$P,"D"&CY4&"-"&$DI$1&"-"&"YAKIT",PLAN!L:L),SUMIF(PLAN!$P:$P,"D"&"-"&$DI$1&"-"&"YAKIT",PLAN!L:L))-SUMIF(GELİRLER!$H:$H,"D"&CY4&"-"&$DI$2&"-"&$DI$1&"-"&"YAKIT",GELİRLER!$G:$G),2) -> 0 | DY4: =ROUND(SUMIF(YAKIT!$J:$J,"D"&CY4&"-"&$DJ$2&"-"&$DI$1&"-"&"YAKIT",YAKIT!$I:$I)+IF(DO4>0,SUMIF(PLAN!$P:$P,"D"&CY4&"-"&$DI$1&"-"&"YAKIT",PLAN!M:M),SUMIF(PLAN!$P:$P,"D"&"-"&$DI$1&"-"&"YAKIT",PLAN!M:M))-SUMIF(GELİRLER!$H:$H,"D"&CY4&"-"&$DJ$2&"-"&$DI$1&"-"&"YAKIT",GELİRLER!$G:$G),2) -> 0 | DZ4: =ROUND(SUMIF(YAKIT!$J:$J,"D"&CY4&"-"&$DK$2&"-"&$DI$1&"-"&"YAKIT",YAKIT!$I:$I)+IF(DO4>0,SUMIF(PLAN!$P:$P,"D"&CY4&"-"&$DI$1&"-"&"YAKIT",PLAN!N:N),SUMIF(PLAN!$P:$P,"D"&"-"&$DI$1&"-"&"YAKIT",PLAN!N:N))-SUMIF(GELİRLER!$H:$H,"D"&CY4&"-"&$DK$2&"-"&$DI$1&"-"&"YAKIT",GELİRLER!$G:$G),2) -> 0 | EA4: =ROUND(SUMIF(YAKIT!$J:$J,"D"&CY4&"-"&$DL$2&"-"&$DI$1&"-"&"YAKIT",YAKIT!$I:$I)+IF(DO4>0,SUMIF(PLAN!$P:$P,"D"&CY4&"-"&$DI$1&"-"&"YAKIT",PLAN!O:O),SUMIF(PLAN!$P:$P,"D"&"-"&$DI$1&"-"&"YAKIT",PLAN!O:O))-SUMIF(GELİRLER!$H:$H,"D"&CY4&"-"&$DL$2&"-"&$DI$1&"-"&"YAKIT",GELİRLER!$G:$G),2) -> 0
N5: =+N3-N4 -> 0 | O5: 0 | P5: 0 | Q5: 0 | R5: 0 | S5: =+S3-S4 -> 0 | T5: =+T3-T4 -> 0 | U5: 0 | V5: 0 | W5: 0 | X5: 0 | Y5: 0 | Z5: 0 | AA5: 0 | AB5: 0 | AC5: 0 | AD5: 0 | AE5: 0 | AF5: 0 | AG5: 0 | AH5: 0 | AI5: 0 | AJ5: 0 | AK5: 0 | AL5: 0 | AM5: 0 | AN5: 0 | AO5: 0 | AP5: 0 | AQ5: 0 | AR5: 0 | AS5: 0 | AT5: 0 | AU5: 0 | AV5: 0 | AW5: 0 | AX5: 0 | AY5: 0 | AZ5: 0 | BA5: 0 | BB5: 0 | BC5: 0 | BD5: 0 | BE5: 0 | BF5: 0 | BG5: 0 | BH5: 0 | BI5: 0 | CY5: =IF(ÜYE!B4>"",ÜYE!A4,"") -> 3 | CZ5: =IF(ÜYE!B4>"",ÜYE!A4&"-"&ÜYE!B4,"") -> 3-Dilek | DA5: =IF(DN5>0,SUMIF(PLAN!$P:$P,"D"&CY5&"-"&$DI$1&"-"&$DA$1,PLAN!D:D),SUMIF(PLAN!$P:$P,"D"&"-"&$DI$1&"-"&$DA$1,PLAN!D:D))-SUMIF(GELİRLER!$H:$H,"D"&CY5&"-"&$DA$2&"-"&$DI$1&"-"&$DA$1,GELİRLER!$G:$G) -> 100 | DB5: =IF(DN5>0,SUMIF(PLAN!$P:$P,"D"&CY5&"-"&$DI$1&"-"&$DA$1,PLAN!E:E),SUMIF(PLAN!$P:$P,"D"&"-"&$DI$1&"-"&$DA$1,PLAN!E:E))-SUMIF(GELİRLER!$H:$H,"D"&CY5&"-"&$DB$2&"-"&$DI$1&"-"&$DA$1,GELİRLER!$G:$G) -> 20 | DC5: =IF(DN5>0,SUMIF(PLAN!$P:$P,"D"&CY5&"-"&$DI$1&"-"&$DA$1,PLAN!F:F),SUMIF(PLAN!$P:$P,"D"&"-"&$DI$1&"-"&$DA$1,PLAN!F:F))-SUMIF(GELİRLER!$H:$H,"D"&CY5&"-"&$DC$2&"-"&$DI$1&"-"&$DA$1,GELİRLER!$G:$G) -> 45 | DD5: =IF(DN5>0,SUMIF(PLAN!$P:$P,"D"&CY5&"-"&$DI$1&"-"&$DA$1,PLAN!G:G),SUMIF(PLAN!$P:$P,"D"&"-"&$DI$1&"-"&$DA$1,PLAN!G:G))-SUMIF(GELİRLER!$H:$H,"D"&CY5&"-"&$DD$2&"-"&$DI$1&"-"&$DA$1,GELİRLER!$G:$G) -> 0 | DE5: =IF(DN5>0,SUMIF(PLAN!$P:$P,"D"&CY5&"-"&$DI$1&"-"&$DA$1,PLAN!H:H),SUMIF(PLAN!$P:$P,"D"&"-"&$DI$1&"-"&$DA$1,PLAN!H:H))-SUMIF(GELİRLER!$H:$H,"D"&CY5&"-"&$DE$2&"-"&$DI$1&"-"&$DA$1,GELİRLER!$G:$G) -> 0 | DF5: =IF(DN5>0,SUMIF(PLAN!$P:$P,"D"&CY5&"-"&$DI$1&"-"&$DA$1,PLAN!I:I),SUMIF(PLAN!$P:$P,"D"&"-"&$DI$1&"-"&$DA$1,PLAN!I:I))-SUMIF(GELİRLER!$H:$H,"D"&CY5&"-"&$DF$2&"-"&$DI$1&"-"&$DA$1,GELİRLER!$G:$G) -> 0 | DG5: =IF(DN5>0,SUMIF(PLAN!$P:$P,"D"&CY5&"-"&$DI$1&"-"&$DA$1,PLAN!J:J),SUMIF(PLAN!$P:$P,"D"&"-"&$DI$1&"-"&$DA$1,PLAN!J:J))-SUMIF(GELİRLER!$H:$H,"D"&CY5&"-"&$DG$2&"-"&$DI$1&"-"&$DA$1,GELİRLER!$G:$G) -> 0 | DH5: =IF(DN5>0,SUMIF(PLAN!$P:$P,"D"&CY5&"-"&$DI$1&"-"&$DA$1,PLAN!K:K),SUMIF(PLAN!$P:$P,"D"&"-"&$DI$1&"-"&$DA$1,PLAN!K:K))-SUMIF(GELİRLER!$H:$H,"D"&CY5&"-"&$DH$2&"-"&$DI$1&"-"&$DA$1,GELİRLER!$G:$G) -> 0 | DI5: =IF(DN5>0,SUMIF(PLAN!$P:$P,"D"&CY5&"-"&$DI$1&"-"&$DA$1,PLAN!L:L),SUMIF(PLAN!$P:$P,"D"&"-"&$DI$1&"-"&$DA$1,PLAN!L:L))-SUMIF(GELİRLER!$H:$H,"D"&CY5&"-"&$DI$2&"-"&$DI$1&"-"&$DA$1,GELİRLER!$G:$G) -> 0 | DJ5: =IF(DN5>0,SUMIF(PLAN!$P:$P,"D"&CY5&"-"&$DI$1&"-"&$DA$1,PLAN!M:M),SUMIF(PLAN!$P:$P,"D"&"-"&$DI$1&"-"&$DA$1,PLAN!M:M))-SUMIF(GELİRLER!$H:$H,"D"&CY5&"-"&$DJ$2&"-"&$DI$1&"-"&$DA$1,GELİRLER!$G:$G) -> 0 | DK5: =IF(DN5>0,SUMIF(PLAN!$P:$P,"D"&CY5&"-"&$DI$1&"-"&$DA$1,PLAN!N:N),SUMIF(PLAN!$P:$P,"D"&"-"&$DI$1&"-"&$DA$1,PLAN!N:N))-SUMIF(GELİRLER!$H:$H,"D"&CY5&"-"&$DK$2&"-"&$DI$1&"-"&$DA$1,GELİRLER!$G:$G) -> 0 | DL5: =IF(DN5>0,SUMIF(PLAN!$P:$P,"D"&CY5&"-"&$DI$1&"-"&$DA$1,PLAN!O:O),SUMIF(PLAN!$P:$P,"D"&"-"&$DI$1&"-"&$DA$1,PLAN!O:O))-SUMIF(GELİRLER!$H:$H,"D"&CY5&"-"&$DL$2&"-"&$DI$1&"-"&$DA$1,GELİRLER!$G:$G) -> 0 | DM5: D3-2016-Aidat | DN5: =COUNTIF(PLAN!P:P,DM5) -> 0 | DO5: =COUNTIF(PLAN!P:P,"D"&CY5&"-"&$DI$1&"-YAKIT") -> 0 | DP5: =ROUND(SUMIF(YAKIT!$J:$J,"D"&CY5&"-"&$DA$2&"-"&$DI$1&"-"&"YAKIT",YAKIT!$I:$I)+IF(DO5>0,SUMIF(PLAN!$P:$P,"D"&CY5&"-"&$DI$1&"-"&"YAKIT",PLAN!D:D),SUMIF(PLAN!$P:$P,"D"&"-"&$DI$1&"-"&"YAKIT",PLAN!D:D))-SUMIF(GELİRLER!$H:$H,"D"&CY5&"-"&$DA$2&"-"&$DI$1&"-"&"YAKIT",GELİRLER!$G:$G),2) -> 0 | DQ5: =ROUND(SUMIF(YAKIT!$J:$J,"D"&CY5&"-"&$DB$2&"-"&$DI$1&"-"&"YAKIT",YAKIT!$I:$I)+IF(DO5>0,SUMIF(PLAN!$P:$P,"D"&CY5&"-"&$DI$1&"-"&"YAKIT",PLAN!E:E),SUMIF(PLAN!$P:$P,"D"&"-"&$DI$1&"-"&"YAKIT",PLAN!E:E))-SUMIF(GELİRLER!$H:$H,"D"&CY5&"-"&$DB$2&"-"&$DI$1&"-"&"YAKIT",GELİRLER!$G:$G),2) -> 0 | DR5: =ROUND(SUMIF(YAKIT!$J:$J,"D"&CY5&"-"&$DC$2&"-"&$DI$1&"-"&"YAKIT",YAKIT!$I:$I)+IF(DO5>0,SUMIF(PLAN!$P:$P,"D"&CY5&"-"&$DI$1&"-"&"YAKIT",PLAN!F:F),SUMIF(PLAN!$P:$P,"D"&"-"&$DI$1&"-"&"YAKIT",PLAN!F:F))-SUMIF(GELİRLER!$H:$H,"D"&CY5&"-"&$DC$2&"-"&$DI$1&"-"&"YAKIT",GELİRLER!$G:$G),2) -> 0 | DS5: =ROUND(SUMIF(YAKIT!$J:$J,"D"&CY5&"-"&$DD$2&"-"&$DI$1&"-"&"YAKIT",YAKIT!$I:$I)+IF(DO5>0,SUMIF(PLAN!$P:$P,"D"&CY5&"-"&$DI$1&"-"&"YAKIT",PLAN!G:G),SUMIF(PLAN!$P:$P,"D"&"-"&$DI$1&"-"&"YAKIT",PLAN!G:G))-SUMIF(GELİRLER!$H:$H,"D"&CY5&"-"&$DD$2&"-"&$DI$1&"-"&"YAKIT",GELİRLER!$G:$G),2) -> 0 | DT5: =ROUND(SUMIF(YAKIT!$J:$J,"D"&CY5&"-"&$DE$2&"-"&$DI$1&"-"&"YAKIT",YAKIT!$I:$I)+IF(DO5>0,SUMIF(PLAN!$P:$P,"D"&CY5&"-"&$DI$1&"-"&"YAKIT",PLAN!H:H),SUMIF(PLAN!$P:$P,"D"&"-"&$DI$1&"-"&"YAKIT",PLAN!H:H))-SUMIF(GELİRLER!$H:$H,"D"&CY5&"-"&$DE$2&"-"&$DI$1&"-"&"YAKIT",GELİRLER!$G:$G),2) -> 0 | DU5: =ROUND(SUMIF(YAKIT!$J:$J,"D"&CY5&"-"&$DF$2&"-"&$DI$1&"-"&"YAKIT",YAKIT!$I:$I)+IF(DO5>0,SUMIF(PLAN!$P:$P,"D"&CY5&"-"&$DI$1&"-"&"YAKIT",PLAN!I:I),SUMIF(PLAN!$P:$P,"D"&"-"&$DI$1&"-"&"YAKIT",PLAN!I:I))-SUMIF(GELİRLER!$H:$H,"D"&CY5&"-"&$DF$2&"-"&$DI$1&"-"&"YAKIT",GELİRLER!$G:$G),2) -> 0 | DV5: =ROUND(SUMIF(YAKIT!$J:$J,"D"&CY5&"-"&$DG$2&"-"&$DI$1&"-"&"YAKIT",YAKIT!$I:$I)+IF(DO5>0,SUMIF(PLAN!$P:$P,"D"&CY5&"-"&$DI$1&"-"&"YAKIT",PLAN!J:J),SUMIF(PLAN!$P:$P,"D"&"-"&$DI$1&"-"&"YAKIT",PLAN!J:J))-SUMIF(GELİRLER!$H:$H,"D"&CY5&"-"&$DG$2&"-"&$DI$1&"-"&"YAKIT",GELİRLER!$G:$G),2) -> 0 | DW5: =ROUND(SUMIF(YAKIT!$J:$J,"D"&CY5&"-"&$DH$2&"-"&$DI$1&"-"&"YAKIT",YAKIT!$I:$I)+IF(DO5>0,SUMIF(PLAN!$P:$P,"D"&CY5&"-"&$DI$1&"-"&"YAKIT",PLAN!K:K),SUMIF(PLAN!$P:$P,"D"&"-"&$DI$1&"-"&"YAKIT",PLAN!K:K))-SUMIF(GELİRLER!$H:$H,"D"&CY5&"-"&$DH$2&"-"&$DI$1&"-"&"YAKIT",GELİRLER!$G:$G),2) -> 0 | DX5: =ROUND(SUMIF(YAKIT!$J:$J,"D"&CY5&"-"&$DI$2&"-"&$DI$1&"-"&"YAKIT",YAKIT!$I:$I)+IF(DO5>0,SUMIF(PLAN!$P:$P,"D"&CY5&"-"&$DI$1&"-"&"YAKIT",PLAN!L:L),SUMIF(PLAN!$P:$P,"D"&"-"&$DI$1&"-"&"YAKIT",PLAN!L:L))-SUMIF(GELİRLER!$H:$H,"D"&CY5&"-"&$DI$2&"-"&$DI$1&"-"&"YAKIT",GELİRLER!$G:$G),2) -> 0 | DY5: =ROUND(SUMIF(YAKIT!$J:$J,"D"&CY5&"-"&$DJ$2&"-"&$DI$1&"-"&"YAKIT",YAKIT!$I:$I)+IF(DO5>0,SUMIF(PLAN!$P:$P,"D"&CY5&"-"&$DI$1&"-"&"YAKIT",PLAN!M:M),SUMIF(PLAN!$P:$P,"D"&"-"&$DI$1&"-"&"YAKIT",PLAN!M:M))-SUMIF(GELİRLER!$H:$H,"D"&CY5&"-"&$DJ$2&"-"&$DI$1&"-"&"YAKIT",GELİRLER!$G:$G),2) -> 0 | DZ5: =ROUND(SUMIF(YAKIT!$J:$J,"D"&CY5&"-"&$DK$2&"-"&$DI$1&"-"&"YAKIT",YAKIT!$I:$I)+IF(DO5>0,SUMIF(PLAN!$P:$P,"D"&CY5&"-"&$DI$1&"-"&"YAKIT",PLAN!N:N),SUMIF(PLAN!$P:$P,"D"&"-"&$DI$1&"-"&"YAKIT",PLAN!N:N))-SUMIF(GELİRLER!$H:$H,"D"&CY5&"-"&$DK$2&"-"&$DI$1&"-"&"YAKIT",GELİRLER!$G:$G),2) -> 0 | EA5: =ROUND(SUMIF(YAKIT!$J:$J,"D"&CY5&"-"&$DL$2&"-"&$DI$1&"-"&"YAKIT",YAKIT!$I:$I)+IF(DO5>0,SUMIF(PLAN!$P:$P,"D"&CY5&"-"&$DI$1&"-"&"YAKIT",PLAN!O:O),SUMIF(PLAN!$P:$P,"D"&"-"&$DI$1&"-"&"YAKIT",PLAN!O:O))-SUMIF(GELİRLER!$H:$H,"D"&CY5&"-"&$DL$2&"-"&$DI$1&"-"&"YAKIT",GELİRLER!$G:$G),2) -> 0
A6: DEMİRBAŞ | B6: =+N3 -> 0 | C6: 0 | D6: 0 | E6: 0 | F6: 0 | G6: 0 | H6: 0 | I6: 0 | J6: 0 | K6: 0 | L6: 0 | M6: 0 | O6: AİDAT | W6: 2016 | Y6: =COUNTIF(PLAN!P:P,Z6) -> 3 | Z6: ="D"&$X$6&"-"&$W$6&"-"&$O$6 -> D-2016-AİDAT | BT6: Şubat | BU6: Aidat | BX6: GELİR TÜR'Ü | BY6: OCAK | BZ6: ŞUBAT | CA6: MART | CB6: NİSAN | CC6: MAYIS | CD6: HAZİRAN | CE6: TEMMUZ | CF6: AĞUSTOS | CG6: EYLÜL | CH6: EKİM | CI6: KASIM | CJ6: ARALIK | CY6: =IF(ÜYE!B5>"",ÜYE!A5,"") -> 4 | CZ6: =IF(ÜYE!B5>"",ÜYE!A5&"-"&ÜYE!B5,"") -> 4-Kırıkçı | DA6: =IF(DN6>0,SUMIF(PLAN!$P:$P,"D"&CY6&"-"&$DI$1&"-"&$DA$1,PLAN!D:D),SUMIF(PLAN!$P:$P,"D"&"-"&$DI$1&"-"&$DA$1,PLAN!D:D))-SUMIF(GELİRLER!$H:$H,"D"&CY6&"-"&$DA$2&"-"&$DI$1&"-"&$DA$1,GELİRLER!$G:$G) -> 100 | DB6: =IF(DN6>0,SUMIF(PLAN!$P:$P,"D"&CY6&"-"&$DI$1&"-"&$DA$1,PLAN!E:E),SUMIF(PLAN!$P:$P,"D"&"-"&$DI$1&"-"&$DA$1,PLAN!E:E))-SUMIF(GELİRLER!$H:$H,"D"&CY6&"-"&$DB$2&"-"&$DI$1&"-"&$DA$1,GELİRLER!$G:$G) -> 20 | DC6: =IF(DN6>0,SUMIF(PLAN!$P:$P,"D"&CY6&"-"&$DI$1&"-"&$DA$1,PLAN!F:F),SUMIF(PLAN!$P:$P,"D"&"-"&$DI$1&"-"&$DA$1,PLAN!F:F))-SUMIF(GELİRLER!$H:$H,"D"&CY6&"-"&$DC$2&"-"&$DI$1&"-"&$DA$1,GELİRLER!$G:$G) -> 45 | DD6: =IF(DN6>0,SUMIF(PLAN!$P:$P,"D"&CY6&"-"&$DI$1&"-"&$DA$1,PLAN!G:G),SUMIF(PLAN!$P:$P,"D"&"-"&$DI$1&"-"&$DA$1,PLAN!G:G))-SUMIF(GELİRLER!$H:$H,"D"&CY6&"-"&$DD$2&"-"&$DI$1&"-"&$DA$1,GELİRLER!$G:$G) -> 0 | DE6: =IF(DN6>0,SUMIF(PLAN!$P:$P,"D"&CY6&"-"&$DI$1&"-"&$DA$1,PLAN!H:H),SUMIF(PLAN!$P:$P,"D"&"-"&$DI$1&"-"&$DA$1,PLAN!H:H))-SUMIF(GELİRLER!$H:$H,"D"&CY6&"-"&$DE$2&"-"&$DI$1&"-"&$DA$1,GELİRLER!$G:$G) -> 0 | DF6: =IF(DN6>0,SUMIF(PLAN!$P:$P,"D"&CY6&"-"&$DI$1&"-"&$DA$1,PLAN!I:I),SUMIF(PLAN!$P:$P,"D"&"-"&$DI$1&"-"&$DA$1,PLAN!I:I))-SUMIF(GELİRLER!$H:$H,"D"&CY6&"-"&$DF$2&"-"&$DI$1&"-"&$DA$1,GELİRLER!$G:$G) -> 0 | DG6: =IF(DN6>0,SUMIF(PLAN!$P:$P,"D"&CY6&"-"&$DI$1&"-"&$DA$1,PLAN!J:J),SUMIF(PLAN!$P:$P,"D"&"-"&$DI$1&"-"&$DA$1,PLAN!J:J))-SUMIF(GELİRLER!$H:$H,"D"&CY6&"-"&$DG$2&"-"&$DI$1&"-"&$DA$1,GELİRLER!$G:$G) -> 0 | DH6: =IF(DN6>0,SUMIF(PLAN!$P:$P,"D"&CY6&"-"&$DI$1&"-"&$DA$1,PLAN!K:K),SUMIF(PLAN!$P:$P,"D"&"-"&$DI$1&"-"&$DA$1,PLAN!K:K))-SUMIF(GELİRLER!$H:$H,"D"&CY6&"-"&$DH$2&"-"&$DI$1&"-"&$DA$1,GELİRLER!$G:$G) -> 0 | DI6: =IF(DN6>0,SUMIF(PLAN!$P:$P,"D"&CY6&"-"&$DI$1&"-"&$DA$1,PLAN!L:L),SUMIF(PLAN!$P:$P,"D"&"-"&$DI$1&"-"&$DA$1,PLAN!L:L))-SUMIF(GELİRLER!$H:$H,"D"&CY6&"-"&$DI$2&"-"&$DI$1&"-"&$DA$1,GELİRLER!$G:$G) -> 0 | DJ6: =IF(DN6>0,SUMIF(PLAN!$P:$P,"D"&CY6&"-"&$DI$1&"-"&$DA$1,PLAN!M:M),SUMIF(PLAN!$P:$P,"D"&"-"&$DI$1&"-"&$DA$1,PLAN!M:M))-SUMIF(GELİRLER!$H:$H,"D"&CY6&"-"&$DJ$2&"-"&$DI$1&"-"&$DA$1,GELİRLER!$G:$G) -> 0 | DK6: =IF(DN6>0,SUMIF(PLAN!$P:$P,"D"&CY6&"-"&$DI$1&"-"&$DA$1,PLAN!N:N),SUMIF(PLAN!$P:$P,"D"&"-"&$DI$1&"-"&$DA$1,PLAN!N:N))-SUMIF(GELİRLER!$H:$H,"D"&CY6&"-"&$DK$2&"-"&$DI$1&"-"&$DA$1,GELİRLER!$G:$G) -> 0 | DL6: =IF(DN6>0,SUMIF(PLAN!$P:$P,"D"&CY6&"-"&$DI$1&"-"&$DA$1,PLAN!O:O),SUMIF(PLAN!$P:$P,"D"&"-"&$DI$1&"-"&$DA$1,PLAN!O:O))-SUMIF(GELİRLER!$H:$H,"D"&CY6&"-"&$DL$2&"-"&$DI$1&"-"&$DA$1,GELİRLER!$G:$G) -> 0 | DM6: ="D"&CY6&"-"&$DI$1&"-"&$DA$1 -> D4-2016-Aidat | DN6: =COUNTIF(PLAN!P:P,DM6) -> 0 | DO6: =COUNTIF(PLAN!P:P,"D"&CY6&"-"&$DI$1&"-YAKIT") -> 0 | DP6: =ROUND(SUMIF(YAKIT!$J:$J,"D"&CY6&"-"&$DA$2&"-"&$DI$1&"-"&"YAKIT",YAKIT!$I:$I)+IF(DO6>0,SUMIF(PLAN!$P:$P,"D"&CY6&"-"&$DI$1&"-"&"YAKIT",PLAN!D:D),SUMIF(PLAN!$P:$P,"D"&"-"&$DI$1&"-"&"YAKIT",PLAN!D:D))-SUMIF(GELİRLER!$H:$H,"D"&CY6&"-"&$DA$2&"-"&$DI$1&"-"&"YAKIT",GELİRLER!$G:$G),2) -> 0 | DQ6: =ROUND(SUMIF(YAKIT!$J:$J,"D"&CY6&"-"&$DB$2&"-"&$DI$1&"-"&"YAKIT",YAKIT!$I:$I)+IF(DO6>0,SUMIF(PLAN!$P:$P,"D"&CY6&"-"&$DI$1&"-"&"YAKIT",PLAN!E:E),SUMIF(PLAN!$P:$P,"D"&"-"&$DI$1&"-"&"YAKIT",PLAN!E:E))-SUMIF(GELİRLER!$H:$H,"D"&CY6&"-"&$DB$2&"-"&$DI$1&"-"&"YAKIT",GELİRLER!$G:$G),2) -> 0 | DR6: =ROUND(SUMIF(YAKIT!$J:$J,"D"&CY6&"-"&$DC$2&"-"&$DI$1&"-"&"YAKIT",YAKIT!$I:$I)+IF(DO6>0,SUMIF(PLAN!$P:$P,"D"&CY6&"-"&$DI$1&"-"&"YAKIT",PLAN!F:F),SUMIF(PLAN!$P:$P,"D"&"-"&$DI$1&"-"&"YAKIT",PLAN!F:F))-SUMIF(GELİRLER!$H:$H,"D"&CY6&"-"&$DC$2&"-"&$DI$1&"-"&"YAKIT",GELİRLER!$G:$G),2) -> 0 | DS6: =ROUND(SUMIF(YAKIT!$J:$J,"D"&CY6&"-"&$DD$2&"-"&$DI$1&"-"&"YAKIT",YAKIT!$I:$I)+IF(DO6>0,SUMIF(PLAN!$P:$P,"D"&CY6&"-"&$DI$1&"-"&"YAKIT",PLAN!G:G),SUMIF(PLAN!$P:$P,"D"&"-"&$DI$1&"-"&"YAKIT",PLAN!G:G))-SUMIF(GELİRLER!$H:$H,"D"&CY6&"-"&$DD$2&"-"&$DI$1&"-"&"YAKIT",GELİRLER!$G:$G),2) -> 0 | DT6: =ROUND(SUMIF(YAKIT!$J:$J,"D"&CY6&"-"&$DE$2&"-"&$DI$1&"-"&"YAKIT",YAKIT!$I:$I)+IF(DO6>0,SUMIF(PLAN!$P:$P,"D"&CY6&"-"&$DI$1&"-"&"YAKIT",PLAN!H:H),SUMIF(PLAN!$P:$P,"D"&"-"&$DI$1&"-"&"YAKIT",PLAN!H:H))-SUMIF(GELİRLER!$H:$H,"D"&CY6&"-"&$DE$2&"-"&$DI$1&"-"&"YAKIT",GELİRLER!$G:$G),2) -> 0 | DU6: =ROUND(SUMIF(YAKIT!$J:$J,"D"&CY6&"-"&$DF$2&"-"&$DI$1&"-"&"YAKIT",YAKIT!$I:$I)+IF(DO6>0,SUMIF(PLAN!$P:$P,"D"&CY6&"-"&$DI$1&"-"&"YAKIT",PLAN!I:I),SUMIF(PLAN!$P:$P,"D"&"-"&$DI$1&"-"&"YAKIT",PLAN!I:I))-SUMIF(GELİRLER!$H:$H,"D"&CY6&"-"&$DF$2&"-"&$DI$1&"-"&"YAKIT",GELİRLER!$G:$G),2) -> 0 | DV6: =ROUND(SUMIF(YAKIT!$J:$J,"D"&CY6&"-"&$DG$2&"-"&$DI$1&"-"&"YAKIT",YAKIT!$I:$I)+IF(DO6>0,SUMIF(PLAN!$P:$P,"D"&CY6&"-"&$DI$1&"-"&"YAKIT",PLAN!J:J),SUMIF(PLAN!$P:$P,"D"&"-"&$DI$1&"-"&"YAKIT",PLAN!J:J))-SUMIF(GELİRLER!$H:$H,"D"&CY6&"-"&$DG$2&"-"&$DI$1&"-"&"YAKIT",GELİRLER!$G:$G),2) -> 0 | DW6: =ROUND(SUMIF(YAKIT!$J:$J,"D"&CY6&"-"&$DH$2&"-"&$DI$1&"-"&"YAKIT",YAKIT!$I:$I)+IF(DO6>0,SUMIF(PLAN!$P:$P,"D"&CY6&"-"&$DI$1&"-"&"YAKIT",PLAN!K:K),SUMIF(PLAN!$P:$P,"D"&"-"&$DI$1&"-"&"YAKIT",PLAN!K:K))-SUMIF(GELİRLER!$H:$H,"D"&CY6&"-"&$DH$2&"-"&$DI$1&"-"&"YAKIT",GELİRLER!$G:$G),2) -> 0 | DX6: =ROUND(SUMIF(YAKIT!$J:$J,"D"&CY6&"-"&$DI$2&"-"&$DI$1&"-"&"YAKIT",YAKIT!$I:$I)+IF(DO6>0,SUMIF(PLAN!$P:$P,"D"&CY6&"-"&$DI$1&"-"&"YAKIT",PLAN!L:L),SUMIF(PLAN!$P:$P,"D"&"-"&$DI$1&"-"&"YAKIT",PLAN!L:L))-SUMIF(GELİRLER!$H:$H,"D"&CY6&"-"&$DI$2&"-"&$DI$1&"-"&"YAKIT",GELİRLER!$G:$G),2) -> 0 | DY6: =ROUND(SUMIF(YAKIT!$J:$J,"D"&CY6&"-"&$DJ$2&"-"&$DI$1&"-"&"YAKIT",YAKIT!$I:$I)+IF(DO6>0,SUMIF(PLAN!$P:$P,"D"&CY6&"-"&$DI$1&"-"&"YAKIT",PLAN!M:M),SUMIF(PLAN!$P:$P,"D"&"-"&$DI$1&"-"&"YAKIT",PLAN!M:M))-SUMIF(GELİRLER!$H:$H,"D"&CY6&"-"&$DJ$2&"-"&$DI$1&"-"&"YAKIT",GELİRLER!$G:$G),2) -> 0 | DZ6: =ROUND(SUMIF(YAKIT!$J:$J,"D"&CY6&"-"&$DK$2&"-"&$DI$1&"-"&"YAKIT",YAKIT!$I:$I)+IF(DO6>0,SUMIF(PLAN!$P:$P,"D"&CY6&"-"&$DI$1&"-"&"YAKIT",PLAN!N:N),SUMIF(PLAN!$P:$P,"D"&"-"&$DI$1&"-"&"YAKIT",PLAN!N:N))-SUMIF(GELİRLER!$H:$H,"D"&CY6&"-"&$DK$2&"-"&$DI$1&"-"&"YAKIT",GELİRLER!$G:$G),2) -> 0 | EA6: =ROUND(SUMIF(YAKIT!$J:$J,"D"&CY6&"-"&$DL$2&"-"&$DI$1&"-"&"YAKIT",YAKIT!$I:$I)+IF(DO6>0,SUMIF(PLAN!$P:$P,"D"&CY6&"-"&$DI$1&"-"&"YAKIT",PLAN!O:O),SUMIF(PLAN!$P:$P,"D"&"-"&$DI$1&"-"&"YAKIT",PLAN!O:O))-SUMIF(GELİRLER!$H:$H,"D"&CY6&"-"&$DL$2&"-"&$DI$1&"-"&"YAKIT",GELİRLER!$G:$G),2) -> 0
A7: TAHSİLAT | B7: 0 | C7: 0 | D7: 0 | E7: 0 | F7: 0 | G7: 0 | H7: 0 | I7: 0 | J7: 0 | K7: 0 | L7: 0 | M7: 0 | O7: OCAK | P7: ŞUBAT | Q7: MART | R7: NİSAN | S7: MAYIS | T7: HAZİRAN | U7: TEMMUZ | V7: AĞUSTOS | W7: EYLÜL | X7: EKİM | Y7: KASIM | Z7: ARALIK | BU7: =IF(BU6=A2,BT9,IF(BU6=A6,BT13,IF(BU6=A10,BT17,IF(BU6=A14,BT21,IF(BU6=A18,BT25,""))))) -> 20 | BX7: =IF($BU$6=$A$2,A2,IF($BU$6=$A$6,A6,IF($BU$6=$A$10,A10,IF($BU$6=$A$14,A14,IF($BU$6=$A$18,A18,""))))) -> AİDAT | BY7: 100 | BZ7: 20 | CA7: 45 | CB7: 0 | CC7: 0 | CD7: 0 | CE7: 0 | CF7: 0 | CG7: 0 | CH7: 0 | CI7: 0 | CJ7: 0 | CY7: =IF(ÜYE!B6>"",ÜYE!A6,"") -> 5 | CZ7: =IF(ÜYE!B6>"",ÜYE!A6&"-"&ÜYE!B6,"") -> 5-Semra | DA7: =IF(DN7>0,SUMIF(PLAN!$P:$P,"D"&CY7&"-"&$DI$1&"-"&$DA$1,PLAN!D:D),SUMIF(PLAN!$P:$P,"D"&"-"&$DI$1&"-"&$DA$1,PLAN!D:D))-SUMIF(GELİRLER!$H:$H,"D"&CY7&"-"&$DA$2&"-"&$DI$1&"-"&$DA$1,GELİRLER!$G:$G) -> 100 | DB7: =IF(DN7>0,SUMIF(PLAN!$P:$P,"D"&CY7&"-"&$DI$1&"-"&$DA$1,PLAN!E:E),SUMIF(PLAN!$P:$P,"D"&"-"&$DI$1&"-"&$DA$1,PLAN!E:E))-SUMIF(GELİRLER!$H:$H,"D"&CY7&"-"&$DB$2&"-"&$DI$1&"-"&$DA$1,GELİRLER!$G:$G) -> 20 | DC7: =IF(DN7>0,SUMIF(PLAN!$P:$P,"D"&CY7&"-"&$DI$1&"-"&$DA$1,PLAN!F:F),SUMIF(PLAN!$P:$P,"D"&"-"&$DI$1&"-"&$DA$1,PLAN!F:F))-SUMIF(GELİRLER!$H:$H,"D"&CY7&"-"&$DC$2&"-"&$DI$1&"-"&$DA$1,GELİRLER!$G:$G) -> 45 | DD7: =IF(DN7>0,SUMIF(PLAN!$P:$P,"D"&CY7&"-"&$DI$1&"-"&$DA$1,PLAN!G:G),SUMIF(PLAN!$P:$P,"D"&"-"&$DI$1&"-"&$DA$1,PLAN!G:G))-SUMIF(GELİRLER!$H:$H,"D"&CY7&"-"&$DD$2&"-"&$DI$1&"-"&$DA$1,GELİRLER!$G:$G) -> 0 | DE7: =IF(DN7>0,SUMIF(PLAN!$P:$P,"D"&CY7&"-"&$DI$1&"-"&$DA$1,PLAN!H:H),SUMIF(PLAN!$P:$P,"D"&"-"&$DI$1&"-"&$DA$1,PLAN!H:H))-SUMIF(GELİRLER!$H:$H,"D"&CY7&"-"&$DE$2&"-"&$DI$1&"-"&$DA$1,GELİRLER!$G:$G) -> 0 | DF7: =IF(DN7>0,SUMIF(PLAN!$P:$P,"D"&CY7&"-"&$DI$1&"-"&$DA$1,PLAN!I:I),SUMIF(PLAN!$P:$P,"D"&"-"&$DI$1&"-"&$DA$1,PLAN!I:I))-SUMIF(GELİRLER!$H:$H,"D"&CY7&"-"&$DF$2&"-"&$DI$1&"-"&$DA$1,GELİRLER!$G:$G) -> 0 | DG7: =IF(DN7>0,SUMIF(PLAN!$P:$P,"D"&CY7&"-"&$DI$1&"-"&$DA$1,PLAN!J:J),SUMIF(PLAN!$P:$P,"D"&"-"&$DI$1&"-"&$DA$1,PLAN!J:J))-SUMIF(GELİRLER!$H:$H,"D"&CY7&"-"&$DG$2&"-"&$DI$1&"-"&$DA$1,GELİRLER!$G:$G) -> 0 | DH7: =IF(DN7>0,SUMIF(PLAN!$P:$P,"D"&CY7&"-"&$DI$1&"-"&$DA$1,PLAN!K:K),SUMIF(PLAN!$P:$P,"D"&"-"&$DI$1&"-"&$DA$1,PLAN!K:K))-SUMIF(GELİRLER!$H:$H,"D"&CY7&"-"&$DH$2&"-"&$DI$1&"-"&$DA$1,GELİRLER!$G:$G) -> 0 | DI7: =IF(DN7>0,SUMIF(PLAN!$P:$P,"D"&CY7&"-"&$DI$1&"-"&$DA$1,PLAN!L:L),SUMIF(PLAN!$P:$P,"D"&"-"&$DI$1&"-"&$DA$1,PLAN!L:L))-SUMIF(GELİRLER!$H:$H,"D"&CY7&"-"&$DI$2&"-"&$DI$1&"-"&$DA$1,GELİRLER!$G:$G) -> 0 | DJ7: =IF(DN7>0,SUMIF(PLAN!$P:$P,"D"&CY7&"-"&$DI$1&"-"&$DA$1,PLAN!M:M),SUMIF(PLAN!$P:$P,"D"&"-"&$DI$1&"-"&$DA$1,PLAN!M:M))-SUMIF(GELİRLER!$H:$H,"D"&CY7&"-"&$DJ$2&"-"&$DI$1&"-"&$DA$1,GELİRLER!$G:$G) -> 0 | DK7: =IF(DN7>0,SUMIF(PLAN!$P:$P,"D"&CY7&"-"&$DI$1&"-"&$DA$1,PLAN!N:N),SUMIF(PLAN!$P:$P,"D"&"-"&$DI$1&"-"&$DA$1,PLAN!N:N))-SUMIF(GELİRLER!$H:$H,"D"&CY7&"-"&$DK$2&"-"&$DI$1&"-"&$DA$1,GELİRLER!$G:$G) -> 0 | DL7: =IF(DN7>0,SUMIF(PLAN!$P:$P,"D"&CY7&"-"&$DI$1&"-"&$DA$1,PLAN!O:O),SUMIF(PLAN!$P:$P,"D"&"-"&$DI$1&"-"&$DA$1,PLAN!O:O))-SUMIF(GELİRLER!$H:$H,"D"&CY7&"-"&$DL$2&"-"&$DI$1&"-"&$DA$1,GELİRLER!$G:$G) -> 0 | DM7: D5-2016-Aidat | DN7: =COUNTIF(PLAN!P:P,DM7) -> 0 | DO7: =COUNTIF(PLAN!P:P,"D"&CY7&"-"&$DI$1&"-YAKIT") -> 0 | DP7: =ROUND(SUMIF(YAKIT!$J:$J,"D"&CY7&"-"&$DA$2&"-"&$DI$1&"-"&"YAKIT",YAKIT!$I:$I)+IF(DO7>0,SUMIF(PLAN!$P:$P,"D"&CY7&"-"&$DI$1&"-"&"YAKIT",PLAN!D:D),SUMIF(PLAN!$P:$P,"D"&"-"&$DI$1&"-"&"YAKIT",PLAN!D:D))-SUMIF(GELİRLER!$H:$H,"D"&CY7&"-"&$DA$2&"-"&$DI$1&"-"&"YAKIT",GELİRLER!$G:$G),2) -> 0 | DQ7: =ROUND(SUMIF(YAKIT!$J:$J,"D"&CY7&"-"&$DB$2&"-"&$DI$1&"-"&"YAKIT",YAKIT!$I:$I)+IF(DO7>0,SUMIF(PLAN!$P:$P,"D"&CY7&"-"&$DI$1&"-"&"YAKIT",PLAN!E:E),SUMIF(PLAN!$P:$P,"D"&"-"&$DI$1&"-"&"YAKIT",PLAN!E:E))-SUMIF(GELİRLER!$H:$H,"D"&CY7&"-"&$DB$2&"-"&$DI$1&"-"&"YAKIT",GELİRLER!$G:$G),2) -> 0 | DR7: =ROUND(SUMIF(YAKIT!$J:$J,"D"&CY7&"-"&$DC$2&"-"&$DI$1&"-"&"YAKIT",YAKIT!$I:$I)+IF(DO7>0,SUMIF(PLAN!$P:$P,"D"&CY7&"-"&$DI$1&"-"&"YAKIT",PLAN!F:F),SUMIF(PLAN!$P:$P,"D"&"-"&$DI$1&"-"&"YAKIT",PLAN!F:F))-SUMIF(GELİRLER!$H:$H,"D"&CY7&"-"&$DC$2&"-"&$DI$1&"-"&"YAKIT",GELİRLER!$G:$G),2) -> 0 | DS7: =ROUND(SUMIF(YAKIT!$J:$J,"D"&CY7&"-"&$DD$2&"-"&$DI$1&"-"&"YAKIT",YAKIT!$I:$I)+IF(DO7>0,SUMIF(PLAN!$P:$P,"D"&CY7&"-"&$DI$1&"-"&"YAKIT",PLAN!G:G),SUMIF(PLAN!$P:$P,"D"&"-"&$DI$1&"-"&"YAKIT",PLAN!G:G))-SUMIF(GELİRLER!$H:$H,"D"&CY7&"-"&$DD$2&"-"&$DI$1&"-"&"YAKIT",GELİRLER!$G:$G),2) -> 0 | DT7: =ROUND(SUMIF(YAKIT!$J:$J,"D"&CY7&"-"&$DE$2&"-"&$DI$1&"-"&"YAKIT",YAKIT!$I:$I)+IF(DO7>0,SUMIF(PLAN!$P:$P,"D"&CY7&"-"&$DI$1&"-"&"YAKIT",PLAN!H:H),SUMIF(PLAN!$P:$P,"D"&"-"&$DI$1&"-"&"YAKIT",PLAN!H:H))-SUMIF(GELİRLER!$H:$H,"D"&CY7&"-"&$DE$2&"-"&$DI$1&"-"&"YAKIT",GELİRLER!$G:$G),2) -> 0 | DU7: =ROUND(SUMIF(YAKIT!$J:$J,"D"&CY7&"-"&$DF$2&"-"&$DI$1&"-"&"YAKIT",YAKIT!$I:$I)+IF(DO7>0,SUMIF(PLAN!$P:$P,"D"&CY7&"-"&$DI$1&"-"&"YAKIT",PLAN!I:I),SUMIF(PLAN!$P:$P,"D"&"-"&$DI$1&"-"&"YAKIT",PLAN!I:I))-SUMIF(GELİRLER!$H:$H,"D"&CY7&"-"&$DF$2&"-"&$DI$1&"-"&"YAKIT",GELİRLER!$G:$G),2) -> 0 | DV7: =ROUND(SUMIF(YAKIT!$J:$J,"D"&CY7&"-"&$DG$2&"-"&$DI$1&"-"&"YAKIT",YAKIT!$I:$I)+IF(DO7>0,SUMIF(PLAN!$P:$P,"D"&CY7&"-"&$DI$1&"-"&"YAKIT",PLAN!J:J),SUMIF(PLAN!$P:$P,"D"&"-"&$DI$1&"-"&"YAKIT",PLAN!J:J))-SUMIF(GELİRLER!$H:$H,"D"&CY7&"-"&$DG$2&"-"&$DI$1&"-"&"YAKIT",GELİRLER!$G:$G),2) -> 0 | DW7: =ROUND(SUMIF(YAKIT!$J:$J,"D"&CY7&"-"&$DH$2&"-"&$DI$1&"-"&"YAKIT",YAKIT!$I:$I)+IF(DO7>0,SUMIF(PLAN!$P:$P,"D"&CY7&"-"&$DI$1&"-"&"YAKIT",PLAN!K:K),SUMIF(PLAN!$P:$P,"D"&"-"&$DI$1&"-"&"YAKIT",PLAN!K:K))-SUMIF(GELİRLER!$H:$H,"D"&CY7&"-"&$DH$2&"-"&$DI$1&"-"&"YAKIT",GELİRLER!$G:$G),2) -> 0 | DX7: =ROUND(SUMIF(YAKIT!$J:$J,"D"&CY7&"-"&$DI$2&"-"&$DI$1&"-"&"YAKIT",YAKIT!$I:$I)+IF(DO7>0,SUMIF(PLAN!$P:$P,"D"&CY7&"-"&$DI$1&"-"&"YAKIT",PLAN!L:L),SUMIF(PLAN!$P:$P,"D"&"-"&$DI$1&"-"&"YAKIT",PLAN!L:L))-SUMIF(GELİRLER!$H:$H,"D"&CY7&"-"&$DI$2&"-"&$DI$1&"-"&"YAKIT",GELİRLER!$G:$G),2) -> 0 | DY7: =ROUND(SUMIF(YAKIT!$J:$J,"D"&CY7&"-"&$DJ$2&"-"&$DI$1&"-"&"YAKIT",YAKIT!$I:$I)+IF(DO7>0,SUMIF(PLAN!$P:$P,"D"&CY7&"-"&$DI$1&"-"&"YAKIT",PLAN!M:M),SUMIF(PLAN!$P:$P,"D"&"-"&$DI$1&"-"&"YAKIT",PLAN!M:M))-SUMIF(GELİRLER!$H:$H,"D"&CY7&"-"&$DJ$2&"-"&$DI$1&"-"&"YAKIT",GELİRLER!$G:$G),2) -> 0 | DZ7: =ROUND(SUMIF(YAKIT!$J:$J,"D"&CY7&"-"&$DK$2&"-"&$DI$1&"-"&"YAKIT",YAKIT!$I:$I)+IF(DO7>0,SUMIF(PLAN!$P:$P,"D"&CY7&"-"&$DI$1&"-"&"YAKIT",PLAN!N:N),SUMIF(PLAN!$P:$P,"D"&"-"&$DI$1&"-"&"YAKIT",PLAN!N:N))-SUMIF(GELİRLER!$H:$H,"D"&CY7&"-"&$DK$2&"-"&$DI$1&"-"&"YAKIT",GELİRLER!$G:$G),2) -> 0 | EA7: =ROUND(SUMIF(YAKIT!$J:$J,"D"&CY7&"-"&$DL$2&"-"&$DI$1&"-"&"YAKIT",YAKIT!$I:$I)+IF(DO7>0,SUMIF(PLAN!$P:$P,"D"&CY7&"-"&$DI$1&"-"&"YAKIT",PLAN!O:O),SUMIF(PLAN!$P:$P,"D"&"-"&$DI$1&"-"&"YAKIT",PLAN!O:O))-SUMIF(GELİRLER!$H:$H,"D"&CY7&"-"&$DL$2&"-"&$DI$1&"-"&"YAKIT",GELİRLER!$G:$G),2) -> 0
A8: KALAN | B8: 0 | C8: 0 | D8: 0 | E8: 0 | F8: 0 | G8: 0 | H8: 0 | I8: 0 | J8: 0 | K8: 0 | L8: 0 | M8: 0 | N8: BORÇLANDIRMA | O8: =IF($Y6>0,SUMIF(PLAN!$P:$P,"D"&X6&"-"&W6&"-"&O6,PLAN!$D:$D),SUMIF(PLAN!$P:$P,"D"&"-"&W6&"-"&O6,PLAN!$D:$D)) -> 100 | P8: =IF($Y$6>0,SUMIF(PLAN!$P:$P,"D"&$X$6&"-"&$W$6&"-"&$O$6,PLAN!E:E),SUMIF(PLAN!$P:$P,"D"&"-"&$W$6&"-"&$O$6,PLAN!E:E)) -> 20 | Q8: =IF($Y$6>0,SUMIF(PLAN!$P:$P,"D"&$X$6&"-"&$W$6&"-"&$O$6,PLAN!F:F),SUMIF(PLAN!$P:$P,"D"&"-"&$W$6&"-"&$O$6,PLAN!F:F)) -> 45 | R8: =IF($Y$6>0,SUMIF(PLAN!$P:$P,"D"&$X$6&"-"&$W$6&"-"&$O$6,PLAN!G:G),SUMIF(PLAN!$P:$P,"D"&"-"&$W$6&"-"&$O$6,PLAN!G:G)) -> 0 | S8: =IF($Y$6>0,SUMIF(PLAN!$P:$P,"D"&$X$6&"-"&$W$6&"-"&$O$6,PLAN!H:H),SUMIF(PLAN!$P:$P,"D"&"-"&$W$6&"-"&$O$6,PLAN!H:H)) -> 0 | T8: =IF($Y$6>0,SUMIF(PLAN!$P:$P,"D"&$X$6&"-"&$W$6&"-"&$O$6,PLAN!I:I),SUMIF(PLAN!$P:$P,"D"&"-"&$W$6&"-"&$O$6,PLAN!I:I)) -> 0 | U8: =IF($Y$6>0,SUMIF(PLAN!$P:$P,"D"&$X$6&"-"&$W$6&"-"&$O$6,PLAN!J:J),SUMIF(PLAN!$P:$P,"D"&"-"&$W$6&"-"&$O$6,PLAN!J:J)) -> 0 | V8: =IF($Y$6>0,SUMIF(PLAN!$P:$P,"D"&$X$6&"-"&$W$6&"-"&$O$6,PLAN!K:K),SUMIF(PLAN!$P:$P,"D"&"-"&$W$6&"-"&$O$6,PLAN!K:K)) -> 0 | W8: =IF($Y$6>0,SUMIF(PLAN!$P:$P,"D"&$X$6&"-"&$W$6&"-"&$O$6,PLAN!L:L),SUMIF(PLAN!$P:$P,"D"&"-"&$W$6&"-"&$O$6,PLAN!L:L)) -> 0 | X8: =IF($Y$6>0,SUMIF(PLAN!$P:$P,"D"&$X$6&"-"&$W$6&"-"&$O$6,PLAN!M:M),SUMIF(PLAN!$P:$P,"D"&"-"&$W$6&"-"&$O$6,PLAN!M:M)) -> 0 | Y8: =IF($Y$6>0,SUMIF(PLAN!$P:$P,"D"&$X$6&"-"&$W$6&"-"&$O$6,PLAN!N:N),SUMIF(PLAN!$P:$P,"D"&"-"&$W$6&"-"&$O$6,PLAN!N:N)) -> 0 | Z8: =IF($Y$6>0,SUMIF(PLAN!$P:$P,"D"&$X$6&"-"&$W$6&"-"&$O$6,PLAN!O:O),SUMIF(PLAN!$P:$P,"D"&"-"&$W$6&"-"&$O$6,PLAN!O:O)) -> 0 | BX8: TAHSİLAT | BY8: =IF($BU$6=$A$2,B3,IF($BU$6=$A$6,B7,IF($BU$6=$A$10,B11,IF($BU$6=$A$14,B15,IF($BU$6=$A$18,B19,""))))) -> 0 | BZ8: 0 | CA8: 0 | CB8: 0 | CC8: 0 | CD8: 0 | CE8: 0 | CF8: 0 | CG8: 0 | CH8: 0 | CI8: 0 | CJ8: 0 | CY8: =IF(ÜYE!B7>"",ÜYE!A7,"") -> 6 | CZ8: =IF(ÜYE!B7>"",ÜYE!A7&"-"&ÜYE!B7,"") -> 6-Yağız | DA8: =IF(DN8>0,SUMIF(PLAN!$P:$P,"D"&CY8&"-"&$DI$1&"-"&$DA$1,PLAN!D:D),SUMIF(PLAN!$P:$P,"D"&"-"&$DI$1&"-"&$DA$1,PLAN!D:D))-SUMIF(GELİRLER!$H:$H,"D"&CY8&"-"&$DA$2&"-"&$DI$1&"-"&$DA$1,GELİRLER!$G:$G) -> 100 | DB8: =IF(DN8>0,SUMIF(PLAN!$P:$P,"D"&CY8&"-"&$DI$1&"-"&$DA$1,PLAN!E:E),SUMIF(PLAN!$P:$P,"D"&"-"&$DI$1&"-"&$DA$1,PLAN!E:E))-SUMIF(GELİRLER!$H:$H,"D"&CY8&"-"&$DB$2&"-"&$DI$1&"-"&$DA$1,GELİRLER!$G:$G) -> 20 | DC8: =IF(DN8>0,SUMIF(PLAN!$P:$P,"D"&CY8&"-"&$DI$1&"-"&$DA$1,PLAN!F:F),SUMIF(PLAN!$P:$P,"D"&"-"&$DI$1&"-"&$DA$1,PLAN!F:F))-SUMIF(GELİRLER!$H:$H,"D"&CY8&"-"&$DC$2&"-"&$DI$1&"-"&$DA$1,GELİRLER!$G:$G) -> 45 | DD8: =IF(DN8>0,SUMIF(PLAN!$P:$P,"D"&CY8&"-"&$DI$1&"-"&$DA$1,PLAN!G:G),SUMIF(PLAN!$P:$P,"D"&"-"&$DI$1&"-"&$DA$1,PLAN!G:G))-SUMIF(GELİRLER!$H:$H,"D"&CY8&"-"&$DD$2&"-"&$DI$1&"-"&$DA$1,GELİRLER!$G:$G) -> 0 | DE8: =IF(DN8>0,SUMIF(PLAN!$P:$P,"D"&CY8&"-"&$DI$1&"-"&$DA$1,PLAN!H:H),SUMIF(PLAN!$P:$P,"D"&"-"&$DI$1&"-"&$DA$1,PLAN!H:H))-SUMIF(GELİRLER!$H:$H,"D"&CY8&"-"&$DE$2&"-"&$DI$1&"-"&$DA$1,GELİRLER!$G:$G) -> 0 | DF8: =IF(DN8>0,SUMIF(PLAN!$P:$P,"D"&CY8&"-"&$DI$1&"-"&$DA$1,PLAN!I:I),SUMIF(PLAN!$P:$P,"D"&"-"&$DI$1&"-"&$DA$1,PLAN!I:I))-SUMIF(GELİRLER!$H:$H,"D"&CY8&"-"&$DF$2&"-"&$DI$1&"-"&$DA$1,GELİRLER!$G:$G) -> 0 | DG8: =IF(DN8>0,SUMIF(PLAN!$P:$P,"D"&CY8&"-"&$DI$1&"-"&$DA$1,PLAN!J:J),SUMIF(PLAN!$P:$P,"D"&"-"&$DI$1&"-"&$DA$1,PLAN!J:J))-SUMIF(GELİRLER!$H:$H,"D"&CY8&"-"&$DG$2&"-"&$DI$1&"-"&$DA$1,GELİRLER!$G:$G) -> 0 | DH8: =IF(DN8>0,SUMIF(PLAN!$P:$P,"D"&CY8&"-"&$DI$1&"-"&$DA$1,PLAN!K:K),SUMIF(PLAN!$P:$P,"D"&"-"&$DI$1&"-"&$DA$1,PLAN!K:K))-SUMIF(GELİRLER!$H:$H,"D"&CY8&"-"&$DH$2&"-"&$DI$1&"-"&$DA$1,GELİRLER!$G:$G) -> 0 | DI8: =IF(DN8>0,SUMIF(PLAN!$P:$P,"D"&CY8&"-"&$DI$1&"-"&$DA$1,PLAN!L:L),SUMIF(PLAN!$P:$P,"D"&"-"&$DI$1&"-"&$DA$1,PLAN!L:L))-SUMIF(GELİRLER!$H:$H,"D"&CY8&"-"&$DI$2&"-"&$DI$1&"-"&$DA$1,GELİRLER!$G:$G) -> 0 | DJ8: =IF(DN8>0,SUMIF(PLAN!$P:$P,"D"&CY8&"-"&$DI$1&"-"&$DA$1,PLAN!M:M),SUMIF(PLAN!$P:$P,"D"&"-"&$DI$1&"-"&$DA$1,PLAN!M:M))-SUMIF(GELİRLER!$H:$H,"D"&CY8&"-"&$DJ$2&"-"&$DI$1&"-"&$DA$1,GELİRLER!$G:$G) -> 0 | DK8: =IF(DN8>0,SUMIF(PLAN!$P:$P,"D"&CY8&"-"&$DI$1&"-"&$DA$1,PLAN!N:N),SUMIF(PLAN!$P:$P,"D"&"-"&$DI$1&"-"&$DA$1,PLAN!N:N))-SUMIF(GELİRLER!$H:$H,"D"&CY8&"-"&$DK$2&"-"&$DI$1&"-"&$DA$1,GELİRLER!$G:$G) -> 0 | DL8: =IF(DN8>0,SUMIF(PLAN!$P:$P,"D"&CY8&"-"&$DI$1&"-"&$DA$1,PLAN!O:O),SUMIF(PLAN!$P:$P,"D"&"-"&$DI$1&"-"&$DA$1,PLAN!O:O))-SUMIF(GELİRLER!$H:$H,"D"&CY8&"-"&$DL$2&"-"&$DI$1&"-"&$DA$1,GELİRLER!$G:$G) -> 0 | DM8: D6-2016-Aidat | DN8: =COUNTIF(PLAN!P:P,DM8) -> 0 | DO8: =COUNTIF(PLAN!P:P,"D"&CY8&"-"&$DI$1&"-YAKIT") -> 0 | DP8: =ROUND(SUMIF(YAKIT!$J:$J,"D"&CY8&"-"&$DA$2&"-"&$DI$1&"-"&"YAKIT",YAKIT!$I:$I)+IF(DO8>0,SUMIF(PLAN!$P:$P,"D"&CY8&"-"&$DI$1&"-"&"YAKIT",PLAN!D:D),SUMIF(PLAN!$P:$P,"D"&"-"&$DI$1&"-"&"YAKIT",PLAN!D:D))-SUMIF(GELİRLER!$H:$H,"D"&CY8&"-"&$DA$2&"-"&$DI$1&"-"&"YAKIT",GELİRLER!$G:$G),2) -> 0 | DQ8: =ROUND(SUMIF(YAKIT!$J:$J,"D"&CY8&"-"&$DB$2&"-"&$DI$1&"-"&"YAKIT",YAKIT!$I:$I)+IF(DO8>0,SUMIF(PLAN!$P:$P,"D"&CY8&"-"&$DI$1&"-"&"YAKIT",PLAN!E:E),SUMIF(PLAN!$P:$P,"D"&"-"&$DI$1&"-"&"YAKIT",PLAN!E:E))-SUMIF(GELİRLER!$H:$H,"D"&CY8&"-"&$DB$2&"-"&$DI$1&"-"&"YAKIT",GELİRLER!$G:$G),2) -> 0 | DR8: =ROUND(SUMIF(YAKIT!$J:$J,"D"&CY8&"-"&$DC$2&"-"&$DI$1&"-"&"YAKIT",YAKIT!$I:$I)+IF(DO8>0,SUMIF(PLAN!$P:$P,"D"&CY8&"-"&$DI$1&"-"&"YAKIT",PLAN!F:F),SUMIF(PLAN!$P:$P,"D"&"-"&$DI$1&"-"&"YAKIT",PLAN!F:F))-SUMIF(GELİRLER!$H:$H,"D"&CY8&"-"&$DC$2&"-"&$DI$1&"-"&"YAKIT",GELİRLER!$G:$G),2) -> 0 | DS8: =ROUND(SUMIF(YAKIT!$J:$J,"D"&CY8&"-"&$DD$2&"-"&$DI$1&"-"&"YAKIT",YAKIT!$I:$I)+IF(DO8>0,SUMIF(PLAN!$P:$P,"D"&CY8&"-"&$DI$1&"-"&"YAKIT",PLAN!G:G),SUMIF(PLAN!$P:$P,"D"&"-"&$DI$1&"-"&"YAKIT",PLAN!G:G))-SUMIF(GELİRLER!$H:$H,"D"&CY8&"-"&$DD$2&"-"&$DI$1&"-"&"YAKIT",GELİRLER!$G:$G),2) -> 0 | DT8: =ROUND(SUMIF(YAKIT!$J:$J,"D"&CY8&"-"&$DE$2&"-"&$DI$1&"-"&"YAKIT",YAKIT!$I:$I)+IF(DO8>0,SUMIF(PLAN!$P:$P,"D"&CY8&"-"&$DI$1&"-"&"YAKIT",PLAN!H:H),SUMIF(PLAN!$P:$P,"D"&"-"&$DI$1&"-"&"YAKIT",PLAN!H:H))-SUMIF(GELİRLER!$H:$H,"D"&CY8&"-"&$DE$2&"-"&$DI$1&"-"&"YAKIT",GELİRLER!$G:$G),2) -> 0 | DU8: =ROUND(SUMIF(YAKIT!$J:$J,"D"&CY8&"-"&$DF$2&"-"&$DI$1&"-"&"YAKIT",YAKIT!$I:$I)+IF(DO8>0,SUMIF(PLAN!$P:$P,"D"&CY8&"-"&$DI$1&"-"&"YAKIT",PLAN!I:I),SUMIF(PLAN!$P:$P,"D"&"-"&$DI$1&"-"&"YAKIT",PLAN!I:I))-SUMIF(GELİRLER!$H:$H,"D"&CY8&"-"&$DF$2&"-"&$DI$1&"-"&"YAKIT",GELİRLER!$G:$G),2) -> 0 | DV8: =ROUND(SUMIF(YAKIT!$J:$J,"D"&CY8&"-"&$DG$2&"-"&$DI$1&"-"&"YAKIT",YAKIT!$I:$I)+IF(DO8>0,SUMIF(PLAN!$P:$P,"D"&CY8&"-"&$DI$1&"-"&"YAKIT",PLAN!J:J),SUMIF(PLAN!$P:$P,"D"&"-"&$DI$1&"-"&"YAKIT",PLAN!J:J))-SUMIF(GELİRLER!$H:$H,"D"&CY8&"-"&$DG$2&"-"&$DI$1&"-"&"YAKIT",GELİRLER!$G:$G),2) -> 0 | DW8: =ROUND(SUMIF(YAKIT!$J:$J,"D"&CY8&"-"&$DH$2&"-"&$DI$1&"-"&"YAKIT",YAKIT!$I:$I)+IF(DO8>0,SUMIF(PLAN!$P:$P,"D"&CY8&"-"&$DI$1&"-"&"YAKIT",PLAN!K:K),SUMIF(PLAN!$P:$P,"D"&"-"&$DI$1&"-"&"YAKIT",PLAN!K:K))-SUMIF(GELİRLER!$H:$H,"D"&CY8&"-"&$DH$2&"-"&$DI$1&"-"&"YAKIT",GELİRLER!$G:$G),2) -> 0 | DX8: =ROUND(SUMIF(YAKIT!$J:$J,"D"&CY8&"-"&$DI$2&"-"&$DI$1&"-"&"YAKIT",YAKIT!$I:$I)+IF(DO8>0,SUMIF(PLAN!$P:$P,"D"&CY8&"-"&$DI$1&"-"&"YAKIT",PLAN!L:L),SUMIF(PLAN!$P:$P,"D"&"-"&$DI$1&"-"&"YAKIT",PLAN!L:L))-SUMIF(GELİRLER!$H:$H,"D"&CY8&"-"&$DI$2&"-"&$DI$1&"-"&"YAKIT",GELİRLER!$G:$G),2) -> 0 | DY8: =ROUND(SUMIF(YAKIT!$J:$J,"D"&CY8&"-"&$DJ$2&"-"&$DI$1&"-"&"YAKIT",YAKIT!$I:$I)+IF(DO8>0,SUMIF(PLAN!$P:$P,"D"&CY8&"-"&$DI$1&"-"&"YAKIT",PLAN!M:M),SUMIF(PLAN!$P:$P,"D"&"-"&$DI$1&"-"&"YAKIT",PLAN!M:M))-SUMIF(GELİRLER!$H:$H,"D"&CY8&"-"&$DJ$2&"-"&$DI$1&"-"&"YAKIT",GELİRLER!$G:$G),2) -> 0 | DZ8: =ROUND(SUMIF(YAKIT!$J:$J,"D"&CY8&"-"&$DK$2&"-"&$DI$1&"-"&"YAKIT",YAKIT!$I:$I)+IF(DO8>0,SUMIF(PLAN!$P:$P,"D"&CY8&"-"&$DI$1&"-"&"YAKIT",PLAN!N:N),SUMIF(PLAN!$P:$P,"D"&"-"&$DI$1&"-"&"YAKIT",PLAN!N:N))-SUMIF(GELİRLER!$H:$H,"D"&CY8&"-"&$DK$2&"-"&$DI$1&"-"&"YAKIT",GELİRLER!$G:$G),2) -> 0 | EA8: =ROUND(SUMIF(YAKIT!$J:$J,"D"&CY8&"-"&$DL$2&"-"&$DI$1&"-"&"YAKIT",YAKIT!$I:$I)+IF(DO8>0,SUMIF(PLAN!$P:$P,"D"&CY8&"-"&$DI$1&"-"&"YAKIT",PLAN!O:O),SUMIF(PLAN!$P:$P,"D"&"-"&$DI$1&"-"&"YAKIT",PLAN!O:O))-SUMIF(GELİRLER!$H:$H,"D"&CY8&"-"&$DL$2&"-"&$DI$1&"-"&"YAKIT",GELİRLER!$G:$G),2) -> 0
N9: TAHSİLAT | O9: =SUMIF(GELİRLER!$H:$H,"D"&$X$6&"-"&O7&"-"&$W$6&"-"&$O$6,GELİRLER!$G:$G) -> 0 | P9: =SUMIF(GELİRLER!$H:$H,"D"&$X$6&"-"&P7&"-"&$W$6&"-"&$O$6,GELİRLER!$G:$G) -> 0 | Q9: =SUMIF(GELİRLER!$H:$H,"D"&$X$6&"-"&Q7&"-"&$W$6&"-"&$O$6,GELİRLER!$G:$G) -> 0 | R9: =SUMIF(GELİRLER!$H:$H,"D"&$X$6&"-"&R7&"-"&$W$6&"-"&$O$6,GELİRLER!$G:$G) -> 0 | S9: =SUMIF(GELİRLER!$H:$H,"D"&$X$6&"-"&S7&"-"&$W$6&"-"&$O$6,GELİRLER!$G:$G) -> 0 | T9: =SUMIF(GELİRLER!$H:$H,"D"&$X$6&"-"&T7&"-"&$W$6&"-"&$O$6,GELİRLER!$G:$G) -> 0 | U9: =SUMIF(GELİRLER!$H:$H,"D"&$X$6&"-"&U7&"-"&$W$6&"-"&$O$6,GELİRLER!$G:$G) -> 0 | V9: =SUMIF(GELİRLER!$H:$H,"D"&$X$6&"-"&V7&"-"&$W$6&"-"&$O$6,GELİRLER!$G:$G) -> 0 | W9: =SUMIF(GELİRLER!$H:$H,"D"&$X$6&"-"&W7&"-"&$W$6&"-"&$O$6,GELİRLER!$G:$G) -> 0 | X9: =SUMIF(GELİRLER!$H:$H,"D"&$X$6&"-"&X7&"-"&$W$6&"-"&$O$6,GELİRLER!$G:$G) -> 0 | Y9: =SUMIF(GELİRLER!$H:$H,"D"&$X$6&"-"&Y7&"-"&$W$6&"-"&$O$6,GELİRLER!$G:$G) -> 0 | Z9: =SUMIF(GELİRLER!$H:$H,"D"&$X$6&"-"&Z7&"-"&$W$6&"-"&$O$6,GELİRLER!$G:$G) -> 0 | BT9: =IF($BT$6=$B$1,B4,IF($BT$6=$C$1,C4,IF($BT$6=$D$1,D4,IF($BT$6=$E$1,E4,IF($BT$6=$F$1,F4,IF($BT$6=$G$1,G4,BU9)))))) -> 20 | BU9: =IF($BT$6=$H$1,H4,IF($BT$6=$I$1,I4,IF($BT$6=$J$1,J4,IF($BT$6=$K$1,K4,IF($BT$6=$L$1,L4,IF($BT$6=$M$1,M4,"")))))) ->  | BX9: KALAN | BY9: 100 | BZ9: 20 | CA9: 45 | CB9: 0 | CC9: 0 | CD9: 0 | CE9: 0 | CF9: 0 | CG9: 0 | CH9: 0 | CI9: 0 | CJ9: 0 | CY9: =IF(ÜYE!B8>"",ÜYE!A8,"") -> 7 | CZ9: =IF(ÜYE!B8>"",ÜYE!A8&"-"&ÜYE!B8,"") -> 7-İlyas | DA9: =IF(DN9>0,SUMIF(PLAN!$P:$P,"D"&CY9&"-"&$DI$1&"-"&$DA$1,PLAN!D:D),SUMIF(PLAN!$P:$P,"D"&"-"&$DI$1&"-"&$DA$1,PLAN!D:D))-SUMIF(GELİRLER!$H:$H,"D"&CY9&"-"&$DA$2&"-"&$DI$1&"-"&$DA$1,GELİRLER!$G:$G) -> 100 | DB9: =IF(DN9>0,SUMIF(PLAN!$P:$P,"D"&CY9&"-"&$DI$1&"-"&$DA$1,PLAN!E:E),SUMIF(PLAN!$P:$P,"D"&"-"&$DI$1&"-"&$DA$1,PLAN!E:E))-SUMIF(GELİRLER!$H:$H,"D"&CY9&"-"&$DB$2&"-"&$DI$1&"-"&$DA$1,GELİRLER!$G:$G) -> 20 | DC9: =IF(DN9>0,SUMIF(PLAN!$P:$P,"D"&CY9&"-"&$DI$1&"-"&$DA$1,PLAN!F:F),SUMIF(PLAN!$P:$P,"D"&"-"&$DI$1&"-"&$DA$1,PLAN!F:F))-SUMIF(GELİRLER!$H:$H,"D"&CY9&"-"&$DC$2&"-"&$DI$1&"-"&$DA$1,GELİRLER!$G:$G) -> 45 | DD9: =IF(DN9>0,SUMIF(PLAN!$P:$P,"D"&CY9&"-"&$DI$1&"-"&$DA$1,PLAN!G:G),SUMIF(PLAN!$P:$P,"D"&"-"&$DI$1&"-"&$DA$1,PLAN!G:G))-SUMIF(GELİRLER!$H:$H,"D"&CY9&"-"&$DD$2&"-"&$DI$1&"-"&$DA$1,GELİRLER!$G:$G) -> 0 | DE9: =IF(DN9>0,SUMIF(PLAN!$P:$P,"D"&CY9&"-"&$DI$1&"-"&$DA$1,PLAN!H:H),SUMIF(PLAN!$P:$P,"D"&"-"&$DI$1&"-"&$DA$1,PLAN!H:H))-SUMIF(GELİRLER!$H:$H,"D"&CY9&"-"&$DE$2&"-"&$DI$1&"-"&$DA$1,GELİRLER!$G:$G) -> 0 | DF9: =IF(DN9>0,SUMIF(PLAN!$P:$P,"D"&CY9&"-"&$DI$1&"-"&$DA$1,PLAN!I:I),SUMIF(PLAN!$P:$P,"D"&"-"&$DI$1&"-"&$DA$1,PLAN!I:I))-SUMIF(GELİRLER!$H:$H,"D"&CY9&"-"&$DF$2&"-"&$DI$1&"-"&$DA$1,GELİRLER!$G:$G) -> 0 | DG9: =IF(DN9>0,SUMIF(PLAN!$P:$P,"D"&CY9&"-"&$DI$1&"-"&$DA$1,PLAN!J:J),SUMIF(PLAN!$P:$P,"D"&"-"&$DI$1&"-"&$DA$1,PLAN!J:J))-SUMIF(GELİRLER!$H:$H,"D"&CY9&"-"&$DG$2&"-"&$DI$1&"-"&$DA$1,GELİRLER!$G:$G) -> 0 | DH9: =IF(DN9>0,SUMIF(PLAN!$P:$P,"D"&CY9&"-"&$DI$1&"-"&$DA$1,PLAN!K:K),SUMIF(PLAN!$P:$P,"D"&"-"&$DI$1&"-"&$DA$1,PLAN!K:K))-SUMIF(GELİRLER!$H:$H,"D"&CY9&"-"&$DH$2&"-"&$DI$1&"-"&$DA$1,GELİRLER!$G:$G) -> 0 | DI9: =IF(DN9>0,SUMIF(PLAN!$P:$P,"D"&CY9&"-"&$DI$1&"-"&$DA$1,PLAN!L:L),SUMIF(PLAN!$P:$P,"D"&"-"&$DI$1&"-"&$DA$1,PLAN!L:L))-SUMIF(GELİRLER!$H:$H,"D"&CY9&"-"&$DI$2&"-"&$DI$1&"-"&$DA$1,GELİRLER!$G:$G) -> 0 | DJ9: =IF(DN9>0,SUMIF(PLAN!$P:$P,"D"&CY9&"-"&$DI$1&"-"&$DA$1,PLAN!M:M),SUMIF(PLAN!$P:$P,"D"&"-"&$DI$1&"-"&$DA$1,PLAN!M:M))-SUMIF(GELİRLER!$H:$H,"D"&CY9&"-"&$DJ$2&"-"&$DI$1&"-"&$DA$1,GELİRLER!$G:$G) -> 0 | DK9: =IF(DN9>0,SUMIF(PLAN!$P:$P,"D"&CY9&"-"&$DI$1&"-"&$DA$1,PLAN!N:N),SUMIF(PLAN!$P:$P,"D"&"-"&$DI$1&"-"&$DA$1,PLAN!N:N))-SUMIF(GELİRLER!$H:$H,"D"&CY9&"-"&$DK$2&"-"&$DI$1&"-"&$DA$1,GELİRLER!$G:$G) -> 0 | DL9: =IF(DN9>0,SUMIF(PLAN!$P:$P,"D"&CY9&"-"&$DI$1&"-"&$DA$1,PLAN!O:O),SUMIF(PLAN!$P:$P,"D"&"-"&$DI$1&"-"&$DA$1,PLAN!O:O))-SUMIF(GELİRLER!$H:$H,"D"&CY9&"-"&$DL$2&"-"&$DI$1&"-"&$DA$1,GELİRLER!$G:$G) -> 0 | DM9: D7-2016-Aidat | DN9: =COUNTIF(PLAN!P:P,DM9) -> 0 | DO9: =COUNTIF(PLAN!P:P,"D"&CY9&"-"&$DI$1&"-YAKIT") -> 0 | DP9: =ROUND(SUMIF(YAKIT!$J:$J,"D"&CY9&"-"&$DA$2&"-"&$DI$1&"-"&"YAKIT",YAKIT!$I:$I)+IF(DO9>0,SUMIF(PLAN!$P:$P,"D"&CY9&"-"&$DI$1&"-"&"YAKIT",PLAN!D:D),SUMIF(PLAN!$P:$P,"D"&"-"&$DI$1&"-"&"YAKIT",PLAN!D:D))-SUMIF(GELİRLER!$H:$H,"D"&CY9&"-"&$DA$2&"-"&$DI$1&"-"&"YAKIT",GELİRLER!$G:$G),2) -> 0 | DQ9: =ROUND(SUMIF(YAKIT!$J:$J,"D"&CY9&"-"&$DB$2&"-"&$DI$1&"-"&"YAKIT",YAKIT!$I:$I)+IF(DO9>0,SUMIF(PLAN!$P:$P,"D"&CY9&"-"&$DI$1&"-"&"YAKIT",PLAN!E:E),SUMIF(PLAN!$P:$P,"D"&"-"&$DI$1&"-"&"YAKIT",PLAN!E:E))-SUMIF(GELİRLER!$H:$H,"D"&CY9&"-"&$DB$2&"-"&$DI$1&"-"&"YAKIT",GELİRLER!$G:$G),2) -> 0 | DR9: =ROUND(SUMIF(YAKIT!$J:$J,"D"&CY9&"-"&$DC$2&"-"&$DI$1&"-"&"YAKIT",YAKIT!$I:$I)+IF(DO9>0,SUMIF(PLAN!$P:$P,"D"&CY9&"-"&$DI$1&"-"&"YAKIT",PLAN!F:F),SUMIF(PLAN!$P:$P,"D"&"-"&$DI$1&"-"&"YAKIT",PLAN!F:F))-SUMIF(GELİRLER!$H:$H,"D"&CY9&"-"&$DC$2&"-"&$DI$1&"-"&"YAKIT",GELİRLER!$G:$G),2) -> 0 | DS9: =ROUND(SUMIF(YAKIT!$J:$J,"D"&CY9&"-"&$DD$2&"-"&$DI$1&"-"&"YAKIT",YAKIT!$I:$I)+IF(DO9>0,SUMIF(PLAN!$P:$P,"D"&CY9&"-"&$DI$1&"-"&"YAKIT",PLAN!G:G),SUMIF(PLAN!$P:$P,"D"&"-"&$DI$1&"-"&"YAKIT",PLAN!G:G))-SUMIF(GELİRLER!$H:$H,"D"&CY9&"-"&$DD$2&"-"&$DI$1&"-"&"YAKIT",GELİRLER!$G:$G),2) -> 0 | DT9: =ROUND(SUMIF(YAKIT!$J:$J,"D"&CY9&"-"&$DE$2&"-"&$DI$1&"-"&"YAKIT",YAKIT!$I:$I)+IF(DO9>0,SUMIF(PLAN!$P:$P,"D"&CY9&"-"&$DI$1&"-"&"YAKIT",PLAN!H:H),SUMIF(PLAN!$P:$P,"D"&"-"&$DI$1&"-"&"YAKIT",PLAN!H:H))-SUMIF(GELİRLER!$H:$H,"D"&CY9&"-"&$DE$2&"-"&$DI$1&"-"&"YAKIT",GELİRLER!$G:$G),2) -> 0 | DU9: =ROUND(SUMIF(YAKIT!$J:$J,"D"&CY9&"-"&$DF$2&"-"&$DI$1&"-"&"YAKIT",YAKIT!$I:$I)+IF(DO9>0,SUMIF(PLAN!$P:$P,"D"&CY9&"-"&$DI$1&"-"&"YAKIT",PLAN!I:I),SUMIF(PLAN!$P:$P,"D"&"-"&$DI$1&"-"&"YAKIT",PLAN!I:I))-SUMIF(GELİRLER!$H:$H,"D"&CY9&"-"&$DF$2&"-"&$DI$1&"-"&"YAKIT",GELİRLER!$G:$G),2) -> 0 | DV9: =ROUND(SUMIF(YAKIT!$J:$J,"D"&CY9&"-"&$DG$2&"-"&$DI$1&"-"&"YAKIT",YAKIT!$I:$I)+IF(DO9>0,SUMIF(PLAN!$P:$P,"D"&CY9&"-"&$DI$1&"-"&"YAKIT",PLAN!J:J),SUMIF(PLAN!$P:$P,"D"&"-"&$DI$1&"-"&"YAKIT",PLAN!J:J))-SUMIF(GELİRLER!$H:$H,"D"&CY9&"-"&$DG$2&"-"&$DI$1&"-"&"YAKIT",GELİRLER!$G:$G),2) -> 0 | DW9: =ROUND(SUMIF(YAKIT!$J:$J,"D"&CY9&"-"&$DH$2&"-"&$DI$1&"-"&"YAKIT",YAKIT!$I:$I)+IF(DO9>0,SUMIF(PLAN!$P:$P,"D"&CY9&"-"&$DI$1&"-"&"YAKIT",PLAN!K:K),SUMIF(PLAN!$P:$P,"D"&"-"&$DI$1&"-"&"YAKIT",PLAN!K:K))-SUMIF(GELİRLER!$H:$H,"D"&CY9&"-"&$DH$2&"-"&$DI$1&"-"&"YAKIT",GELİRLER!$G:$G),2) -> 0 | DX9: =ROUND(SUMIF(YAKIT!$J:$J,"D"&CY9&"-"&$DI$2&"-"&$DI$1&"-"&"YAKIT",YAKIT!$I:$I)+IF(DO9>0,SUMIF(PLAN!$P:$P,"D"&CY9&"-"&$DI$1&"-"&"YAKIT",PLAN!L:L),SUMIF(PLAN!$P:$P,"D"&"-"&$DI$1&"-"&"YAKIT",PLAN!L:L))-SUMIF(GELİRLER!$H:$H,"D"&CY9&"-"&$DI$2&"-"&$DI$1&"-"&"YAKIT",GELİRLER!$G:$G),2) -> 0 | DY9: =ROUND(SUMIF(YAKIT!$J:$J,"D"&CY9&"-"&$DJ$2&"-"&$DI$1&"-"&"YAKIT",YAKIT!$I:$I)+IF(DO9>0,SUMIF(PLAN!$P:$P,"D"&CY9&"-"&$DI$1&"-"&"YAKIT",PLAN!M:M),SUMIF(PLAN!$P:$P,"D"&"-"&$DI$1&"-"&"YAKIT",PLAN!M:M))-SUMIF(GELİRLER!$H:$H,"D"&CY9&"-"&$DJ$2&"-"&$DI$1&"-"&"YAKIT",GELİRLER!$G:$G),2) -> 0 | DZ9: =ROUND(SUMIF(YAKIT!$J:$J,"D"&CY9&"-"&$DK$2&"-"&$DI$1&"-"&"YAKIT",YAKIT!$I:$I)+IF(DO9>0,SUMIF(PLAN!$P:$P,"D"&CY9&"-"&$DI$1&"-"&"YAKIT",PLAN!N:N),SUMIF(PLAN!$P:$P,"D"&"-"&$DI$1&"-"&"YAKIT",PLAN!N:N))-SUMIF(GELİRLER!$H:$H,"D"&CY9&"-"&$DK$2&"-"&$DI$1&"-"&"YAKIT",GELİRLER!$G:$G),2) -> 0 | EA9: =ROUND(SUMIF(YAKIT!$J:$J,"D"&CY9&"-"&$DL$2&"-"&$DI$1&"-"&"YAKIT",YAKIT!$I:$I)+IF(DO9>0,SUMIF(PLAN!$P:$P,"D"&CY9&"-"&$DI$1&"-"&"YAKIT",PLAN!O:O),SUMIF(PLAN!$P:$P,"D"&"-"&$DI$1&"-"&"YAKIT",PLAN!O:O))-SUMIF(GELİRLER!$H:$H,"D"&CY9&"-"&$DL$2&"-"&$DI$1&"-"&"YAKIT",GELİRLER!$G:$G),2) -> 0
A10: KİRA | B10: =+Z3 -> 0 | C10: =+AA3 -> 0 | D10: 0 | E10: 0 | F10: 0 | G10: 0 | H10: 0 | I10: 0 | J10: 0 | K10: 0 | L10: 0 | M10: 0 | N10: KALAN | O10: =+O8-O9 -> 100 | P10: 20 | Q10: 45 | R10: 0 | S10: 0 | T10: 0 | U10: 0 | V10: =+V8-V9 -> 0 | W10: =+W8-W9 -> 0 | X10: =+X8-X9 -> 0 | Y10: =+Y8-Y9 -> 0 | Z10: =+Z8-Z9 -> 0
A11: TAHSİLAT | B11: 0 | C11: 0 | D11: 0 | E11: 0 | F11: 0 | G11: 0 | H11: 0 | I11: 0 | J11: 0 | K11: 0 | L11: 0 | M11: 0
A12: KALAN | B12: 0 | C12: 0 | D12: 0 | E12: 0 | F12: 0 | G12: 0 | H12: 0 | I12: 0 | J12: 0 | K12: 0 | L12: 0 | M12: 0
BT13: =IF($BT$6=$B$1,B8,IF($BT$6=$C$1,C8,IF($BT$6=$D$1,D8,IF($BT$6=$E$1,E8,IF($BT$6=$F$1,F8,IF($BT$6=$G$1,G8,BU13)))))) -> 0 | BU13: =IF($BT$6=$H$1,H8,IF($BT$6=$I$1,I8,IF($BT$6=$J$1,J8,IF($BT$6=$K$1,K8,IF($BT$6=$L$1,L8,IF($BT$6=$M$1,M8,"")))))) -> 
A14: DİĞER | B14: =+AL3 -> 0 | C14: =+AM3 -> 0 | D14: 0 | E14: 0 | F14: 0 | G14: 0 | H14: 0 | I14: 0 | J14: 0 | K14: 0 | L14: 0 | M14: 0
A15: TAHSİLAT | B15: 0 | C15: 0 | D15: 0 | E15: 0 | F15: 0 | G15: 0 | H15: 0 | I15: 0 | J15: 0 | K15: 0 | L15: 0 | M15: 0
A16: KALAN | B16: 0 | C16: 0 | D16: =+AN5 -> 0 | E16: 0 | F16: 0 | G16: 0 | H16: 0 | I16: 0 | J16: 0 | K16: 0 | L16: 0 | M16: 0
BT17: =IF($BT$6=$B$1,B12,IF($BT$6=$C$1,C12,IF($BT$6=$D$1,D12,IF($BT$6=$E$1,E12,IF($BT$6=$F$1,F12,IF($BT$6=$G$1,G12,BU17)))))) -> 0 | BU17: =IF($BT$6=$H$1,H12,IF($BT$6=$I$1,I12,IF($BT$6=$J$1,J12,IF($BT$6=$K$1,K12,IF($BT$6=$L$1,L12,IF($BT$6=$M$1,M12,"")))))) -> 
A18: YAKIT | B18: =+AX3 -> 0 | C18: 0 | D18: 0 | E18: 0 | F18: 0 | G18: 0 | H18: 0 | I18: 0 | J18: 0 | K18: 0 | L18: 0 | M18: 0
A19: TAHSİLAT | B19: 0 | C19: 0 | D19: 0 | E19: 0 | F19: 0 | G19: 0 | H19: 0 | I19: 0 | J19: 0 | K19: 0 | L19: 0 | M19: 0
A20: KALAN | B20: 0 | C20: 0 | D20: 0 | E20: 0 | F20: 0 | G20: 0 | H20: 0 | I20: 0 | J20: 0 | K20: 0 | L20: 0 | M20: 0
BT21: =IF($BT$6=$B$1,B16,IF($BT$6=$C$1,C16,IF($BT$6=$D$1,D16,IF($BT$6=$E$1,E16,IF($BT$6=$F$1,F16,IF($BT$6=$G$1,G16,BU21)))))) -> 0 | BU21: =IF($BT$6=$H$1,H16,IF($BT$6=$I$1,I16,IF($BT$6=$J$1,J16,IF($BT$6=$K$1,K16,IF($BT$6=$L$1,L16,IF($BT$6=$M$1,M16,"")))))) -> 
A22: AY AY BORÇ | B22: =+B4+B8+B12+B16+B20 -> 100 | C22: =+C4+C8+C12+C16+C20 -> 20 | D22: 45 | E22: 0 | F22: 0 | G22: 0 | H22: 0 | I22: 0 | J22: 0 | K22: 0 | L22: 0 | M22: 0
A23: =V1& " YILI TOPLAM BORÇ" -> 2016 YILI TOPLAM BORÇ | B23: =ROUND(SUM(B22:M22),2) -> 165
A24: TÜM BORÇ TOPLAMI | B24: =SUM(PLAN!D:O)-SUMIF(GELİRLER!B:G,W1,GELİRLER!G:G) -> 240
BT25: =IF($BT$6=$B$1,B20,IF($BT$6=$C$1,C20,IF($BT$6=$D$1,D20,IF($BT$6=$E$1,E20,IF($BT$6=$F$1,F20,IF($BT$6=$G$1,G20,BU25)))))) -> 0 | BU25: =IF($BT$6=$H$1,H20,IF($BT$6=$I$1,I20,IF($BT$6=$J$1,J20,IF($BT$6=$K$1,K20,IF($BT$6=$L$1,L20,IF($BT$6=$M$1,M20,"")))))) -> 
A37: Aidat | C37: Ocak | D37: Mülk Sahibi
A38: Bakım-Onarım (Demirbaş) | C38: Şubat | D38: Kiracı
A39: Kira | C39: Mart | D39: Diğer
A40: Diğer Tahsilat | C40: Nisan
A41: Yakıt | C41: Mayıs | D41: Evet
C42: Haziran | D42: Hayır
A43: PAY ÖLÇERLİ (M2'YE GÖRE) | C43: Temmuz
A44: PAY ÖLÇERLİ (GENEL) | C44: Ağustos | D44: Kendisi
A45: EŞİT DAĞITIM | C45: Eylül | D45: Eşi
A46: BANKA HESABINDAN | B46: =(BANKA!F2) -> 2.5 | C46: Ekim | D46: Oğlu
A47: KASADAN (NAKİT) | B47: =SUM(GELİRLER!G:G)-SUM(GİDER!G:G)-B46 -> 2.94 | C47: Kasım | D47: Kızı
A48: MASRAF - GİDER | C48: Aralık | D48: Annesi
A49: MENKUL (DEMİRBAŞ) | C49: Yatan | D49: Babası
A50: GENEL | C50: Çekilen | D50: Kardeşi
A51: ÖZEL | D51: Diğer
A52: CİNSİ | B52: =COUNTA(MENKUL!A:A)-1 -> 1 | C52: Öder
A53: ADEDİ | B53: =SUM(MENKUL!G:G) -> 1 | C53: Ödemez
A54: APT.SİTEDE YAŞAYANLAR | B54: =SUM(ÜYE!D:D) -> 5
A55: YAŞAYAN GİRİŞ | B55: =COUNTA(HANE!B:B)-1 -> 0
A56: Aidat
A57: Demirbaş
A58: Kira
A59: Diğer
A60: Yakıt

Sheet ÜYE
A1: DAİRE NO | B1: ADI SOYADI | C1: DAİRE M2 | D1: HANE HALKI | E1: MÜLKİYET DURUMU | F1: TELEFON | X1: =IF(Y1=Z1,"Bu Üyenin Girişi Yapılmıştır.","") ->  | Y1: =COUNTIF(A:A,Z1) -> 0 | Z1: 8 | AA1: =COUNTA(A2:A1200) -> 7 | AB1: =AD1&"$a$1:$c$"&AA1+1&AD1 -> $a$1:$c$8
A2: 1 | B2: Tahir | C2: 120 | D2: 2 | E2: Mülk Sahibi | F2: 5383483624
A3: 2 | B3: Arslan | C3: 150 | D3: 3 | E3: Kiracı | F3: 5383483624
A4: 3 | B4: Dilek
A5: 4 | B5: Kırıkçı | C5: 4
A6: 5 | B6: Semra
A7: 6 | B7: Yağız
A8: 7 | B8: İlyas

Sheet YAKIT
A1: DAİRE NO | B1: İLK ENDEKS | C1: SON ENDEKS | D1: FARK ENDEKS | E1: DAİRE M2 | F1: ORTAK ALAN PAYI | G1: DAİRE TÜKETİMİ | H1: ORTAK ALAN TÜKETİMİ | I1: TOPLAM | J1: D-Ocak-2016-YAKIT | K1: Ocak-2016 | L1: =SUMIF(A2:C65520,K1,C2:C65520)-SUMIF(A2:B65520,K1,B2:B65520) -> 0 | M1: =SUMIF(ÜYE!A:C,K1,ÜYE!C:C) -> 0 | N1: =VLOOKUP(K1,ÜYE!A:C,2,FALSE) ->  | O1: =COUNTIF(K2:K1595,J1) -> 0
J2: D1-Şubat-2016-YAKIT | K2: Şubat-2016
J3: D2-Şubat-2016-YAKIT | K3: Şubat-2016
J4: D1-Ocak-2016-YAKIT | K4: Ocak-2016
J5: D2-Ocak-2016-YAKIT | K5: Ocak-2016
J6: Ocak-2016 | K6: Mart-2016
J7: D2-Mart-2016-YAKIT | K7: Mart-2016
J8: D1-Mart-2016-YAKIT | K8: Mart-2016

Sheet PLAN
A1: ÖZEL ÜYE | B1: YIL | C1: TÜR | D1: OCAK | E1: ŞUBAT | F1: MART | G1: NİSAN | H1: MAYIS | I1: HAZİRAN | J1: TEMMUZ | K1: AĞUSTOS | L1: EYLÜL | M1: EKİM | N1: KASIM | O1: ARALIK | P1: ANAHTAR | Q1: AÇIKLAMA | AA1: D-2016-Aidat | AB1: =COUNTIF(P:P,AA1) -> 3 | BA1: ÖZEL ÜYE | BB1: YIL | BC1: TÜR | BD1: OCAK | BE1: ŞUBAT | BF1: MART | BG1: NİSAN | BH1: MAYIS | BI1: HAZİRAN | BJ1: TEMMUZ | BK1: AĞUSTOS | BL1: EYLÜL | BM1: EKİM | BN1: KASIM | BO1: ARALIK | BP1: ANAHTAR | BQ1: AÇIKLAMA
B2: 2016 | C2: Aidat | D2: 100 | E2: 0 | F2: 0 | G2: 0 | H2: 0 | I2: 0 | J2: 0 | K2: 0 | L2: 0 | M2: 0 | N2: 0 | O2: 0 | P2: D-2016-Aidat | Q2: Ghfhgfj | BB2: 2016 | BC2: Aidat | BD2: 100 | BE2: 0 | BF2: 0 | BG2: 0 | BH2: 0 | BI2: 0 | BJ2: 0 | BK2: 0 | BL2: 0 | BM2: 0 | BN2: 0 | BO2: 0 | BP2: D-2016-Aidat | BQ2: Ghfhgfj
A3: 1 | B3: 2016 | C3: Aidat | D3: 0 | E3: 50 | F3: 0 | G3: 0 | H3: 0 | I3: 0 | J3: 0 | K3: 0 | L3: 0 | M3: 0 | N3: 0 | O3: 0 | P3: D1-2016-Aidat | Q3: Ghfhgfj | BA3: 1 | BB3: 2016 | BC3: Aidat | BD3: 0 | BE3: 50 | BF3: 0 | BG3: 0 | BH3: 0 | BI3: 0 | BJ3: 0 | BK3: 0 | BL3: 0 | BM3: 0 | BN3: 0 | BO3: 0 | BP3: D1-2016-Aidat | BQ3: Ghfhgfj
A4: 1 | B4: 2016 | C4: Aidat | D4: 0 | E4: 25 | F4: 0 | G4: 0 | H4: 0 | I4: 0 | J4: 0 | K4: 0 | L4: 0 | M4: 0 | N4: 0 | O4: 0 | P4: D1-2016-Aidat | Q4: Jhfkgfgh | BA4: 1 | BB4: 2016 | BC4: Aidat | BD4: 0 | BE4: 25 | BF4: 0 | BG4: 0 | BH4: 0 | BI4: 0 | BJ4: 0 | BK4: 0 | BL4: 0 | BM4: 0 | BN4: 0 | BO4: 0 | BP4: D1-2016-Aidat | BQ4: Jhfkgfgh
B5: 2016 | C5: Aidat | D5: 0 | E5: 20 | F5: 0 | G5: 0 | H5: 0 | I5: 0 | J5: 0 | K5: 0 | L5: 0 | M5: 0 | N5: 0 | O5: 0 | P5: D-2016-Aidat | Q5: Hgjhghjg | BB5: 2016 | BC5: Aidat | BD5: 0 | BE5: 20 | BF5: 0 | BG5: 0 | BH5: 0 | BI5: 0 | BJ5: 0 | BK5: 0 | BL5: 0 | BM5: 0 | BN5: 0 | BO5: 0 | BP5: D-2016-Aidat | BQ5: Hgjhghjg
B6: 2016 | C6: Aidat | D6: 0 | E6: 0 | F6: 45 | G6: 0 | H6: 0 | I6: 0 | J6: 0 | K6: 0 | L6: 0 | M6: 0 | N6: 0 | O6: 0 | P6: D-2016-Aidat | Q6: Gfdhgdjhd
BC1992: aydınlık 6. sokak

Sheet GELİRLER
A1: YIL | B1: ÜYE NO | C1: ADI SOYADI | D1: AÇIKLAMA | E1: TARİH | F1: AY / YIL | G1: TUTAR
A2: 2016 | B2: 1 | C2: Tahir | D2: 1 Nolu Dairenin Şubat-2016 Ayı için Aidat olarak. | E2: 24.04.2016 | F2: Şubat-2016 | G2: 35 | H2: D1-Şubat-2016-Aidat
A3: 2016 | B3: 1 | C3: Tahir | D3: 1 Nolu Dairenin Şubat-2016 Ayı için Aidat olarak. | E3: 24.04.2016 | F3: Şubat-2016 | G3: 40 | H3: D1-Şubat-2016-Aidat
A4: 2016 | B4: 1 | C4: Tahir | D4: 1 Nolu Dairenin Şubat-2016 Ayı Aidat Borcunun Gecikme Faizi | E4: 24.04.2016 | F4: Şubat-2016 | G4: 0.44 | H4: Gecikme Faizi
H5: D7-Şubat-2016-Aidat
H6: D7-Mart-2016-Aidat

Sheet GİDER
A1: YIL | B1: KİME / NEREYE HARCANDIĞI | C1: TC./VERGİ NO | D1: TARİH | E1: BELGE NO | F1: AÇIKLAMA | G1: HARCAMA TUTARI
A2: 2016 | B2: Jkljşlkjlk | D2: 25.04.2016 | E2: 125 | F2: Jkljşlkjlk-Nisan-2016 Ayı- Jhgkhjgkjh | G2: 7.5
A3: 2016 | B3: Kkljkjpoı Iuıouı | D3: 25.04.2016 | E3: 458 | F3: Kkljkjpoı Iuıouı-Nisan-2016 Ayı- Yuıyuı Uyyuıyo | G3: 62.5

Sheet MENKUL
A1: D.B.NO | B1: KİME / NEREYE HARCANDIĞI | C1: TC./VERGİ NO | D1: TARİH | E1: BELGE NO | F1: CİNSİ | G1: ADEDİ | H1: HARCAMA TUTARI
A2: 1 | B2: Kkljkjpoı Iuıouı | D2: 25.04.2016 | E2: 458 | F2: Televizyon | G2: 1 | H2: 62.5

Sheet DEFTER
A1: GELİRLER | E1: GİDERLER | L1: Aidat | M1: ÇEKİLEN | N1: YATAN | O1: GİDER | P1: Aidat | Q1: ÇEKİLEN | R1: YATAN | S1: GİDER | T1: gelir devir | W1: 2016 | X1: Aidat | Y1: ÇEKİLEN | Z1: YATAN | AA1: GİDER | AB1: KASA | AC1: BANKA
A2: MADDE | B2: İŞLEM TARİHİ | C2: AÇIKLAMA | D2: TUTAR | E2: MADDE | F2: İŞLEM TARİHİ | G2: AÇIKLAMA | H2: TUTAR | K2: 2015 | L2: =SUMIF(GELİRLER!A:G,K2,GELİRLER!G:G) -> 0 | M2: =SUMIF(BANKA!A:D,K2,BANKA!D:D) -> 0 | N2: =SUMIF(BANKA!A:E,K2,BANKA!E:E) -> 0 | O2: =SUMIF(GİDER!A:G,K2,GİDER!G:G) -> 0 | P2: =IF(K2<=$W$1,L2,0) -> 0 | Q2: =IF($K$2<=$W$1,M2,0) -> 0 | R2: =IF(K2<=$W$1,N2,0) -> 0 | S2: =IF(K2<=$W$1,O2,0) -> 0 | T2: =-IF(K2<$W$1,L2,0) -> 0 | U2: =-IF(K2<$W$1,O2,0) -> 0 | X2: =SUM(P:P) -> 75.44 | Y2: =SUM(Q:Q) -> 72.94 | Z2: =SUM(R:R) -> 75.44 | AA2: =SUM(S:S) -> 70 | AB2: =+X2+Y2-Z2-AA2 -> 2.94 | AC2: =+Z2-Y2 -> 2.5
C3: MALİ İŞLEM YILI GELİRLER TOPLAMI | D3: =SUM(D4:D65000)-D6 -> 148.38 | G3: MALİ İŞLEM YILI GİDERLER TOPLAMI | H3: =SUM(H4:H65000) -> 148.38 | K3: =K2+1 -> 2016 | L3: =SUMIF(GELİRLER!A:G,K3,GELİRLER!G:G) -> 75.44 | M3: =SUMIF(BANKA!A:D,K3,BANKA!D:D) -> 72.94 | N3: =SUMIF(BANKA!A:E,K3,BANKA!E:E) -> 75.44 | O3: =SUMIF(GİDER!A:G,K3,GİDER!G:G) -> 70 | P3: 75.44 | Q3: =IF(K3<=$W$1,M3,0) -> 72.94 | R3: =IF(K3<=$W$1,N3,0) -> 75.44 | S3: =IF(K3<=$W$1,O3,0) -> 70 | T3: =-IF(K3<$W$1,L3,0) -> 0 | U3: =-IF(K3<$W$1,O3,0) -> 0 | X3: =-SUM(T:T) -> 0 | AA3: =-SUM(U:U) -> 0
A4: NO | B4: =+W1 -> 2016 | C4: BANKADAN ÇEKİLEN PARALAR VE GÖNDERİLEN HAVALELER | D4: =+Y2 -> 72.94 | E4: NO | F4: =+B4 -> 2016 | G4: BANKAYA YATIRILAN PARALAR VE GELEN HAVALELER | H4: =+Z2 -> 75.44 | K4: =K3+1 -> 2017 | L4: =SUMIF(GELİRLER!A:G,K4,GELİRLER!G:G) -> 0 | M4: =SUMIF(BANKA!A:D,K4,BANKA!D:D) -> 0 | N4: =SUMIF(BANKA!A:E,K4,BANKA!E:E) -> 0 | O4: =SUMIF(GİDER!A:G,K4,GİDER!G:G) -> 0 | P4: 0 | Q4: 0 | R4: 0 | S4: 0 | T4: 0 | U4: 0
B5: =+B4 -> 2016 | C5: GEÇMİŞ YILLAR GELİRLERİ DEVİR TUTARI | D5: =+X3 -> 0 | F5: =+F4 -> 2016 | G5: GEÇMİŞ YILLAR GİDERLERİ DEVİR TUTARI | H5: =+AA3 -> 0 | K5: 2018 | L5: =SUMIF(GELİRLER!A:G,K5,GELİRLER!G:G) -> 0 | M5: =SUMIF(BANKA!A:D,K5,BANKA!D:D) -> 0 | N5: =SUMIF(BANKA!A:E,K5,BANKA!E:E) -> 0 | O5: =SUMIF(GİDER!A:G,K5,GİDER!G:G) -> 0 | P5: 0 | Q5: 0 | R5: 0 | S5: 0 | T5: 0 | U5: 0
B6: =+B5 -> 2016 | C6: BANKA CARİ HESAP BAKİYESİ | D6: =+AC2 -> 2.5 | F6: =+F5 -> 2016 | G6: KASA BAKİYESİ | H6: =+AB2 -> 2.94 | K6: 2019 | L6: =SUMIF(GELİRLER!A:G,K6,GELİRLER!G:G) -> 0 | M6: =SUMIF(BANKA!A:D,K6,BANKA!D:D) -> 0 | N6: =SUMIF(BANKA!A:E,K6,BANKA!E:E) -> 0 | O6: =SUMIF(GİDER!A:G,K6,GİDER!G:G) -> 0 | P6: 0 | Q6: 0 | R6: 0 | S6: 0 | T6: 0 | U6: 0
A7: =IF(C7>"",A6+1,"") -> 1 | B7: 24.04.2016 | C7: 1 Nolu Dairenin Şubat-2016 Ayı için Aidat olarak. | D7: 35 | E7: =IF(G7>"",E6+1,"") -> 1 | F7: 25.04.2016 | G7: Jkljşlkjlk-Nisan-2016 Ayı- Jhgkhjgkjh | H7: 7.5 | K7: 2020 | L7: =SUMIF(GELİRLER!A:G,K7,GELİRLER!G:G) -> 0 | M7: =SUMIF(BANKA!A:D,K7,BANKA!D:D) -> 0 | N7: =SUMIF(BANKA!A:E,K7,BANKA!E:E) -> 0 | O7: =SUMIF(GİDER!A:G,K7,GİDER!G:G) -> 0 | P7: 0 | Q7: 0 | R7: 0 | S7: 0 | T7: 0 | U7: 0
A8: =IF(C8>"",A7+1,"") -> 2 | B8: 24.04.2016 | C8: 1 Nolu Dairenin Şubat-2016 Ayı için Aidat olarak. | D8: 40 | E8: =IF(G8>"",E7+1,"") -> 2 | F8: 25.04.2016 | G8: Kkljkjpoı Iuıouı-Nisan-2016 Ayı- Yuıyuı Uyyuıyo | H8: 62.5 | K8: 2021 | L8: =SUMIF(GELİRLER!A:G,K8,GELİRLER!G:G) -> 0 | M8: =SUMIF(BANKA!A:D,K8,BANKA!D:D) -> 0 | N8: =SUMIF(BANKA!A:E,K8,BANKA!E:E) -> 0 | O8: =SUMIF(GİDER!A:G,K8,GİDER!G:G) -> 0 | P8: 0 | Q8: 0 | R8: 0 | S8: 0 | T8: 0 | U8: 0
A9: =IF(C9>"",A8+1,"") -> 3 | B9: 24.04.2016 | C9: 1 Nolu Dairenin Şubat-2016 Ayı Aidat Borcunun Gecikme Faizi | D9: 0.44 | K9: 2022 | L9: =SUMIF(GELİRLER!A:G,K9,GELİRLER!G:G) -> 0 | M9: =SUMIF(BANKA!A:D,K9,BANKA!D:D) -> 0 | N9: =SUMIF(BANKA!A:E,K9,BANKA!E:E) -> 0 | O9: =SUMIF(GİDER!A:G,K9,GİDER!G:G) -> 0 | P9: 0 | Q9: 0 | R9: 0 | S9: 0 | T9: 0 | U9: 0
K10: 2023 | L10: =SUMIF(GELİRLER!A:G,K10,GELİRLER!G:G) -> 0 | M10: =SUMIF(BANKA!A:D,K10,BANKA!D:D) -> 0 | N10: =SUMIF(BANKA!A:E,K10,BANKA!E:E) -> 0 | O10: =SUMIF(GİDER!A:G,K10,GİDER!G:G) -> 0 | P10: 0 | Q10: 0 | R10: 0 | S10: 0 | T10: 0 | U10: 0
K11: 2024 | L11: =SUMIF(GELİRLER!A:G,K11,GELİRLER!G:G) -> 0 | M11: =SUMIF(BANKA!A:D,K11,BANKA!D:D) -> 0 | N11: =SUMIF(BANKA!A:E,K11,BANKA!E:E) -> 0 | O11: =SUMIF(GİDER!A:G,K11,GİDER!G:G) -> 0 | P11: 0 | Q11: 0 | R11: 0 | S11: 0 | T11: 0 | U11: 0
K12: 2025 | L12: =SUMIF(GELİRLER!A:G,K12,GELİRLER!G:G) -> 0 | M12: =SUMIF(BANKA!A:D,K12,BANKA!D:D) -> 0 | N12: =SUMIF(BANKA!A:E,K12,BANKA!E:E) -> 0 | O12: =SUMIF(GİDER!A:G,K12,GİDER!G:G) -> 0 | P12: 0 | Q12: 0 | R12: 0 | S12: 0 | T12: 0 | U12: 0
K13: 2026 | L13: =SUMIF(GELİRLER!A:G,K13,GELİRLER!G:G) -> 0 | M13: =SUMIF(BANKA!A:D,K13,BANKA!D:D) -> 0 | N13: =SUMIF(BANKA!A:E,K13,BANKA!E:E) -> 0 | O13: =SUMIF(GİDER!A:G,K13,GİDER!G:G) -> 0 | P13: 0 | Q13: 0 | R13: 0 | S13: 0 | T13: 0 | U13: 0
K14: 2027 | L14: =SUMIF(GELİRLER!A:G,K14,GELİRLER!G:G) -> 0 | M14: =SUMIF(BANKA!A:D,K14,BANKA!D:D) -> 0 | N14: =SUMIF(BANKA!A:E,K14,BANKA!E:E) -> 0 | O14: =SUMIF(GİDER!A:G,K14,GİDER!G:G) -> 0 | P14: 0 | Q14: 0 | R14: 0 | S14: 0 | T14: 0 | U14: 0
K15: 2028 | L15: =SUMIF(GELİRLER!A:G,K15,GELİRLER!G:G) -> 0 | M15: =SUMIF(BANKA!A:D,K15,BANKA!D:D) -> 0 | N15: =SUMIF(BANKA!A:E,K15,BANKA!E:E) -> 0 | O15: =SUMIF(GİDER!A:G,K15,GİDER!G:G) -> 0 | P15: 0 | Q15: 0 | R15: 0 | S15: 0 | T15: 0 | U15: 0
K16: 2029 | L16: =SUMIF(GELİRLER!A:G,K16,GELİRLER!G:G) -> 0 | M16: =SUMIF(BANKA!A:D,K16,BANKA!D:D) -> 0 | N16: =SUMIF(BANKA!A:E,K16,BANKA!E:E) -> 0 | O16: =SUMIF(GİDER!A:G,K16,GİDER!G:G) -> 0 | P16: 0 | Q16: 0 | R16: 0 | S16: 0 | T16: 0 | U16: 0
K17: 2030 | L17: =SUMIF(GELİRLER!A:G,K17,GELİRLER!G:G) -> 0 | M17: =SUMIF(BANKA!A:D,K17,BANKA!D:D) -> 0 | N17: =SUMIF(BANKA!A:E,K17,BANKA!E:E) -> 0 | O17: =SUMIF(GİDER!A:G,K17,GİDER!G:G) -> 0 | P17: 0 | Q17: 0 | R17: 0 | S17: 0 | T17: 0 | U17: 0
K18: 2031 | L18: =SUMIF(GELİRLER!A:G,K18,GELİRLER!G:G) -> 0 | M18: =SUMIF(BANKA!A:D,K18,BANKA!D:D) -> 0 | N18: =SUMIF(BANKA!A:E,K18,BANKA!E:E) -> 0 | O18: =SUMIF(GİDER!A:G,K18,GİDER!G:G) -> 0 | P18: 0 | Q18: 0 | R18: 0 | S18: 0 | T18: 0 | U18: 0
K19: 2032 | L19: =SUMIF(GELİRLER!A:G,K19,GELİRLER!G:G) -> 0 | M19: =SUMIF(BANKA!A:D,K19,BANKA!D:D) -> 0 | N19: =SUMIF(BANKA!A:E,K19,BANKA!E:E) -> 0 | O19: =SUMIF(GİDER!A:G,K19,GİDER!G:G) -> 0 | P19: 0 | Q19: 0 | R19: 0 | S19: 0 | T19: 0 | U19: 0
K20: 2033 | L20: =SUMIF(GELİRLER!A:G,K20,GELİRLER!G:G) -> 0 | M20: =SUMIF(BANKA!A:D,K20,BANKA!D:D) -> 0 | N20: =SUMIF(BANKA!A:E,K20,BANKA!E:E) -> 0 | O20: =SUMIF(GİDER!A:G,K20,GİDER!G:G) -> 0 | P20: 0 | Q20: 0 | R20: 0 | S20: 0 | T20: 0 | U20: 0
K21: 2034 | L21: =SUMIF(GELİRLER!A:G,K21,GELİRLER!G:G) -> 0 | M21: =SUMIF(BANKA!A:D,K21,BANKA!D:D) -> 0 | N21: =SUMIF(BANKA!A:E,K21,BANKA!E:E) -> 0 | O21: =SUMIF(GİDER!A:G,K21,GİDER!G:G) -> 0 | P21: 0 | Q21: 0 | R21: 0 | S21: 0 | T21: 0 | U21: 0
K22: 2035 | L22: =SUMIF(GELİRLER!A:G,K22,GELİRLER!G:G) -> 0 | M22: =SUMIF(BANKA!A:D,K22,BANKA!D:D) -> 0 | N22: =SUMIF(BANKA!A:E,K22,BANKA!E:E) -> 0 | O22: =SUMIF(GİDER!A:G,K22,GİDER!G:G) -> 0 | P22: 0 | Q22: 0 | R22: 0 | S22: 0 | T22: 0 | U22: 0
K23: 2036 | L23: =SUMIF(GELİRLER!A:G,K23,GELİRLER!G:G) -> 0 | M23: =SUMIF(BANKA!A:D,K23,BANKA!D:D) -> 0 | N23: =SUMIF(BANKA!A:E,K23,BANKA!E:E) -> 0 | O23: =SUMIF(GİDER!A:G,K23,GİDER!G:G) -> 0 | P23: 0 | Q23: 0 | R23: 0 | S23: 0 | T23: 0 | U23: 0
K24: 2037 | L24: =SUMIF(GELİRLER!A:G,K24,GELİRLER!G:G) -> 0 | M24: =SUMIF(BANKA!A:D,K24,BANKA!D:D) -> 0 | N24: =SUMIF(BANKA!A:E,K24,BANKA!E:E) -> 0 | O24: =SUMIF(GİDER!A:G,K24,GİDER!G:G) -> 0 | P24: 0 | Q24: 0 | R24: 0 | S24: 0 | T24: 0 | U24: 0
K25: 2038 | L25: =SUMIF(GELİRLER!A:G,K25,GELİRLER!G:G) -> 0 | M25: =SUMIF(BANKA!A:D,K25,BANKA!D:D) -> 0 | N25: =SUMIF(BANKA!A:E,K25,BANKA!E:E) -> 0 | O25: =SUMIF(GİDER!A:G,K25,GİDER!G:G) -> 0 | P25: 0 | Q25: 0 | R25: 0 | S25: 0 | T25: 0 | U25: 0
K26: 2039 | L26: =SUMIF(GELİRLER!A:G,K26,GELİRLER!G:G) -> 0 | M26: =SUMIF(BANKA!A:D,K26,BANKA!D:D) -> 0 | N26: =SUMIF(BANKA!A:E,K26,BANKA!E:E) -> 0 | O26: =SUMIF(GİDER!A:G,K26,GİDER!G:G) -> 0 | P26: 0 | Q26: 0 | R26: 0 | S26: 0 | T26: 0 | U26: 0
K27: 2040 | L27: =SUMIF(GELİRLER!A:G,K27,GELİRLER!G:G) -> 0 | M27: =SUMIF(BANKA!A:D,K27,BANKA!D:D) -> 0 | N27: =SUMIF(BANKA!A:E,K27,BANKA!E:E) -> 0 | O27: =SUMIF(GİDER!A:G,K27,GİDER!G:G) -> 0 | P27: 0 | Q27: 0 | R27: 0 | S27: 0 | T27: 0 | U27: 0
K28: 2041 | L28: =SUMIF(GELİRLER!A:G,K28,GELİRLER!G:G) -> 0 | M28: =SUMIF(BANKA!A:D,K28,BANKA!D:D) -> 0 | N28: =SUMIF(BANKA!A:E,K28,BANKA!E:E) -> 0 | O28: =SUMIF(GİDER!A:G,K28,GİDER!G:G) -> 0 | P28: 0 | Q28: 0 | R28: 0 | S28: 0 | T28: 0 | U28: 0
K29: 2042 | L29: =SUMIF(GELİRLER!A:G,K29,GELİRLER!G:G) -> 0 | M29: =SUMIF(BANKA!A:D,K29,BANKA!D:D) -> 0 | N29: =SUMIF(BANKA!A:E,K29,BANKA!E:E) -> 0 | O29: =SUMIF(GİDER!A:G,K29,GİDER!G:G) -> 0 | P29: 0 | Q29: 0 | R29: 0 | S29: 0 | T29: 0 | U29: 0
K30: 2043 | L30: =SUMIF(GELİRLER!A:G,K30,GELİRLER!G:G) -> 0 | M30: =SUMIF(BANKA!A:D,K30,BANKA!D:D) -> 0 | N30: =SUMIF(BANKA!A:E,K30,BANKA!E:E) -> 0 | O30: =SUMIF(GİDER!A:G,K30,GİDER!G:G) -> 0 | P30: 0 | Q30: 0 | R30: 0 | S30: 0 | T30: 0 | U30: 0
K31: 2044 | L31: =SUMIF(GELİRLER!A:G,K31,GELİRLER!G:G) -> 0 | M31: =SUMIF(BANKA!A:D,K31,BANKA!D:D) -> 0 | N31: =SUMIF(BANKA!A:E,K31,BANKA!E:E) -> 0 | O31: =SUMIF(GİDER!A:G,K31,GİDER!G:G) -> 0 | P31: 0 | Q31: 0 | R31: 0 | S31: 0 | T31: 0 | U31: 0
K32: 2045 | L32: =SUMIF(GELİRLER!A:G,K32,GELİRLER!G:G) -> 0 | M32: =SUMIF(BANKA!A:D,K32,BANKA!D:D) -> 0 | N32: =SUMIF(BANKA!A:E,K32,BANKA!E:E) -> 0 | O32: =SUMIF(GİDER!A:G,K32,GİDER!G:G) -> 0 | P32: 0 | Q32: 0 | R32: 0 | S32: 0 | T32: 0 | U32: 0
K33: 2046 | L33: =SUMIF(GELİRLER!A:G,K33,GELİRLER!G:G) -> 0 | M33: =SUMIF(BANKA!A:D,K33,BANKA!D:D) -> 0 | N33: =SUMIF(BANKA!A:E,K33,BANKA!E:E) -> 0 | O33: =SUMIF(GİDER!A:G,K33,GİDER!G:G) -> 0 | P33: 0 | Q33: 0 | R33: 0 | S33: 0 | T33: 0 | U33: 0
K34: 2047 | L34: =SUMIF(GELİRLER!A:G,K34,GELİRLER!G:G) -> 0 | M34: =SUMIF(BANKA!A:D,K34,BANKA!D:D) -> 0 | N34: =SUMIF(BANKA!A:E,K34,BANKA!E:E) -> 0 | O34: =SUMIF(GİDER!A:G,K34,GİDER!G:G) -> 0 | P34: 0 | Q34: 0 | R34: 0 | S34: 0 | T34: 0 | U34: 0
K35: 2048 | L35: =SUMIF(GELİRLER!A:G,K35,GELİRLER!G:G) -> 0 | M35: =SUMIF(BANKA!A:D,K35,BANKA!D:D) -> 0 | N35: =SUMIF(BANKA!A:E,K35,BANKA!E:E) -> 0 | O35: =SUMIF(GİDER!A:G,K35,GİDER!G:G) -> 0 | P35: 0 | Q35: 0 | R35: 0 | S35: 0 | T35: 0 | U35: 0
K36: 2049 | L36: =SUMIF(GELİRLER!A:G,K36,GELİRLER!G:G) -> 0 | M36: =SUMIF(BANKA!A:D,K36,BANKA!D:D) -> 0 | N36: =SUMIF(BANKA!A:E,K36,BANKA!E:E) -> 0 | O36: =SUMIF(GİDER!A:G,K36,GİDER!G:G) -> 0 | P36: 0 | Q36: 0 | R36: 0 | S36: 0 | T36: 0 | U36: 0
K37: 2050 | L37: =SUMIF(GELİRLER!A:G,K37,GELİRLER!G:G) -> 0 | M37: =SUMIF(BANKA!A:D,K37,BANKA!D:D) -> 0 | N37: =SUMIF(BANKA!A:E,K37,BANKA!E:E) -> 0 | O37: =SUMIF(GİDER!A:G,K37,GİDER!G:G) -> 0 | P37: 0 | Q37: 0 | R37: 0 | S37: 0 | T37: 0 | U37: 0
K38: 2051 | L38: =SUMIF(GELİRLER!A:G,K38,GELİRLER!G:G) -> 0 | M38: =SUMIF(BANKA!A:D,K38,BANKA!D:D) -> 0 | N38: =SUMIF(BANKA!A:E,K38,BANKA!E:E) -> 0 | O38: =SUMIF(GİDER!A:G,K38,GİDER!G:G) -> 0 | P38: 0 | Q38: 0 | R38: 0 | S38: 0 | T38: 0 | U38: 0
K39: 2052 | L39: =SUMIF(GELİRLER!A:G,K39,GELİRLER!G:G) -> 0 | M39: =SUMIF(BANKA!A:D,K39,BANKA!D:D) -> 0 | N39: =SUMIF(BANKA!A:E,K39,BANKA!E:E) -> 0 | O39: =SUMIF(GİDER!A:G,K39,GİDER!G:G) -> 0 | P39: 0 | Q39: 0 | R39: 0 | S39: 0 | T39: 0 | U39: 0
K40: 2053 | L40: =SUMIF(GELİRLER!A:G,K40,GELİRLER!G:G) -> 0 | M40: =SUMIF(BANKA!A:D,K40,BANKA!D:D) -> 0 | N40: =SUMIF(BANKA!A:E,K40,BANKA!E:E) -> 0 | O40: =SUMIF(GİDER!A:G,K40,GİDER!G:G) -> 0 | P40: 0 | Q40: 0 | R40: 0 | S40: 0 | T40: 0 | U40: 0
K41: 2054 | L41: =SUMIF(GELİRLER!A:G,K41,GELİRLER!G:G) -> 0 | M41: =SUMIF(BANKA!A:D,K41,BANKA!D:D) -> 0 | N41: =SUMIF(BANKA!A:E,K41,BANKA!E:E) -> 0 | O41: =SUMIF(GİDER!A:G,K41,GİDER!G:G) -> 0 | P41: 0 | Q41: 0 | R41: 0 | S41: 0 | T41: 0 | U41: 0
K42: 2055 | L42: =SUMIF(GELİRLER!A:G,K42,GELİRLER!G:G) -> 0 | M42: =SUMIF(BANKA!A:D,K42,BANKA!D:D) -> 0 | N42: =SUMIF(BANKA!A:E,K42,BANKA!E:E) -> 0 | O42: =SUMIF(GİDER!A:G,K42,GİDER!G:G) -> 0 | P42: 0 | Q42: 0 | R42: 0 | S42: 0 | T42: 0 | U42: 0

Sheet BANKA
A1: YIL | B1: TARİH | C1: AÇIKLAMA | D1: ÇEKİLEN | E1: YATAN | F1: KALAN
A2: 2016 | B2: 25042016 | C2: Yatan | E2: 75.44 | F2: =SUM(E:E)-SUM(D:D) -> 2.5
A3: 2016 | B3: 25042016 | C3: Çekilen | D3: 65.44
A4: 2016 | B4: 25.04.2016 | C4: Jkljşlkjlk-Nisan-2016 Ayı- Jhgkhjgkjh | D4: 7.5

Sheet TEDARİKÇİLER
A1: FİRMA / KİŞİ - ÜNVANI / ADI SOYADI | B1: YETKİLİ ADI SOYADI | C1: ADRESİ | D1: TELEFONU | E1: VERGİ DAİRESİ | F1: VERGİ / T.C. NO

Sheet HANE
A1: DAİRE | B1: ADI SOYADI | C1: YAKINLIĞI | D1: İKAMET BAŞLAMA | E1: İKAMET AYRILMA | F1: EVLİLİK TARİHİ | G1: ARAÇ PLAKA | H1: ANAHTAR | AA1: DAİRE | AB1: ADI SOYADI | AC1: YAKINLIĞI | AD1: İKAMET BAŞLAMA | AE1: İKAMET AYRILMA | AF1: EVLİLİK TARİHİ | AG1: ARAÇ PLAKA | AH1: ANAHTAR
H2: 1-Yeşim Tuncay Şahbaz | AA2: 11 | AB2: Murat Şahin | AC2: Kendisi | AH2: 11-Murat Şahin
H3: 2-Hakverdi Yılmaz
H4: 3-Kudret Ünsal
H5: 9-Memduh Toy
H6: 11-Murat Şahin
H7: 12-Murat Toy
H8: 13-Salim Toy
H9: 16-Gültaza Gümüş
H10: 18-Cuma Keskiner
H11: 41-Osman Ülkü Şanlı

Sheet HAZİRUN
A1: DAİRE NO | B1: KATILIMCI ADI SOYADI | C1: İMZASI

Sheet APT
A1: SİTE KULLANIM ALANI M2 | B1: =SUM(ÜYE!C:C) -> 274
A2: SİTE ORTAK KULLANIM M2 | B2: 50
A3: APARTMAN/SİTE ADI | B3: Ata
A4: ADRESİ | B4: Akşemsettin Mah.1106/1 Sok.No:4
A5: İLİ | B5: Ankara
A6: İLÇESİ | B6: Mamak
A7: DAİRE / DÜKKAN SAYISI | B7: 44
A8: ADA NO | B8: 51002
A9: PARSEL NO | B9: 4
A10: KAT SAYISI | B10: 12

Sheet HAZIRLIK
A1: KARARLAR
A3: ="1.)Kat malikleri kurulu , yoklama yapıldı ve gerekli ekseriyetin hazır bulunduğu tespit edilerek gündemin görüşülmesi için Toplantı Divan başkanlığına "&B87&", katipliğe "&B88&" tüm maliklerin kabul oy birliği ile seçildi." -> 1.)Kat malikleri kurulu , yoklama yapıldı ve gerekli ekseriyetin hazır bulunduğu tespit edilerek gündemin görüşülmesi için Toplantı Divan başkanlığına Murat Gücükdeli, katipliğe Serap Gücükdeli tüm maliklerin kabul oy birliği ile seçildi.
A4: 2.) Yönetimin Yıllık Faaliyet raporu incelenip gelir ve giderler kabul edip ibra edildi.
A5: 3.)Denetici raporu okunup kabul edilip ibra edildi.
A6: ="4.) Divan Başkanı tarafından yönetici adayı olarak profesyonel bilgi birikimi bulunan "&B79&" ve Yönetici Yardımcılığına/Yardımcılıklarına "&B80&" "&B81&" önerildi. Denetici olarak "&B82&" ve Denetici Yardımcılığına/Yardımcılıklarına "&B83&" "&B84&" "&B85&" önerildi. Konu oylamaya sunuldu. Yönetici "&B79&" ve Yönetici Yardımcılığına/Yardımcılıklarına "&B80&" "&B81&" ve Denetici "&B82&" ve Denetici Yardımcılığına "&B83&" "&B84&" "&B85&" olarak seçilmesine oy birliği ile karar verildi." -> 4.) Divan Başkanı tarafından yönetici adayı olarak profesyonel bilgi birikimi bulunan Bilal Yılmaz ve Yönetici Yardımcılığına/Yardımcılıklarına Halil Şahbaz Zülfiye Şahbaz önerildi. Denetici olarak Fatih Toklucu ve Denetici Yardımcılığına/Yardımcılıklarına Fatma Toklucu Seher Toklucu Selva Toklucu önerildi. Konu oylamaya sunuldu. Yönetici Bilal Yılmaz ve Yönetici Yardımcılığına/Yardımcılıklarına Halil Şahbaz Zülfiye Şahbaz ve Denetici Fatih Toklucu ve Denetici Yardımcılığına Fatma Toklucu Seher Toklucu Selva Toklucu olarak seçilmesine oy birliği ile karar verildi.
A7: ="Yönetici "&B79&" ve veya denetici "&B82&"'a Apartman/Site'ye ait tüm bankacılık işlemlerini yapmaya ve tüm resmi ve özel kurumlarda binayı münferiden veya ayrı ayrı temsil etmesine oy birliği ile karar verilmiştir. "&B82&"'a Apartmanın/Sitenin avans aidat ve yatırım aylık ödemelerinden doğan alacakları hususunda toplam borcu "&B75*12&".-TL'yi geçen maliklerin Avukat kanalıyla icra takibi yapılması hususunda bir avukata "&APT!B3&" Apartmanı adına vekalet vermesi hususunda yetki verilmiştir." -> Yönetici Bilal Yılmaz ve veya denetici Fatih Toklucu'a Apartman/Site'ye ait tüm bankacılık işlemlerini yapmaya ve tüm resmi ve özel kurumlarda binayı münferiden veya ayrı ayrı temsil etmesine oy birliği ile karar verilmiştir. Fatih Toklucu'a Apartmanın/Sitenin avans aidat ve yatırım aylık ödemelerinden doğan alacakları hususunda toplam borcu 180.-TL'yi geçen maliklerin Avukat kanalıyla icra takibi yapılması hususunda bir avukata Ata Apartmanı adına vekalet vermesi hususunda yetki verilmiştir.
A8: ="Yönetici "&B79&"'a "&B90&" TL. Yönetim huzur hakkı ödenmesine karar verildi. Deneticiye bir ücret ödenmesine gerek olmadığına oy birliğiyle karar verildi." -> Yönetici Bilal Yılmaz'a 150 TL. Yönetim huzur hakkı ödenmesine karar verildi. Deneticiye bir ücret ödenmesine gerek olmadığına oy birliğiyle karar verildi.
A9: ="5.) İkinci bir karar alınıncaya kadar avans aidatlarının yapılan işletme projesinin oy birliği ile kabul edilmesiyle bağımsız bölüm başına "&B75&".-TL/Ay toplanmasına karar verilmiştir." -> 5.) İkinci bir karar alınıncaya kadar avans aidatlarının yapılan işletme projesinin oy birliği ile kabul edilmesiyle bağımsız bölüm başına 15.-TL/Ay toplanmasına karar verilmiştir.
A10: 6.) Dilek ve temennilere gelindi apartmanımızın elektrik, su gibi giderlerinin Türkiyede yerleşik bir Bankada açılacak yönetim hesabından otomatik ödeme talimatlarıyla düzenli olarak yapılması hususlarına oy birliği ile karar verildi.
A11: Kararlar oy birliği ile imza altına alınarak toplantı kapatıldı.
A12: =B77 -> 15.10.2015
A14: KARARLAR
A15: 1.)Kat Malikleri Kurulu , Yoklama Yapıldı Ve Gerekli Ekseriyetin Hazır Bulunduğu Tespit Edilerek Gündemin Görüşülmesi İçin Toplantı Divan Başkanlığına Murat Gücükdeli, Katipliğe Serap Gücükdeli Tüm Maliklerin Kabul Oy Birliği İle Seçildi.
A16: 2.) Yönetimin Yıllık Faaliyet Raporu İncelenip Gelir Ve Giderler Kabul Edip İbra Edildi.
A17: 3.)Denetici Raporu Okunup Kabul Edilip İbra Edildi.
A18: 4.) Divan Başkanı Tarafından Yönetici Adayı Olarak Profesyonel Bilgi Birikimi Bulunan Bilal Yılmaz Ve Yönetici Yardımcılığına/Yardımcılıklarına Halil Şahbaz Zülfiye Şahbaz Önerildi. Denetici Olarak Fatih Toklucu Ve Denetici Yardımcılığına/Yardımcılıklarına Fatma Toklucu Seher Toklucu Selva Toklucu Önerildi. Konu Oylamaya Sunuldu. Yönetici Bilal Yılmaz Ve Yönetici Yardımcılığına/Yardımcılıklarına Halil Şahbaz Zülfiye Şahbaz Ve Denetici Fatih Toklucu Ve Denetici Yardımcılığına Fatma Toklucu Seher Toklucu Selva Toklucu Olarak Seçilmesine Oy Birliği İle Karar Verildi.
A19: Yönetici Bilal Yılmaz Ve Veya Denetici Fatih Toklucu'A Apartman/Site'Ye Ait Tüm Bankacılık İşlemlerini Yapmaya Ve Tüm Resmi Ve Özel Kurumlarda Binayı Münferiden Veya Ayrı Ayrı Temsil Etmesine Oy Birliği İle Karar Verilmiştir. Fatih Toklucu'A Apartmanın/Sitenin Avans Aidat Ve Yatırım Aylık Ödemelerinden Doğan Alacakları Hususunda Toplam Borcu 180.-Tl'Yi Geçen Maliklerin Avukat Kanalıyla İcra Takibi Yapılması Hususunda Bir Avukata Işıl-3 Apartmanı Adına Vekalet Vermesi Hususunda Yetki Verilmiştir.
A20: Yönetici Bilal Yılmaz'A 150 Tl. Yönetim Huzur Hakkı Ödenmesine Karar Verildi. Deneticiye Bir Ücret Ödenmesine Gerek Olmadığına Oy Birliğiyle Karar Verildi.
A21: 5.) İkinci Bir Karar Alınıncaya Kadar Avans Aidatlarının Yapılan İşletme Projesinin Oy Birliği İle Kabul Edilmesiyle Bağımsız Bölüm Başına 15.-Tl/Ay Toplanmasına Karar Verilmiştir.
A22: 6.) Dilek Ve Temennilere Gelindi Apartmanımızın Elektrik, Su Gibi Giderlerinin Türkiyede Yerleşik Bir Bankada Açılacak Yönetim Hesabından Otomatik Ödeme Talimatlarıyla Düzenli Olarak Yapılması Hususlarına Oy Birliği İle Karar Verildi.
A23: Kararlar Oy Birliği İle İmza Altına Alınarak Toplantı Kapatıldı.
A24: 15.04.2016
A75: AYLIK AİDAT TUTARI (MESKEN) | B75: 15
A76: AYLIK AİDAT TUTARI (DÜKKAN) | B76: 0
A77: 1.TOPLANTI TARİHİ (AYIN İLK 10.GÜNÜ) | B77: 15.10.2015
A78: VEYA 2.TOPLANTI TARİHİ (AYIN İLK 10.GÜNÜ) | B78: 15.11.2015
A79: SEÇİLEN YÖNETİCİ | B79: Bilal Yılmaz
A80: YÖNETİCİ YARDIMCISI 1 | B80: Halil Şahbaz
A81: YÖNETİCİ YARDIMCISI 2 | B81: Zülfiye Şahbaz
A82: 1.DENETÇİ | B82: Fatih Toklucu
A83: 2.DENETÇİ | B83: Fatma Toklucu
A84: 3.DENETÇİ | B84: Seher Toklucu
A85: 4.DENETÇİ | B85: Selva Toklucu
A86: TOPLANTIYA DAVET TARİHİ | B86: 15.09.2015
A87: DİVAN BAŞKANI | B87: Murat Gücükdeli
A88: KATİP | B88: Serap Gücükdeli
A89: YÖNETİCİ AİDAT ÖDEYECEK Mİ.? | B89: Öder
A90: HUZUR HAKKI | B90: 150
A96: Kat Malikleri Kuruluna Davet Mektubu
A98: =APT!B3&" Apartmanı Kat Maliklerine;" -> Ata Apartmanı Kat Maliklerine;
A99: ="Kat malikleri kurulu,aşağıdaki gündem maddelerini görüşüp karara bağlamak üzere "&B77&" da "&APT!B4&" adresindeki apartmanda olağan (veya olağanüstü) olarak toplanacaktır." -> Kat malikleri kurulu,aşağıdaki gündem maddelerini görüşüp karara bağlamak üzere 15.10.2015 da Akşemsettin Mah.1106/1 Sok.No:4 adresindeki apartmanda olağan (veya olağanüstü) olarak toplanacaktır.
A100: ="Bu toplantıda yeter sayı sağlanamadığı takdirde,ikinci toplantı nisap (çoğunluk) aranmaksızın "&B78&" da aynı yerde yapılacaktır." -> Bu toplantıda yeter sayı sağlanamadığı takdirde,ikinci toplantı nisap (çoğunluk) aranmaksızın 15.11.2015 da aynı yerde yapılacaktır.
A101: ="Bütün kat maliklerinin toplantıya katılmaları veya kendilerini temsil ettirmeleri önemle rica olunur."&B86 -> Bütün kat maliklerinin toplantıya katılmaları veya kendilerini temsil ettirmeleri önemle rica olunur.15.09.2015
A102: Gündem:
A103: 1)Açılış,Yoklama Ve Toplantı Divan Başkanı Ve Üyelerin Seçimi,
A104: 2)Başkanlık Panına İmza Yetkisi Verilmesi
A105: 3)Gündemin Okunması Ve İlaveler
A106: 4)Yönetici Faaliyet Raporu Ve Denetçi Raporunun Okunması, Hesapların Görüşülmesi Ve Yöneticinin İbrası.
A107: 5)Yeni Yönetici Ve Denetçi Seçimi.
A108: 6)Dilek Ve Temenniler.
A109: 7)Kapanış.
A114: =B4&" Apartmanı Yöneticisi" -> Apartmanı Yöneticisi
A115: =+B79 -> Bilal Yılmaz
A116: ———————————————————————————————————————————
A117: VEKALETNAME
A118: =APT!B3&" Apartmanı/Sitesi kat malikleri kurulu divan başkanlığına" -> Ata Apartmanı/Sitesi kat malikleri kurulu divan başkanlığına
A119: ="Sitemizin "&B77&" tarihinde yapılacak olan kat malikleri kurulu toplantısında beni temsile (Kat Malikimiz / Birinci derece akrabam) ………………………..………………………………………… vekil olarak tayin ettim." -> Sitemizin 15.10.2015 tarihinde yapılacak olan kat malikleri kurulu toplantısında beni temsile (Kat Malikimiz / Birinci derece akrabam) ………………………..………………………………………… vekil olarak tayin ettim.
A120: ………………………………...…….. nolu kat maliki
A121: Adı Soyadı :
A122: İmza
A123: Not :
A124: 1.Bir kat maliki diğer kat maliki veya 1. derece akrabası tarafından temsil edilir.
A125: 2.Bağımsız bölümün birden fazla maliki varsa, içlerinden birine vekalet vererek bu kişi tarafından temsil edilirler.
A126: 3.Birden fazla bağımsız bölüm sahibi her bölüm için bir oy hakkına sahiptir.
A127: 4.Vefat eden kat malikini veraset ilamı ile birlikte aralarından seçecekleri kişi temsil eder.

Sheet MAKBUZ
A1: =APT!B3&" Aptartmanı/Sitesi " &" Para Teslim Makbuzu" -> Ata Aptartmanı/Sitesi Para Teslim Makbuzu
A2: ADI SOYADI | B2: DAİRE NO | C2: TARİH | D2: TUTAR
A3: Dilek Arslan | B3: 3 | C3: 29.10.2016 | D3: 39.84
C4: AY BORCU | D4: 29.45
C5: FAİZ | D5: 10.84
A7: Sitemiz/Apartmanımız Sakini Dilek Arslan, 3 No'lu Dairesi/Dükkanı için 29.10.2016 Tarihinde Şubat-2016 Ayı Diğer Tahsilat olarak 29,45 TL. TL.Gecikme Faizi olarak 10.84 TL.olmak üzere Toplam : 39.84 TL. Teslim etmiştir.
A8: İşbu Makbuz Dilek Arslan'e kendi isteği üzerine düzenlenmiş ve imza edilmiştir.
A10: =+A1 -> Ata Aptartmanı/Sitesi Para Teslim Makbuzu
A11: =+A2 -> ADI SOYADI | B11: =+B2 -> DAİRE NO | C11: TARİH | D11: TUTAR
A12: =+A3 -> Dilek Arslan | B12: =+B3 -> 3 | C12: =+C3 -> 29.10.2016 | D12: =+D3 -> 39.84
C13: =+C4 -> AY BORCU | D13: 29.45
C14: =+C5 -> FAİZ | D14: 10.84
A16: =+A7 -> Sitemiz/Apartmanımız Sakini Dilek Arslan, 3 No'lu Dairesi/Dükkanı için 29.10.2016 Tarihinde Şubat-2016 Ayı Diğer Tahsilat olarak 29,45 TL. TL.Gecikme Faizi olarak 10.84 TL.olmak üzere Toplam : 39.84 TL. Teslim etmiştir.
A17: =+A8 -> İşbu Makbuz Dilek Arslan'e kendi isteği üzerine düzenlenmiş ve imza edilmiştir.
A21: =APT!B3&" Aptartmanı/Sitesi "&" GİDER MAKBUZU" -> Ata Aptartmanı/Sitesi GİDER MAKBUZU
A22: ÖDEME YAPILAN KİŞİ (ADI SOYADI) | B22: KİMLİK NO / VKN | C22: TARİH | D22: TUTAR
A23: kkljkjpoı ıuıouı | C23: 25.04.2016 | D23: 62,5
A25: İŞİN MAHİYETİ
A26: yuıyuı uyyuıyo
A31: Yukarıda mahiyeti yazılı iş, TC.Kimlik / VKN. nolu kkljkjpoı ıuıouı 'a 25.04.2016 tarihinde yaptırılmış olup, 62,5 TL. ödenmiştir.
A32: yuıyuı uyyuıyo işi karşılığı 62,5.- TL.yi nakden ve tamamen aldım.
A33: kkljkjpoı ıuıouı | C33: =HAZIRLIK!B79 -> Bilal Yılmaz
A34: (İmza) | C34: (İmza)
A36: =+A21 -> Ata Aptartmanı/Sitesi GİDER MAKBUZU
A37: =+A22 -> ÖDEME YAPILAN KİŞİ (ADI SOYADI) | B37: =+B22 -> KİMLİK NO / VKN | C37: TARİH | D37: TUTAR
A38: =+A23 -> kkljkjpoı ıuıouı | B38: =+B23 -> 0 | C38: 25.04.2016 | D38: 62,5
A40: =+A25 -> İŞİN MAHİYETİ
A41: =+A26 -> yuıyuı uyyuıyo
A46: =+A31 -> Yukarıda mahiyeti yazılı iş, TC.Kimlik / VKN. nolu kkljkjpoı ıuıouı 'a 25.04.2016 tarihinde yaptırılmış olup, 62,5 TL. ödenmiştir.
A47: =+A32 -> yuıyuı uyyuıyo işi karşılığı 62,5.- TL.yi nakden ve tamamen aldım.
A48: =+A33 -> kkljkjpoı ıuıouı | C48: =+C33 -> Bilal Yılmaz
A49: =+A34 -> (İmza) | C49: =+C34 -> (İmza)

Sheet GKKARAR
A1: MADDE | B1: KARARLAR | C1: KARARLAR | D1: KARARLAR | E1: KARARLAR | F1: KARARLAR | G1: KARARLAR | H1: KARARLAR | I1: KARARLAR | J1: KARARLAR | K1: TARİH
A2: 1 | B2: ="1.)Kat malikleri kurulu , yoklama yapıldı ve gerekli ekseriyetin hazır bulunduğu tespit edilerek gündemin görüşülmesi için Toplantı Divan başkanlığına "&CH3&", katipliğe "&CI3&" tüm maliklerin kabul oy birliği ile seçildi." -> 1.)Kat malikleri kurulu , yoklama yapıldı ve gerekli ekseriyetin hazır bulunduğu tespit edilerek gündemin görüşülmesi için Toplantı Divan başkanlığına , katipliğe tüm maliklerin kabul oy birliği ile seçildi. | C2: 2.) Yönetimin Yıllık Faaliyet raporu incelenip gelir ve giderler kabul edip ibra edildi. | D2: 3.)Denetici raporu okunup kabul edilip ibra edildi. | E2: ="4.) Divan Başkanı tarafından yönetici adayı olarak profesyonel bilgi birikimi bulunan "&BZ3&" ve Yönetici Yardımcılığına/Yardımcılıklarına "&CA3&" "&CB3&" önerildi. Denetici olarak "&CC3&" ve Denetici Yardımcılığına/Yardımcılıklarına "&CD3&" "&CE3&" "&CF3&" önerildi. Konu oylamaya sunuldu. Yönetici "&BZ3&" ve Yönetici Yardımcılığına/Yardımcılıklarına "&CA3&" "&CB3&" ve Denetici "&CC3&" ve Denetici Yardımcılığına "&CD3&" "&CE3&" "&CF3&" olarak seçilmesine oy birliği ile karar verildi." -> 4.) Divan Başkanı tarafından yönetici adayı olarak profesyonel bilgi birikimi bulunan ve Yönetici Yardımcılığına/Yardımcılıklarına önerildi. Denetici olarak ve Denetici Yardımcılığına/Yardımcılıklarına önerildi. Konu oylamaya sunuldu. Yönetici ve Yönetici Yardımcılığına/Yardımcılıklarına ve Denetici ve Denetici Yardımcılığına olarak seçilmesine oy birliği ile karar verildi. | F2: ="Yönetici "&BZ3&" ve veya denetici "&CC3&"'a Apartman/Site'ye ait tüm bankacılık işlemlerini yapmaya ve tüm resmi ve özel kurumlarda binayı münferiden veya ayrı ayrı temsil etmesine oy birliği ile karar verilmiştir. "&CC3&"'a Apartmanın/Sitenin avans aidat ve yatırım aylık ödemelerinden doğan alacakları hususunda toplam borcu "&BV3*12&".-TL'yi geçen maliklerin Avukat kanalıyla icra takibi yapılması hususunda bir avukata "&APT!B3&" Apartmanı adına vekalet vermesi hususunda yetki verilmiştir." -> Yönetici ve veya denetici 'a Apartman/Site'ye ait tüm bankacılık işlemlerini yapmaya ve tüm resmi ve özel kurumlarda binayı münferiden veya ayrı ayrı temsil etmesine oy birliği ile karar verilmiştir. 'a Apartmanın/Sitenin avans aidat ve yatırım aylık ödemelerinden doğan alacakları hususunda toplam borcu 0.-TL'yi geçen maliklerin Avukat kanalıyla icra takibi yapılması hususunda bir avukata Ata Apartmanı adına vekalet vermesi hususunda yetki verilmiştir. | G2: ="Yönetici "&BZ3&"'a "&CK3&" TL. Yönetim huzur hakkı ödenmesine karar verildi. Deneticiye bir ücret ödenmesine gerek olmadığına oy birliğiyle karar verildi." -> Yönetici 'a TL. Yönetim huzur hakkı ödenmesine karar verildi. Deneticiye bir ücret ödenmesine gerek olmadığına oy birliğiyle karar verildi. | H2: ="5.) İkinci bir karar alınıncaya kadar avans aidatlarının yapılan işletme projesinin oy birliği ile kabul edilmesiyle bağımsız bölüm başına "&BV3&".-TL/Ay toplanmasına karar verilmiştir." -> 5.) İkinci bir karar alınıncaya kadar avans aidatlarının yapılan işletme projesinin oy birliği ile kabul edilmesiyle bağımsız bölüm başına .-TL/Ay toplanmasına karar verilmiştir. | I2: 6.) Dilek ve temennilere gelindi apartmanımızın elektrik, su gibi giderlerinin Türkiyede yerleşik bir Bankada açılacak yönetim hesabından otomatik ödeme talimatlarıyla düzenli olarak yapılması hususlarına oy birliği ile karar verildi. | J2: Kararlar oy birliği ile imza altına alınarak toplantı kapatıldı. | K2: 2016-01-15
A3: 2 | B3: 1.)Kat Malikleri Kurulu , Yoklama Yapıldı Ve Gerekli Ekseriyetin Hazır Bulunduğu Tespit Edilerek Gündemin Görüşülmesi İçin Toplantı Divan Başkanlığına Murat Gücükdeli, Katipliğe Serap Gücükdeli Tüm Maliklerin Kabul Oy Birliği İle Seçildi. | C3: 2.) Yönetimin Yıllık Faaliyet Raporu İncelenip Gelir Ve Giderler Kabul Edip İbra Edildi. | D3: 3.)Denetici Raporu Okunup Kabul Edilip İbra Edildi. | E3: 4.) Divan Başkanı Tarafından Yönetici Adayı Olarak Profesyonel Bilgi Birikimi Bulunan Bilal Yılmaz Ve Yönetici Yardımcılığına/Yardımcılıklarına Halil Şahbaz Zülfiye Şahbaz Önerildi. Denetici Olarak Fatih Toklucu Ve Denetici Yardımcılığına/Yardımcılıklarına Fatma Toklucu Seher Toklucu Selva Toklucu Önerildi. Konu Oylamaya Sunuldu. Yönetici Bilal Yılmaz Ve Yönetici Yardımcılığına/Yardımcılıklarına Halil Şahbaz Zülfiye Şahbaz Ve Denetici Fatih Toklucu Ve Denetici Yardımcılığına Fatma Toklucu Seher Toklucu Selva Toklucu Olarak Seçilmesine Oy Birliği İle Karar Verildi. | F3: Yönetici Bilal Yılmaz Ve Veya Denetici Fatih Toklucu'A Apartman/Site'Ye Ait Tüm Bankacılık İşlemlerini Yapmaya Ve Tüm Resmi Ve Özel Kurumlarda Binayı Münferiden Veya Ayrı Ayrı Temsil Etmesine Oy Birliği İle Karar Verilmiştir. Fatih Toklucu'A Apartmanın/Sitenin Avans Aidat Ve Yatırım Aylık Ödemelerinden Doğan Alacakları Hususunda Toplam Borcu 180.-Tl'Yi Geçen Maliklerin Avukat Kanalıyla İcra Takibi Yapılması Hususunda Bir Avukata Işıl-3 Apartmanı Adına Vekalet Vermesi Hususunda Yetki Verilmiştir. | G3: Yönetici Bilal Yılmaz'A 150 Tl. Yönetim Huzur Hakkı Ödenmesine Karar Verildi. Deneticiye Bir Ücret Ödenmesine Gerek Olmadığına Oy Birliğiyle Karar Verildi. | H3: 5.) İkinci Bir Karar Alınıncaya Kadar Avans Aidatlarının Yapılan İşletme Projesinin Oy Birliği İle Kabul Edilmesiyle Bağımsız Bölüm Başına 15.-Tl/Ay Toplanmasına Karar Verilmiştir. | I3: 6.) Dilek Ve Temennilere Gelindi Apartmanımızın Elektrik, Su Gibi Giderlerinin Türkiyede Yerleşik Bir Bankada Açılacak Yönetim Hesabından Otomatik Ödeme Talimatlarıyla Düzenli Olarak Yapılması Hususlarına Oy Birliği İle Karar Verildi. | J3: Kararlar Oy Birliği İle İmza Altına Alınarak Toplantı Kapatıldı. | K3: 15.04.2016

Sheet NOTER
A1: Karar Defteri : | B1: 1
A2: =IF(B2>0,A1,"") -> Karar Defteri : | B2: 2
A3: =IF(B3>0,A2,"") -> Karar Defteri : | B3: 3
A4: Karar Defteri : | B4: 4
A5: Karar Defteri : | B5: 5
A6: Karar Defteri : | B6: 6
A7: Karar Defteri : | B7: 7
A8: Karar Defteri : | B8: 8
A9: Karar Defteri : | B9: 9
A10: Karar Defteri : | B10: 10
A11: Karar Defteri : | B11: 11
A12: Karar Defteri : | B12: 12
A13: Karar Defteri : | B13: 13
A14: Karar Defteri : | B14: 14
A15: Karar Defteri : | B15: 15
A16: Karar Defteri : | B16: 16
A17: Karar Defteri : | B17: 17
A18: Karar Defteri : | B18: 18
A19: Karar Defteri : | B19: 19
A20: Karar Defteri : | B20: 20
A21: Karar Defteri : | B21: 21
A22: Karar Defteri : | B22: 22
A23: Karar Defteri : | B23: 23
A24: Karar Defteri : | B24: 24
A25: Karar Defteri : | B25: 25
A26: Karar Defteri : | B26: 26
A27: Karar Defteri : | B27: 27
A28: Karar Defteri : | B28: 28
A29: Karar Defteri : | B29: 29
A30: Karar Defteri : | B30: 30
A31: Karar Defteri : | B31: 31
A32: Karar Defteri : | B32: 32
A33: Karar Defteri : | B33: 33
A34: Karar Defteri : | B34: 34
A35: Karar Defteri : | B35: 35
A36: Karar Defteri : | B36: 36
A37: Karar Defteri : | B37: 37
A38: Karar Defteri : | B38: 38
A39: Karar Defteri : | B39: 39
A40: Karar Defteri : | B40: 40
A41: Karar Defteri : | B41: 41
A42: Karar Defteri : | B42: 42
A43: Karar Defteri : | B43: 43
A44: Karar Defteri : | B44: 44
A45: Karar Defteri : | B45: 45
A46: Karar Defteri : | B46: 46
A47: Karar Defteri : | B47: 47
A48: Karar Defteri : | B48: 48
A49: Karar Defteri : | B49: 49
A50: Karar Defteri : | B50: 50
A51: Karar Defteri : | B51: 51
A52: Karar Defteri : | B52: 52
A53: Karar Defteri : | B53: 53
A54: Karar Defteri : | B54: 54
A55: Karar Defteri : | B55: 55
A56: Karar Defteri : | B56: 56
A57: Karar Defteri : | B57: 57
A58: Karar Defteri : | B58: 58
A59: Karar Defteri : | B59: 59
A60: Karar Defteri : | B60: 60
A61: Karar Defteri : | B61: 61
A62: Karar Defteri : | B62: 62
A63: Karar Defteri : | B63: 63
A64: Karar Defteri : | B64: 64
A65: Karar Defteri : | B65: 65
A66: Karar Defteri : | B66: 66
A67: =IF(B67>0,A66,"") -> Karar Defteri : | B67: 67
A68: Karar Defteri : | B68: 68
A69: Karar Defteri : | B69: 69
A70: Karar Defteri : | B70: 70
A71: Karar Defteri : | B71: 71
A72: Karar Defteri : | B72: 72
A73: Karar Defteri : | B73: 73
A74: Karar Defteri : | B74: 74
A75: Karar Defteri : | B75: 75
A76: Karar Defteri : | B76: 76
A77: Karar Defteri : | B77: 77
A78: Karar Defteri : | B78: 78
A79: Karar Defteri : | B79: 79
A80: Karar Defteri : | B80: 80
A81: Karar Defteri : | B81: 81
A82: Karar Defteri : | B82: 82
A83: Karar Defteri : | B83: 83
A84: Karar Defteri : | B84: 84
A85: Karar Defteri : | B85: 85
A86: Karar Defteri : | B86: 86
A87: Karar Defteri : | B87: 87
A88: Karar Defteri : | B88: 88
A89: Karar Defteri : | B89: 89
A90: Karar Defteri : | B90: 90
A91: Karar Defteri : | B91: 91
A92: Karar Defteri : | B92: 92
A93: Karar Defteri : | B93: 93
A94: Karar Defteri : | B94: 94
A95: Karar Defteri : | B95: 95
A96: Karar Defteri : | B96: 96
A97: Karar Defteri : | B97: 97
A98: Karar Defteri : | B98: 98
A99: Karar Defteri : | B99: 99
A100: Karar Defteri : | B100: 100
A101: Karar Defteri : | B101: 101
A102: Karar Defteri : | B102: 102
A103: Karar Defteri : | B103: 103
A104: Karar Defteri : | B104: 104
A105: Karar Defteri : | B105: 105
A106: Karar Defteri : | B106: 106
A107: Karar Defteri : | B107: 107
A108: Karar Defteri : | B108: 108
A109: Karar Defteri : | B109: 109
A110: Karar Defteri : | B110: 110
A111: Karar Defteri : | B111: 111
A112: Karar Defteri : | B112: 112
A113: Karar Defteri : | B113: 113
A114: Karar Defteri : | B114: 114
A115: Karar Defteri : | B115: 115
A116: Karar Defteri : | B116: 116
A117: Karar Defteri : | B117: 117
A118: Karar Defteri : | B118: 118
A119: Karar Defteri : | B119: 119
A120: Karar Defteri : | B120: 120
A121: Karar Defteri : | B121: 121
A122: Karar Defteri : | B122: 122
A123: Karar Defteri : | B123: 123
A124: Karar Defteri : | B124: 124
A125: Karar Defteri : | B125: 125
A126: Karar Defteri : | B126: 126
A127: Karar Defteri : | B127: 127
A128: Karar Defteri : | B128: 128
A129: Karar Defteri : | B129: 129
A130: Karar Defteri : | B130: 130
A131: =IF(B131>0,A130,"") -> Karar Defteri : | B131: 131
A132: Karar Defteri : | B132: 132
A133: Karar Defteri : | B133: 133
A134: Karar Defteri : | B134: 134
A135: Karar Defteri : | B135: 135
A136: Karar Defteri : | B136: 136
A137: Karar Defteri : | B137: 137
A138: Karar Defteri : | B138: 138
A139: Karar Defteri : | B139: 139
A140: Karar Defteri : | B140: 140
A141: Karar Defteri : | B141: 141
A142: Karar Defteri : | B142: 142
A143: Karar Defteri : | B143: 143
A144: Karar Defteri : | B144: 144
A145: Karar Defteri : | B145: 145
A146: Karar Defteri : | B146: 146
A147: Karar Defteri : | B147: 147
A148: Karar Defteri : | B148: 148
A149: Karar Defteri : | B149: 149
A150: Karar Defteri : | B150: 150
A151: Karar Defteri : | B151: 151
A152: Karar Defteri : | B152: 152
A153: Karar Defteri : | B153: 153
A154: Karar Defteri : | B154: 154
A155: Karar Defteri : | B155: 155
A156: Karar Defteri : | B156: 156
A157: Karar Defteri : | B157: 157
A158: Karar Defteri : | B158: 158
A159: Karar Defteri : | B159: 159
A160: Karar Defteri : | B160: 160
A161: Karar Defteri : | B161: 161
A162: Karar Defteri : | B162: 162
A163: Karar Defteri : | B163: 163
A164: Karar Defteri : | B164: 164
A165: Karar Defteri : | B165: 165
A166: Karar Defteri : | B166: 166
A167: Karar Defteri : | B167: 167
A168: Karar Defteri : | B168: 168
A169: Karar Defteri : | B169: 169
A170: Karar Defteri : | B170: 170
A171: Karar Defteri : | B171: 171
A172: Karar Defteri : | B172: 172
A173: Karar Defteri : | B173: 173
A174: Karar Defteri : | B174: 174
A175: Karar Defteri : | B175: 175
A176: Karar Defteri : | B176: 176
A177: Karar Defteri : | B177: 177
A178: Karar Defteri : | B178: 178
A179: Karar Defteri : | B179: 179
A180: Karar Defteri : | B180: 180
A181: Karar Defteri : | B181: 181
A182: Karar Defteri : | B182: 182
A183: Karar Defteri : | B183: 183
A184: Karar Defteri : | B184: 184
A185: Karar Defteri : | B185: 185
A186: Karar Defteri : | B186: 186
A187: Karar Defteri : | B187: 187
A188: Karar Defteri : | B188: 188
A189: Karar Defteri : | B189: 189
A190: Karar Defteri : | B190: 190
A191: Karar Defteri : | B191: 191
A192: Karar Defteri : | B192: 192
A193: Karar Defteri : | B193: 193
A194: Karar Defteri : | B194: 194
A195: =IF(B195>0,A194,"") -> Karar Defteri : | B195: 195
A196: Karar Defteri : | B196: 196
A197: Karar Defteri : | B197: 197
A198: Karar Defteri : | B198: 198
A199: Karar Defteri : | B199: 199
A200: Karar Defteri : | B200: 200
... 300 more rows
